Workbook

Sheet HOME
B2: NUTRITIONAL
C3: RESPONSE | J3: Verson 1.3
D4: MODELS
B6: A workbook to fit data from nutritional experiments to several models
B10: Dmitry Vedenov | E10: Department of Agricultural Economics | N10: vedenov@tamu.edu
E11: Texas A&M University
E12: College Station, TX 77843
B14: Gene Pesti | E14: Department of Poultry Science | N14: gpesti@uga.edu
E15: The University of Georgia
E16: Athens, Georgia 30602

Sheet Information & Refs.
B2: The Nutritional Response Models workbook consists of 21 individual worksheets:
C4: Worksheets | F4: Content
C5: HOME | F5: Title Page
C6: Information | F6: This Page
C7: Input & Summary | F7: Main Data Input Page and Summary of Model Fits
C8: Broken Line | F8: Individual Model Pages
C9: Broken Quadratic
C10: Saturation Kinetics
C11: Logistics, 3 Parameters
C12: Logistics, 4 Parameters
C13: Compartmental
C14: RNB, Model 1
C15: RNB, Model 2
C16: Multiple Range Tests | F16: Warning
C17: Test Data Generator | F17: Random Data Generator for each of the models
C18: BLL Graph | F18: Black and White Graphs of the Individual Models for Printing. If the Axes are Set the Same, they serve nicely for comparing the models.
C19: BLQ Graph
C20: SK Graph
C21: L3 Graph
C22: L4 Graph
C23: Com Graph
C24: RNB1 Graph
C25: RNB2 Graph
B27: Up to 100 response points can be entered into the Input & Summary worksheet, where the data is automatically
C28: transferred to the other worksheets by pressing the "Copy Data" button.
B30: After the data has been copied to all the worksheets, you must go to each worksheet to fit the corresponding model
C31: Excel's Solver module is used to minimize the sum of squared errors for each model
C32: Follow the instructions on each page. Solver is run automatically by pressing a corresponding button on each worksheet
B34: A comparison of model fits is shown on the "Input & Summary" worksheet
B36: Feel free to use and modify this workbook.
B38: Please don't forget to reference this workbook in all future modifications.
C40: REFERENCES
B42: Broken Line with Linear Ascending Segment (Broken Line) Model
B44: ROBBINS, K.R. (1986) A Method, SAS Program, and Examples for Fitting the Broken Line to Growth Data. University of Tennessee Research Report. 86-09. University of Tennessee Agricultural Experiment Station, Knoxville, TN USA.
B46: Broken Line with Quadratic Ascending Segment (Broken Quadratic) Model
B48: Pesti, G. M.; Vedenov, D.; Cason, J. A. & L. Billard (2009). A comparison of methods to estimate nutritional requirements from experimental data
B49: BRITISH POULTRY SCIENCE Volume: 50 Issue: 1 Pages: 16-32
B51: MORGAN, P.H., MERCER, L.P. & FLODIN (1975) General model for nutritional responses in higher animals. Proceedings of the National Academy of Sciences, USA 72: 4327-4331.
B53: MERCER, L.P. (1982) The quantitative nutrient-response relationship. Journal of Nutrition, 112: 560-566.
B55: MERCER, L.P. (1992) The determination of nutritional requirements: mathematical modeling of nutrient-response curves. Journal of Nutrition, 122: 706-708.
B57: MERCER, L.P., FLODIN, N.W. & MORGAN, P.H. (1978) New methods for comparing the biological efficiency of alternative nutrient sources. Journal of Nutrition, 108: 1244-1249.
B59: MICHAELIS, L & MENTEN, M (1913). Die Kinetik der Invertinwirkung, Biochemische Zeitschrift 49:333-369.
B61: Logistics Model, 3 Parameter
B63: SAS. 1990. User’s Guide. Release 6.08. SAS Institute Inc., Cary, NC.
B65: Logistics Model, 4 Parameter
B67: GAHL, M.J., FINKE, M.D., CRENSHAW, T.D. & BENEVENGA, N.J. (1991) Use of a four parameter logistic equation to evaluate the response of growing rats to ten levels of each indispensable amino acid. Journal of Nutrition 121: 1720-1729.
B69: Compartmental Model
B71: SAS. 1990. User’s Guide. Release 6.08. SAS Institute Inc., Cary, NC.
B73: RNB, Model 1
B75: ROBBINS, K.R., NORTON, H.W. & BAKER, D.H. (1979) Estimation of nutrient requirements from growth data. Journal of Nutrition, 109: 1710-1714.
B78: RNB, Model 2
B80: ROBBINS, K.R., NORTON, H.W. & BAKER, D.H. (1979) Estimation of nutrient requirements from growth data. Journal of Nutrition, 109: 1710-1714.
B83: Multiple Range Tests
B85: BAKER, R.J. (1980) Multiple comparison tests. Canadian Journal of Plant Science, 60: 325-327.
B87: CARMER, S.G. & WALKER, W.M. (1982) Baby bear’s dilemma: a statistical tale. Agronomy Journal, 74: 122-124.
B89: CHEW, V. (1976) Comparing treatment means: a compendium. HortScience, 11: 348-357.
B91: COUSENS, R. (1988) Misinterpretations of results in weed research through inappropriate use of statistics. Weed Research, 28: 281-289.
B93: DAWKINS, H.C. (1983) Multiple comparisons misused: why so frequently in response-curve studies? Biometrics, 39: 789-790.
B95: DUNCAN, D.B. (1955) Multiple range and multiple F tests. Biometrics, 11: 1-42.
B97: GATES, C.E. (1991) A user’s guide to misanalyzing planned experiments. HortScience, 26: 1262-1265.
B99: GILL, J.L. (1973) Current status of multiple comparisons of means in designed experiments. Journal of Dairy Science, 56: 973-977.
B101: GILLIGAN, C.A. (1986) Use and misuse of the analysis of variance in plant pathology, in: INGRAM, D.S., & WILLIAMS, P.H. (Eds.) Advances in Plant Pathology, Vol. 5, pp. 225-261 (New York: Academic Press).
B103: HAYTER, A.J. (1984), A Proof of the Conjecture that the Tukey-Kramer Method is Conservative, The Annals of Statistics, 12, 61 - 75.
B105: JSFA (1988) Recommendations of the Editorial Board on the use of statistics in papers submitted to JSFA Ð Guidelines to Authors (as formulated by A.W.A. Murray). Journal of the Science of Food and Agriculture, 42: unnumbered.
B107: LITTLE, T.M. (1978) If Galileo published in HortScience. HortScience, 13: 504-506.
B109: LOWRY, S.R. (1992) Use and misuse of multiple comparisons in animal experiments. Journal of Animal Science, 70: 1971-1977.
B111: MAINDONALD, J.H., & COX, N.R. (1984) Use of statistical evidence in some recent issues of DSIR agricultural journals. New Zealand Journal of Agricultural Research, 27: 597-610.
B113: MIHAIL, J.D., & NIBLACK, T.L. (1991) Comparison of treatment means: a statistical fantasy. Journal of Nematology, 23(4S): 557-563.
B115: NELSON, L.A. & RAWLINGS, J.O. (1983) Ten common misuses of statistics in agronomic research and reporting. Journal of Agronomic Education, 12: 100-105.
B117: PEARCE, S.C. (1993) Data analysis in agricultural experimentation. III. Multiple comparisons. Experimental Agriculture, 29: 1-8.
B119: PERRY, J.N. (1986) Multiple-comparison procedures: a dissenting view. Journal of Economic Entomology, 79: 1149-1155.
B121: PETERSEN, R.G. (1977) Use and misuse of multiple comparison procedures. Agronomy Journal, 69: 205-208.
B123: SWALLOW, W.H. (1984) Those overworked and oft-misused mean separation procedures--Duncan’s, LSD, etc. Plant Disease, 68: 919-921.
B125: SCHEFFÉ, H. (1953), A Method for Judging All Contrasts in the Analysis of Variance, Biometrika, 40, 87 - 104.
B127: WALLER, R.A. & DUNCAN, D.B. (1969), "A Bayes Rule for the Symmetric Multiple Comparison Problem," Journal of the American Statistical Association, 64, 1484 - 1499.
B129: WELSCH, R.E. (1977), Stepwise Multiple Comparison Procedures, Journal of the American Statistical Association, 72, 359.
B131: General
B132: ALMQUIST, H.J. (1952) Amino acid requirements of chickens and turkeys - a review. Poultry Science 31: 966-981
B134: ALMQUIST, H.J. (1953) Interpretation of amino acid requirement data according to the law of diminishing returns. Archives of Biochemistry and Biophysics, 44: 245-247.
B136: ALMQUIST, H.J. (1954a) Proportional requirements of amino acids. Archives of Biochemistry and Biophysics, 48: 482-483.
B138: ALMQUIST, H.J. (1954b) A fallacy in the analysis of nutritional requirement data. Archives of Biochemistry and Biophysics, 50: 503.
B140: BAKER, D.H. (1986) Problems and pitfalls in animal experiments designed to establish dietary requirements for essential nutrients. Journal of Nutrition, 116: 2339-2349.
B142: BAKER, D.H. & HAN, Y.M. (1994) Ideal amino-acid profile for chicks during the first 3 weeks posthatching. Poultry Science 73: 1441-1447.
B144: CURNOW, R.N. (1973) A smooth population response curve based on abrupt threshold and plateau model for individuals. Biometrics, 29: 1-10.
B146: FISHER, C., MORRIS, T.R. & JENNINGS, R.C. (1973) A model for the description and prediction of the response of laying hens to amino acid intake. British Poultry Science, 14:469-484.
B148: FISHER, C. (1985) The prediction of responses to nutrients. In: Proceedings of the Thirteenth International Congress of Nutrition, (Taylor, T.J. & Jenkins, N.K., eds.), Libbey, London, U.K.
B150: LERMAN, P.M. & BIE, S.W. (1975). Problems in determining the best levels of essential nutrients in feedingstuffs. Journal of Agricultural Science (Cambridge) 84: 459-468.
B152: MAS-COLELL, A., WHINSTON, M., and GREEN, J. Microeconomic Theory. Oxford University Press, 1995
B154: MILLER, R. G.J. (1981), Simultaneous Statistical Inference, New York: Springer-Verlag.
B156: SHEARER, K.D. (2000) Experimental design, statistical analysis and modelling of dietary nutrient requirement studies for fish: a critical review. Aquaculture Nutrition, 6: 91-102.
B158: STERLING KG, VEDENOV DV, PESTI GM, BAKALLI, R.I. (2005) Economically optimal dietary crude protein and lysine levels for starting broiler chicks Poultry Science 84: 29-36
B160: VARIAN, H. Microeconomic Analysis. 3rd ed. W.W. Norton Company, 1992
B162: WILSON, B.J. (1973) Growth curves: Their analysis and use. pp. 89-115 Growth and Poultry Meat Production, K.N. Boorman & B.J. Wilson, eds. British Poultry Science Ltd, Edinburgh

Sheet Input & Summary
A1: Point | B1: Input | C1: Output | E1: INSTRUCTIONS
A2: 1 | B2: 0.95 | C2: 0.095 | E2: 1. | F2: Press the button below to clear the data range
A3: =A2+1 -> 2 | B3: 1.03 | C3: 0.107
A4: =A3+1 -> 3 | B4: 1.11 | C4: 0.119
A5: 4 | B5: 1.19 | C5: 0.125 | E5: 2. Enter your data into columns B and C.
A6: 5 | B6: 1.27 | C6: 0.131 | F6: Column B, Input, should contain the nutrient levels fed.
A7: 6 | B7: 1.35 | C7: 0.131 | F7: Column C, Output, should contain the observed responses.
A8: 7 | B8: 1.43 | C8: 0.132 | E8: 3. Press the button below to automatically copy data to all spreadsheets simultaneously.
A9: 8
A10: 9
A11: 10 | E11: 4. Go to each page and follow the instructions to solve for each of the models.
A12: 11 | E12: 5. Return to this page to compare the model fits. The best fit model is highlighted yellow.
A13: 12
A14: 13 | E14: Model Fit Comparisons
A15: 14 | E15: Model | H15: Sum of Residuals | J15: R2 | K15: Qm | L15: Critical Xi2
A16: 15 | F16: Linear Regression Model | H16: ='Linear Regression'!L8 -> 0.0001616785806 | J16: ='Linear Regression'!H16 -> 0.8659381587 | K16: ='Linear Regression'!F104 -> 0.001371680611 | L16: =_xlfn.CHISQ.INV.RT(0.05,COUNT($C$3:$C$101)-3) -> 7.814727903
A17: 16 | F17: Quadratic Regression Model | H17: ='Quadratic Regression'!L8 -> 4.241505804e-06 | J17: ='Quadratic Regression'!I10 -> 0.9964829968 | K17: ='Quadratic Regression'!G104 -> 3.431068122e-05 | L17: =_xlfn.CHISQ.INV.RT(0.05,COUNT($C$3:$C$101)-4) -> 5.991464547
A18: 17 | F18: Broken-Line (Linear Ascending) | H18: ='Broken Line'!K8 -> 1.146666831e-05 | J18: ='Broken Line'!H16 -> 0.9904919832 | K18: ='Broken Line'!F104 -> 9.838231725e-05 | L18: =_xlfn.CHISQ.INV.RT(0.05,COUNT($C$3:$C$101)-4) -> 5.991464547
A19: 18 | F19: Broken-Line (Quadratic Ascending) | H19: ='Broken Quadratic'!K8 -> 3.264640135e-06 | J19: ='Broken Quadratic'!H16 -> 0.9972930015 | K19: ='Broken Quadratic'!F104 -> 2.73289054e-05 | L19: =_xlfn.CHISQ.INV.RT(0.05,COUNT($C$3:$C$101)-4) -> 5.991464547
A20: 19 | F20: Saturation Kinetics | H20: ='Saturation Kinetics'!L8 -> 3.013851861e-06 | J20: ='Saturation Kinetics'!H16 -> 0.997500952 | K20: ='Saturation Kinetics'!F104 -> 2.354204666e-05 | L20: =_xlfn.CHISQ.INV.RT(0.05,COUNT($C$3:$C$101)-5) -> 3.841458821
A21: 20 | F21: Logistics, 3 Parameters | H21: ='Logistics, 3 Parameters'!K8 -> 1.762674563e-05 | J21: ='Logistics, 3 Parameters'!H16 -> 0.9853841247 | K21: ='Logistics, 3 Parameters'!F104 -> 0.0001616341815 | L21: =_xlfn.CHISQ.INV.RT(0.05,COUNT($C$3:$C$101)-4) -> 5.991464547
A22: 21 | F22: Logistics, 4 Parameters | H22: ='Logistics, 4 Parameters'!L8 -> 1.100939452e-05 | J22: ='Logistics, 4 Parameters'!H16 -> 0.9908711488 | K22: ='Logistics, 3 Parameters'!F104 -> 0.0001616341815 | L22: =_xlfn.CHISQ.INV.RT(0.05,COUNT($C$3:$C$101)-5) -> 3.841458821
A23: 22 | F23: RNB, Model 1 | H23: ='RNB, Model 1'!L8 -> 1.092183732e-05 | J23: ='RNB, Model 1'!H16 -> 0.9909437501 | K23: ='RNB, Model 1'!F104 -> 9.078756064e-05 | L23: =_xlfn.CHISQ.INV.RT(0.05,COUNT($C$3:$C$101)-5) -> 3.841458821
A24: 23 | F24: RNB, Model 2 | H24: ='RNB, Model 2'!K8 -> 1.134342046e-05 | J24: ='RNB, Model 2'!H16 -> 0.9905941787 | K24: ='RNB, Model 2'!F104 -> 9.326434171e-05 | L24: =_xlfn.CHISQ.INV.RT(0.05,COUNT($C$3:$C$101)-4) -> 5.991464547
A25: 24 | E25: Regression models with Qm>critical Xi2, indicating inadequate fits, are highlighted in red
A26: 25
A27: 26
A28: 27
A29: 28
A30: 29
A31: 30
A32: 31
A33: 32
A34: 33
A35: 34
A36: 35
A37: 36
A38: 37
A39: 38
A40: 39
A41: 40
A42: 41
A43: 42
A44: 43
A45: 44
A46: 45
A47: 46
A48: 47
A49: 48
A50: 49
A51: 50
A52: 51
A53: 52
A54: 53
A55: 54
A56: 55
A57: 56
A58: 57
A59: 58
A60: 59
A61: 60
A62: 61
A63: 62
A64: 63
A65: 64
A66: 65
A67: 66
A68: =A67+1 -> 67
A69: 68
A70: 69
A71: 70
A72: 71
A73: 72
A74: 73
A75: 74
A76: 75
A77: 76
A78: 77
A79: 78
A80: 79
A81: 80
A82: 81
A83: 82
A84: 83
A85: 84
A86: 85
A87: 86
A88: 87
A89: 88
A90: 89
A91: 90
A92: 91
A93: 92
A94: 93
A95: 94
A96: 95
A97: 96
A98: 97
A99: 98
A100: 99
A101: 100
K111: =MIN(K18:K24) -> 2.354204666e-05

Sheet Linear Regression
B1: Fitting the Compartmental Model to Nutritional Response Data
B2: Data | H2: Sample Statistics | S2: Plotting Parameters | X2: Error Analysis
A3: Point | B3: Input | C3: Output | D3: Residuals | E3: Expected | F3: Qm | H3: Min Input | I3: =MIN(B4:B103) -> 0.95 | J3: Min Output | K3: =MIN(C4:C103) -> 0.095 | N3: Instructions | S3: Min Input | T3: Max Input | U3: # of Points | X3: a(X0) | Y3: b (X1) | Z3: c(X2) | AA3: d (X3) | AB3: Q0 | AG3: Number of Observations, T | AH3: Number of Regressors, K | AI3: sigma
A4: 1 | B4: 0.95 | C4: 0.095 | D4: =IF(ISBLANK(B4),"",C4-($H$8+$I$8*B4)) -> -0.006679521578 | E4: =IF(ISBLANK(B4),"",($H$8+$I$8*B4)) -> 0.1016795216 | F4: =IF(ISBLANK(B4),"",D4^2/E4) -> 0.0004387905039 | H4: Max Input | I4: =MAX(B4:B103) -> 1.43 | J4: Max Output | K4: =MAX(C4:C103) -> 0.132 | N4: 1. Copy data in cells B4:C103 | S4: =I3*0.75 -> 0.7125 | T4: =CEILING(I4,1) -> 2 | U4: 101 | X4: =IF(ISBLANK($B4),"",EXP(-$I$8*$B4)*(1-EXP(-$J$8*($B4-$K$8)))) -> 0 | Y4: =IF(ISBLANK($B4),"",-$H$8*$B4*EXP(-$I$8*$B4)*(1-EXP(-$J$8*($B4-$K$8)))) -> 0 | Z4: =IF(ISBLANK($B4),"",$H$8*EXP($J$8*$K$8-($I$8+$J$8)*$B4)*($B4-$K$8)) -> 0.02576703906 | AA4: =IF(ISBLANK($B4),"",-$H$8*EXP($J$8*$K$8-($I$8+$J$8)*$B4)*$J$8) -> 0 | AB4: =SUMPRODUCT(X$4:X$103,X$4:X$103) -> 0 | AC4: =SUMPRODUCT(X$4:X$103,Y$4:Y$103) -> 0 | AD4: =SUMPRODUCT(X$4:X$103,Z$4:Z$103) -> 0 | AE4: =SUMPRODUCT(X$4:X$103,AA$4:AA$103) -> 0
A5: =A4+1 -> 2 | B5: 1.03 | C5: 0.107 | D5: =IF(ISBLANK(B5),"",C5-($H$8+$I$8*B5)) -> -0.0007861637302 | E5: =IF(ISBLANK(B5),"",($H$8+$I$8*B5)) -> 0.1077861637 | F5: =IF(ISBLANK(B5),"",D5^2/E5) -> 5.734070026e-06 | N5: 2. View the data and estimate values for b0 and b1 | S5: Prediction | X5: =IF(ISBLANK($B5),"",EXP(-$I$8*$B5)*(1-EXP(-$J$8*($B5-$K$8)))) -> 0 | Y5: =IF(ISBLANK($B5),"",-$H$8*$B5*EXP(-$I$8*$B5)*(1-EXP(-$J$8*($B5-$K$8)))) -> 0 | Z5: =IF(ISBLANK($B5),"",$H$8*EXP($J$8*$K$8-($I$8+$J$8)*$B5)*($B5-$K$8)) -> 0.0277668142 | AA5: =IF(ISBLANK($B5),"",-$H$8*EXP($J$8*$K$8-($I$8+$J$8)*$B5)*$J$8) -> 0 | AB5: =SUMPRODUCT(Y$4:Y$103,X$4:X$103) -> 0 | AC5: =SUMPRODUCT(Y$4:Y$103,Y$4:Y$103) -> 0 | AD5: =SUMPRODUCT(Y$4:Y$103,Z$4:Z$103) -> 0 | AE5: =SUMPRODUCT(Y$4:Y$103,AA$4:AA$103) -> 0 | AG5: =COUNT(B4:B53) -> 7 | AH5: 4 | AI5: =SQRT(L8/(AG5-AH5)) -> 0.007341175668
A6: 3 | B6: 1.11 | C6: 0.119 | D6: 0.005107194117 | E6: 0.1138928059 | F6: =IF(ISBLANK(B6),"",D6^2/E6) -> 0.0002290173778 | H6: Regression | S6: Point | T6: Input | U6: Output | X6: 0 | Y6: 0 | Z6: 0.02974128491 | AA6: 0 | AB6: =SUMPRODUCT(Z$4:Z$103,X$4:X$103) -> 0 | AC6: =SUMPRODUCT(Z$4:Z$103,Y$4:Y$103) -> 0 | AD6: =SUMPRODUCT(Z$4:Z$103,Z$4:Z$103) -> 0.007113164174 | AE6: =SUMPRODUCT(Z$4:Z$103,AA$4:AA$103) -> 0
A7: 4 | B7: 1.19 | C7: 0.125 | D7: 0.005000551965 | E7: 0.119999448 | F7: 0.0002083802914 | H7: b0 | I7: b1 | L7: SSE | N7: 4. Press the button below to run solver with current settings | S7: 1 | T7: =$S$4+(S7-1)*($T$4-$S$4)/($U$4-1) -> 0.7125 | U7: =$H$8+$I$8*T7 -> 0.08355042769 | X7: 0 | Y7: 0 | Z7: 0.03169068517 | AA7: 0 | AB7: =SUMPRODUCT(AA$4:AA$103,X$4:X$103) -> 0 | AC7: =SUMPRODUCT(AA$4:AA$103,Y$4:Y$103) -> 0 | AD7: =SUMPRODUCT(AA$4:AA$103,Z$4:Z$103) -> 0 | AE7: =SUMPRODUCT(AA$4:AA$103,AA$4:AA$103) -> 0
A8: 5 | B8: 1.27 | C8: 0.131 | D8: 0.004893909813 | E8: 0.1261060902 | F8: 0.0001899222569 | H8: 0.02916314602 | I8: 0.0763330269 | L8: =SUMPRODUCT(D4:D103,D4:D103) -> 0.0001616785806 | N8: 5. Solver will attempt to minimize SSE (red cell) by changing cells h8:I8 | S8: 2 | T8: 0.725375 | U8: =$H$8+$I$8*T8 -> 0.08453321541 | X8: 0 | Y8: 0 | Z8: 0.03361524707 | AA8: 0
A9: 6 | B9: 1.35 | C9: 0.131 | D9: -0.00121273234 | E9: 0.1322127323 | F9: 1.112388876e-05 | S9: 3 | T9: 0.73825 | U9: 0.08551600313 | X9: 0 | Y9: 0 | Z9: 0.03551520077 | AA9: 0 | AB9: inv(Q0)
A10: 7 | B10: 1.43 | C10: 0.132 | D10: -0.006319374492 | E10: 0.1383193745 | F10: 0.0002887122221 | S10: 4 | T10: 0.751125 | U10: 0.08649879085 | X10: 0 | Y10: 0 | Z10: 0.03739077459 | AA10: 0 | AB10: =MINVERSE(AB4:AE7) -> 
A11: 8 | S11: 5 | T11: 0.764 | U11: 0.08748157857
A12: 9 | S12: 6 | T12: 0.776875 | U12: 0.08846436629
A13: 10 | S13: 7 | T13: 0.78975 | U13: 0.08944715402
A14: 11 | S14: 8 | T14: 0.802625 | U14: 0.09042994174
A15: 12 | S15: 9 | T15: 0.8155 | U15: 0.09141272946
A16: 13 | D16: =IF(ISBLANK(B16),"",C16-($H$8+$I$8*B16)) ->  | E16: =IF(ISBLANK(B16),"",($H$8+$I$8*B16)) ->  | F16: =IF(ISBLANK(B16),"",D16^2/E16) ->  | H16: =1-L8/(SUMPRODUCT(C4:C103,C4:C103)-COUNT(C4:C103)*AVERAGE(C4:C103)^2) -> 0.8659381587 | L16: Goodness of Fit (R2) | S16: 10 | T16: 0.828375 | U16: 0.09239551718
A17: 14 | S17: 11 | T17: 0.84125 | U17: 0.0933783049
A18: 15 | H18: Functional Form | S18: 12 | T18: 0.854125 | U18: 0.09436109262
A19: 16 | H19: y = b0 + b1 x X | S19: 13 | T19: 0.867 | U19: 0.09534388034
A20: 17 | S20: 14 | T20: 0.879875 | U20: 0.09632666807
A21: 18 | S21: 15 | T21: 0.89275 | U21: 0.09730945579
A22: 19 | S22: 16 | T22: 0.905625 | U22: 0.09829224351
A23: 20 | S23: 17 | T23: 0.9185 | U23: 0.09927503123
A24: 21 | S24: 18 | T24: 0.931375 | U24: 0.100257819
A25: 22 | S25: 19 | T25: 0.94425 | U25: 0.1012406067
A26: 23 | S26: 20 | T26: 0.957125 | U26: 0.1022233944
A27: 24 | S27: 21 | T27: 0.97 | U27: 0.1032061821
A28: 25 | S28: 22 | T28: 0.982875 | U28: 0.1041889698
A29: 26 | S29: 23 | T29: 0.99575 | U29: 0.1051717576
A30: 27 | S30: 24 | T30: 1.008625 | U30: 0.1061545453
A31: 28 | S31: 25 | T31: 1.0215 | U31: 0.107137333
A32: 29 | S32: 26 | T32: 1.034375 | U32: 0.1081201207
A33: 30 | S33: 27 | T33: 1.04725 | U33: 0.1091029084
A34: 31 | S34: 28 | T34: 1.060125 | U34: 0.1100856962
A35: 32 | S35: 29 | T35: 1.073 | U35: 0.1110684839
A36: 33 | S36: 30 | T36: 1.085875 | U36: 0.1120512716
A37: =A36+1 -> 34 | S37: 31 | T37: 1.09875 | U37: 0.1130340593
A38: 35 | S38: 32 | T38: 1.111625 | U38: 0.1140168471
A39: 36 | S39: 33 | T39: =$S$4+(S39-1)*($T$4-$S$4)/($U$4-1) -> 1.1245 | U39: 0.1149996348
A40: 37 | S40: 34 | T40: 1.137375 | U40: 0.1159824225
A41: 38 | S41: 35 | T41: 1.15025 | U41: 0.1169652102
A42: 39 | S42: 36 | T42: 1.163125 | U42: 0.1179479979
A43: 40 | S43: 37 | T43: 1.176 | U43: 0.1189307857
A44: 41 | S44: 38 | T44: 1.188875 | U44: 0.1199135734
A45: 42 | S45: 39 | T45: 1.20175 | U45: 0.1208963611
A46: 43 | S46: 40 | T46: 1.214625 | U46: 0.1218791488
A47: 44 | S47: 41 | T47: 1.2275 | U47: 0.1228619365
A48: 45 | S48: 42 | T48: 1.240375 | U48: 0.1238447243
A49: 46 | S49: 43 | T49: 1.25325 | U49: 0.124827512
A50: 47 | S50: 44 | T50: 1.266125 | U50: 0.1258102997
A51: 48 | S51: 45 | T51: 1.279 | U51: 0.1267930874
A52: 49 | S52: 46 | T52: 1.291875 | U52: 0.1277758752
A53: 50 | S53: 47 | T53: 1.30475 | U53: 0.1287586629
A54: 51 | S54: 48 | T54: 1.317625 | U54: 0.1297414506
A55: 52 | S55: 49 | T55: 1.3305 | U55: 0.1307242383
A56: 53 | S56: 50 | T56: 1.343375 | U56: 0.131707026
A57: 54 | S57: 51 | T57: 1.35625 | U57: 0.1326898138
A58: 55 | S58: 52 | T58: 1.369125 | U58: 0.1336726015
A59: 56 | S59: 53 | T59: 1.382 | U59: 0.1346553892
A60: 57 | S60: 54 | T60: 1.394875 | U60: 0.1356381769
A61: 58 | S61: 55 | T61: 1.40775 | U61: 0.1366209646
A62: 59 | S62: 56 | T62: 1.420625 | U62: 0.1376037524
A63: 60 | S63: 57 | T63: 1.4335 | U63: 0.1385865401
A64: 61 | S64: 58 | T64: 1.446375 | U64: 0.1395693278
A65: 62 | S65: 59 | T65: 1.45925 | U65: 0.1405521155
A66: 63 | S66: 60 | T66: 1.472125 | U66: 0.1415349033
A67: 64 | S67: 61 | T67: 1.485 | U67: 0.142517691
A68: 65 | S68: 62 | T68: 1.497875 | U68: 0.1435004787
A69: =A68+1 -> 66 | S69: 63 | T69: 1.51075 | U69: 0.1444832664 | X69: =IF(ISBLANK($B69),"",EXP(-$I$8*$B69)*(1-EXP(-$J$8*($B69-$K$8)))) ->  | Y69: =IF(ISBLANK($B69),"",-$H$8*$B69*EXP(-$I$8*$B69)*(1-EXP(-$J$8*($B69-$K$8)))) ->  | Z69: =IF(ISBLANK($B69),"",$H$8*EXP($J$8*$K$8-($I$8+$J$8)*$B69)*($B69-$K$8)) ->  | AA69: =IF(ISBLANK($B69),"",-$H$8*EXP($J$8*$K$8-($I$8+$J$8)*$B69)*$J$8) -> 
A70: 67 | S70: 64 | T70: 1.523625 | U70: 0.1454660541
A71: 68 | S71: 65 | T71: =$S$4+(S71-1)*($T$4-$S$4)/($U$4-1) -> 1.5365 | U71: 0.1464488419
A72: 69 | S72: 66 | T72: 1.549375 | U72: =$H$8+$I$8*T72 -> 0.1474316296
A73: 70 | S73: 67 | T73: 1.56225 | U73: 0.1484144173
A74: 71 | S74: 68 | T74: 1.575125 | U74: 0.149397205
A75: 72 | S75: 69 | T75: 1.588 | U75: 0.1503799927
A76: 73 | S76: 70 | T76: 1.600875 | U76: 0.1513627805
A77: 74 | S77: 71 | T77: 1.61375 | U77: 0.1523455682
A78: 75 | S78: 72 | T78: 1.626625 | U78: 0.1533283559
A79: 76 | S79: 73 | T79: 1.6395 | U79: 0.1543111436
A80: 77 | D80: =IF(ISBLANK(B80),"",C80-($H$8+$I$8*B80)) ->  | E80: =IF(ISBLANK(B80),"",($H$8+$I$8*B80)) ->  | F80: =IF(ISBLANK(B80),"",D80^2/E80) ->  | S80: 74 | T80: 1.652375 | U80: 0.1552939314
A81: 78 | S81: 75 | T81: 1.66525 | U81: 0.1562767191
A82: 79 | S82: 76 | T82: 1.678125 | U82: 0.1572595068
A83: 80 | S83: 77 | T83: 1.691 | U83: 0.1582422945
A84: 81 | S84: 78 | T84: 1.703875 | U84: 0.1592250822
A85: 82 | S85: 79 | T85: 1.71675 | U85: 0.16020787
A86: 83 | S86: 80 | T86: 1.729625 | U86: 0.1611906577
A87: 84 | S87: 81 | T87: 1.7425 | U87: 0.1621734454
A88: 85 | S88: 82 | T88: 1.755375 | U88: 0.1631562331
A89: 86 | S89: 83 | T89: 1.76825 | U89: 0.1641390208
A90: 87 | S90: 84 | T90: 1.781125 | U90: 0.1651218086
A91: 88 | S91: 85 | T91: 1.794 | U91: 0.1661045963
A92: 89 | S92: 86 | T92: 1.806875 | U92: 0.167087384
A93: 90 | S93: 87 | T93: 1.81975 | U93: 0.1680701717
A94: 91 | S94: 88 | T94: 1.832625 | U94: 0.1690529594
A95: 92 | S95: 89 | T95: 1.8455 | U95: 0.1700357472
A96: 93 | S96: 90 | T96: 1.858375 | U96: 0.1710185349
A97: 94 | S97: 91 | T97: 1.87125 | U97: 0.1720013226
A98: 95 | S98: 92 | T98: 1.884125 | U98: 0.1729841103
A99: 96 | S99: 93 | T99: 1.897 | U99: 0.1739668981
A100: 97 | S100: 94 | T100: 1.909875 | U100: 0.1749496858
A101: 98 | S101: 95 | T101: 1.92275 | U101: 0.1759324735
A102: 99 | S102: 96 | T102: 1.935625 | U102: 0.1769152612
A103: 100 | S103: 97 | T103: =$S$4+(S103-1)*($T$4-$S$4)/($U$4-1) -> 1.9485 | U103: 0.1778980489
D104: =SUM(D4:D103) -> 3.863755299e-06 | E104: 0.8399961362 | F104: =SUM(F4:F103) -> 0.001371680611 | S104: 98 | T104: =$S$4+(S104-1)*($T$4-$S$4)/($U$4-1) -> 1.961375 | U104: 0.1788808367
S105: 99 | T105: =$S$4+(S105-1)*($T$4-$S$4)/($U$4-1) -> 1.97425 | U105: 0.1798636244
S106: 100 | T106: =$S$4+(S106-1)*($T$4-$S$4)/($U$4-1) -> 1.987125 | U106: 0.1808464121
S107: 101 | T107: =$S$4+(S107-1)*($T$4-$S$4)/($U$4-1) -> 2 | U107: 0.1818291998

Sheet Quadratic Regression
B1: Fitting the Quadratic Polynomial Model to Nutritional Response Data
B2: Data | I2: Sample Statistics | U2: Plotting Parameters | Z2: Error Analysis
A3: Point | B3: Input | C3: Output | D3: Residuals | E3: Expected | G3: Qm | I3: Min Input | J3: =MIN(B4:B103) -> 0.95 | K3: Min Output | L3: =MIN(C4:C103) -> 0.095 | N3: Instructions | U3: Min Input | V3: Max Input | W3: # of Points | Z3: Maximum(X0) | AA3: Rate Constant (X1) | AB3: Requirement(X2) | AC3: Q0 | AG3: Number of Observations, T | AH3: Number of Regressors, K | AI3: sigma
A4: 1 | B4: 0.95 | C4: 0.095 | D4: =IF(ISBLANK(B4),"",(C4-($I$8+$J$8*B4+$K$8*B4^2))) -> 0.0001329313737 | E4: =IF(ISBLANK(B4),"",(ABS(D4))) -> 0.0001329313737 | F4: =IF(ISBLANK(B4),"",($I$8+$J$8*B4+$K$8*B4^2)) -> 0.09486706863 | G4: =IF(ISBLANK(B4),"",D4^2/F4) -> 1.862685373e-07 | I4: Max Input | J4: =MAX(B4:B103) -> 1.43 | K4: Max Output | L4: =MAX(C4:C103) -> 0.132 | N4: 1. Copy data in cells B4:C103 | U4: =FLOOR(J3,1) -> 0 | V4: =CEILING(J4,1) -> 2 | W4: 101 | Z4: =IF(ISBLANK(B4),"",1) -> 1 | AA4: =IF(ISBLANK(B4),"",($K$8-B4)^2*IF(B4<$K$8,1,0)) -> 0 | AB4: =IF(ISBLANK(B4),"",2*$J$8*($K$8-B4)*IF(B4<$K$8,1,0)) -> 0 | AC4: =SUMPRODUCT(Z$4:Z$103,Z$4:Z$103) -> 7 | AD4: =SUMPRODUCT(Z$4:Z$103,AA$4:AA$103) -> 0 | AE4: =SUMPRODUCT(Z$4:Z$103,AB$4:AB$103) -> 0
A5: =A4+1 -> 2 | B5: 1.03 | C5: 0.107 | D5: =IF(ISBLANK(B5),"",(C5-($I$8+$J$8*B5+$K$8*B5^2))) -> -0.000786800183 | E5: =IF(ISBLANK(B5),"",(ABS(D5))) -> 0.000786800183 | F5: =IF(ISBLANK(B5),"",($I$8+$J$8*B5+$K$8*B5^2)) -> 0.1077868002 | G5: =IF(ISBLANK(B5),"",D5^2/F5) -> 5.743324108e-06 | N5: 2. View the data and estimate values for b0, b1 and b2 | U5: Prediction | Z5: 1 | AA5: 0 | AB5: 0 | AC5: =SUMPRODUCT(AA$4:AA$103,Z$4:Z$103) -> 0 | AD5: =SUMPRODUCT(AA$4:AA$103,AA$4:AA$103) -> 0 | AE5: =SUMPRODUCT(AA$4:AA$103,AB$4:AB$103) -> 0 | AG5: =COUNT(B4:B53) -> 7 | AH5: 3 | AI5: =SQRT(L8/(AG5-AH5)) -> 0.001029745819
A6: 3 | B6: 1.11 | C6: 0.119 | D6: 0.001018871198 | E6: 0.001018871198 | F6: 0.1179811288 | G6: 8.798852229e-06 | I6: Regression | U6: Point | V6: Input | W6: Output | Z6: 1 | AA6: 0 | AB6: 0 | AC6: =SUMPRODUCT(AB$4:AB$103,Z$4:Z$103) -> 0 | AD6: =SUMPRODUCT(AB$4:AB$103,AA$4:AA$103) -> 0 | AE6: =SUMPRODUCT(AB$4:AB$103,AB$4:AB$103) -> 0
A7: 4 | B7: 1.19 | C7: 0.125 | D7: -0.0004500544833 | E7: 0.0004500544833 | F7: 0.1254500545 | G7: 1.614579115e-06 | I7: b0 | J7: b1 | K7: b2 | L7: SSE | U7: 1 | V7: =$U$4+(U7-1)*($V$4-$U$4)/($W$4-1) -> 0 | W7: =($I$8+$J$8*V7+$K$8*V7^2) -> -0.2668990229 | Z7: 1 | AA7: 0 | AB7: 0 | AC7: inv(Q0)
A8: 5 | B8: 1.27 | C8: 0.131 | D8: 0.0008064227731 | E8: 0.0008064227731 | F8: 0.1301935772 | G8: 4.99500592e-06 | I8: -0.2668990229 | J8: 0.5830824114 | K8: -0.2129221045 | L8: =SUMPRODUCT(D4:D103,D4:D103) -> 4.241505804e-06 | N8: 3. Press the button below to run solver with current settings | V8: -0.02 | W8: =($I$8+$J$8*V8+$K$8*V8^2) -> -0.2786458399 | Z8: 1 | AA8: 0 | AB8: 0 | AC8: =MINVERSE(AC4:AE6) -> 
A9: 6 | B9: 1.35 | C9: 0.131 | D9: -0.001211697033 | E9: 0.001211697033 | F9: 0.132211697 | G9: 1.110499095e-05 | V9: -0.02 | W9: -0.2786458399 | Z9: 1 | AA9: 0 | AB9: 0
A10: 7 | B10: 1.43 | C10: 0.132 | D10: 0.000495586099 | E10: 0.000495586099 | F10: 0.1315044139 | G10: 1.867660364e-06 | I10: =1-L8/(SUMPRODUCT(C4:C103,C4:C103)-COUNT(C4:C103)*AVERAGE(C4:C103)^2) -> 0.9964829968 | L10: Goodness of Fit (R2) | V10: -0.02 | W10: -0.2786458399 | Z10: 1 | AA10: 0 | AB10: 0
A11: 8 | V11: -0.02 | W11: -0.2786458399
A12: 9 | I12: Functional Form | V12: -0.02 | W12: -0.2786458399
A13: 10 | V13: -0.02 | W13: -0.2786458399
A14: 11 | J14: y=b0 + b1x + b2x2 | V14: -0.02 | W14: -0.2786458399
A15: 12 | N15: 5. Solver will attempt to minimize SSE (red cell) by changing cells F8:H8 | V15: -0.02 | W15: -0.2786458399
A16: 13 | V16: -0.02 | W16: -0.2786458399
A17: 14 | V17: -0.02 | W17: -0.2786458399
A18: 15 | V18: -0.02 | W18: -0.2786458399
A19: 16 | V19: -0.02 | W19: -0.2786458399
A20: 17 | U20: 14 | V20: 0.26 | W20: -0.1296911302
A21: 18 | U21: 15 | V21: 0.28 | W21: -0.1203290407
A22: 19 | U22: 16 | V22: 0.3 | W22: -0.1111372889
A23: 20 | U23: 17 | V23: 0.32 | W23: -0.1021158747
A24: 21 | U24: 18 | V24: 0.34 | W24: -0.09326479828
A25: 22 | U25: 19 | V25: 0.36 | W25: -0.08458405952
A26: 23 | U26: 20 | V26: 0.38 | W26: -0.07607365843
A27: 24 | U27: 21 | V27: 0.4 | W27: -0.06773359504
A28: 25 | U28: 22 | V28: 0.42 | W28: -0.05956386932
A29: 26 | U29: 23 | V29: 0.44 | W29: -0.05156448129
A30: 27 | U30: 24 | V30: 0.46 | W30: -0.04373543095
A31: 28 | U31: 25 | V31: 0.48 | W31: -0.03607671828
A32: 29 | U32: 26 | V32: 0.5 | W32: -0.0285883433
A33: 30 | U33: 27 | V33: 0.52 | W33: -0.02127030601
A34: 31 | U34: 28 | V34: 0.54 | W34: -0.0141226064
A35: 32 | U35: 29 | V35: 0.56 | W35: -0.007145244469
A36: 33 | U36: 30 | V36: 0.58 | W36: -0.0003382202236 | Z36: =IF(ISBLANK(B36),"",1) ->  | AA36: =IF(ISBLANK(B36),"",($K$8-B36)^2*IF(B36<$K$8,1,0)) ->  | AB36: =IF(ISBLANK(B36),"",2*$J$8*($K$8-B36)*IF(B36<$K$8,1,0)) -> 
A37: 34 | U37: 31 | V37: 0.6 | W37: 0.006298466338
A38: 35 | U38: 32 | V38: 0.62 | W38: 0.01276481522
A39: 36 | U39: 33 | V39: 0.64 | W39: 0.01906082641
A40: 37 | U40: 34 | V40: 0.66 | W40: 0.02518649992
A41: 38 | U41: 35 | V41: 0.68 | W41: 0.03114183575
A42: 39 | U42: 36 | V42: 0.7 | W42: 0.03692683389
A43: 40 | U43: 37 | V43: 0.72 | W43: 0.04254149435
A44: 41 | U44: 38 | V44: 0.74 | W44: 0.04798581713
A45: 42 | U45: 39 | V45: 0.76 | W45: 0.05325980222
A46: 43 | U46: 40 | V46: 0.78 | W46: 0.05836344963
A47: 44 | U47: 41 | V47: 0.8 | W47: 0.06329675935
A48: 45 | U48: 42 | V48: 0.82 | W48: 0.06805973139
A49: 46 | U49: 43 | V49: 0.84 | W49: 0.07265236575
A50: 47 | U50: 44 | V50: 0.86 | W50: 0.07707466243
A51: 48 | U51: 45 | V51: 0.88 | W51: 0.08132662142
A52: 49 | U52: 46 | V52: 0.9 | W52: 0.08540824272
A53: 50 | U53: 47 | V53: 0.92 | W53: 0.08931952635
A54: 51 | U54: 48 | V54: 0.94 | W54: 0.09306047229
A55: 52 | U55: 49 | V55: 0.96 | W55: 0.09663108054
A56: 53 | U56: 50 | V56: 0.98 | W56: 0.1000313511
A57: 54 | U57: 51 | V57: 1 | W57: 0.103261284
A58: 55 | U58: 52 | V58: 1.02 | W58: 0.1063208792
A59: 56 | U59: 53 | V59: 1.04 | W59: 0.1092101367
A60: 57 | U60: 54 | V60: 1.06 | W60: 0.1119290566
A61: 58 | U61: 55 | V61: 1.08 | W61: 0.1144776387
A62: 59 | U62: 56 | V62: 1.1 | W62: 0.1168558832
A63: 60 | U63: 57 | V63: 1.12 | W63: 0.11906379
A64: 61 | U64: 58 | V64: 1.14 | W64: 0.1211013591
A65: 62 | U65: 59 | V65: 1.16 | W65: 0.1229685905
A66: 63 | U66: 60 | V66: 1.18 | W66: 0.1246654842
A67: 64 | U67: 61 | V67: 1.2 | W67: 0.1261920403
A68: 65 | U68: 62 | V68: 1.22 | W68: 0.1275482587 | Z68: =IF(ISBLANK(B68),"",1) ->  | AA68: =IF(ISBLANK(B68),"",($K$8-B68)^2*IF(B68<$K$8,1,0)) ->  | AB68: =IF(ISBLANK(B68),"",2*$J$8*($K$8-B68)*IF(B68<$K$8,1,0)) -> 
A69: =A68+1 -> 66 | D69: =IF(ISBLANK(B69),"",(C69-($I$8+$J$8*B69+$K$8*B69^2))) ->  | E69: =IF(ISBLANK(B69),"",(ABS(D69))) ->  | F69: =IF(ISBLANK(B69),"",($I$8+$J$8*B69+$K$8*B69^2)) ->  | G69: =IF(ISBLANK(B69),"",D69^2/F69) ->  | U69: 63 | V69: 1.24 | W69: 0.1287341394
A70: 67 | U70: 64 | V70: 1.26 | W70: 0.1297496824
A71: 68 | U71: 65 | V71: =$U$4+(U71-1)*($V$4-$U$4)/($W$4-1) -> 1.28 | W71: 0.1305948877
A72: 69 | U72: 66 | V72: 1.3 | W72: =($I$8+$J$8*V72+$K$8*V72^2) -> 0.1312697553
A73: 70 | U73: 67 | V73: 1.32 | W73: 0.1317742853
A74: 71 | U74: 68 | V74: 1.34 | W74: 0.1321084775
A75: 72 | U75: 69 | V75: 1.36 | W75: 0.1322723321
A76: 73 | U76: 70 | V76: 1.38 | W76: 0.132265849
A77: 74 | U77: 71 | V77: 1.4 | W77: 0.1320890282
A78: 75 | U78: 72 | V78: 1.42 | W78: 0.1317418698
A79: 76 | U79: 73 | V79: 1.44 | W79: 0.1312243736
A80: 77 | U80: 74 | V80: 1.46 | W80: 0.1305365398
A81: 78 | U81: 75 | V81: 1.48 | W81: 0.1296783683
A82: 79 | U82: 76 | V82: 1.5 | W82: 0.1286498591
A83: 80 | U83: 77 | V83: 1.52 | W83: 0.1274510122
A84: 81 | U84: 78 | V84: 1.54 | W84: 0.1260818276
A85: 82 | U85: 79 | V85: 1.56 | W85: 0.1245423054
A86: 83 | U86: 80 | V86: 1.58 | W86: 0.1228324454
A87: 84 | U87: 81 | V87: 1.6 | W87: 0.1209522478
A88: 85 | U88: 82 | V88: 1.62 | W88: 0.1189017125
A89: 86 | U89: 83 | V89: 1.64 | W89: 0.1166808395
A90: 87 | U90: 84 | V90: 1.66 | W90: 0.1142896288
A91: 88 | U91: 85 | V91: 1.68 | W91: 0.1117280805
A92: 89 | U92: 86 | V92: 1.7 | W92: 0.1089961945
A93: 90 | U93: 87 | V93: 1.72 | W93: 0.1060939707
A94: 91 | U94: 88 | V94: 1.74 | W94: 0.1030214093
A95: 92 | U95: 89 | V95: 1.76 | W95: 0.09977851024
A96: 93 | U96: 90 | V96: 1.78 | W96: 0.09636527347
A97: 94 | U97: 91 | V97: 1.8 | W97: 0.09278169902
A98: 95 | U98: 92 | V98: 1.82 | W98: 0.08902778688
A99: 96 | U99: 93 | V99: 1.84 | W99: 0.08510353706
A100: 97 | U100: 94 | V100: 1.86 | W100: 0.08100894955
A101: 98 | U101: 95 | V101: 1.88 | W101: 0.07674402436
A102: 99 | U102: 96 | V102: 1.9 | W102: 0.07230876149
A103: 100 | U103: 97 | V103: =$U$4+(U103-1)*($V$4-$U$4)/($W$4-1) -> 1.92 | W103: 0.06770316093
D104: =SUM(D4:D103) -> 5.259744686e-06 | E104: 0.004902363143 | F104: =SUM(F4:F103) -> 0.8399947403 | G104: =SUM(G4:G103) -> 3.431068122e-05 | U104: 98 | V104: =$U$4+(U104-1)*($V$4-$U$4)/($W$4-1) -> 1.94 | W104: 0.06292722269
U105: 99 | V105: =$U$4+(U105-1)*($V$4-$U$4)/($W$4-1) -> 1.96 | W105: 0.05798094677
U106: 100 | V106: =$U$4+(U106-1)*($V$4-$U$4)/($W$4-1) -> 1.98 | W106: 0.05286433316
U107: 101 | V107: =$U$4+(U107-1)*($V$4-$U$4)/($W$4-1) -> 2 | W107: 0.04757738187

Sheet Broken Line
B1: Fitting the Broken-Line (Ascending Linear) Model to Nutritional Response Data
B2: Data | H2: Sample Statistics | S2: Plotting Parameters | X2: Error Analysis
A3: Point | B3: Input | C3: Output | D3: Residuals | E3: Expected | F3: Qm | H3: Min Input | I3: =MIN(B4:B103) -> 0.95 | J3: Min Output | K3: =MIN(C4:C103) -> 0.095 | N3: Instructions | S3: Min Input | T3: Max Input | U3: # of Points | X3: Maximum(X0) | Y3: Rate Constant (X1) | Z3: Requirement(X2) | AA3: Q0 | AE3: Number of Observations, T | AF3: Number of Regressors, K | AG3: sigma
A4: 1 | B4: 0.95 | C4: 0.095 | D4: =IF(ISBLANK(B4),"",IF(B4<$J$8,C4-($H$8+$I$8*($J$8-B4)),C4-$H$8)) -> -0.001200804914 | E4: =IF(ISBLANK(B4),"",IF(B4<$J$8,($H$8+$I$8*($J$8-B4)),$H$8)) -> 0.09620080491 | F4: =IF(ISBLANK(B4),"",D4^2/E4) -> 1.49887773e-05 | H4: Max Input | I4: =MAX(B4:B103) -> 1.43 | J4: Max Output | K4: =MAX(C4:C103) -> 0.132 | N4: 1. Copy data in cells B4:C103 | S4: =FLOOR(I3,1) -> 0 | T4: =CEILING(I4,1) -> 2 | U4: 101 | X4: =IF(ISBLANK(B4),"",1) -> 1 | Y4: =IF(ISBLANK(B4),"",($J$8-B4)*IF(B4<$J$8,1,0)) -> 0.2755518444 | Z4: =IF(ISBLANK(B4),"",$I$8*IF(B4<$J$8,1,0)) -> -0.127497357 | AA4: =SUMPRODUCT(X$4:X$103,X$4:X$103) -> 7 | AB4: =SUMPRODUCT(X$4:X$103,Y$4:Y$103) -> 0.6222073778 | AC4: =SUMPRODUCT(X$4:X$103,Z$4:Z$103) -> -0.5099894281
A5: =A4+1 -> 2 | B5: 1.03 | C5: 0.107 | D5: =IF(ISBLANK(B5),"",IF(B5<$J$8,C5-($H$8+$I$8*($J$8-B5)),C5-$H$8)) -> 0.0005994065234 | E5: =IF(ISBLANK(B5),"",IF(B5<$J$8,($H$8+$I$8*($J$8-B5)),$H$8)) -> 0.1064005935 | F5: =IF(ISBLANK(B5),"",D5^2/E5) -> 3.376749777e-06 | N5: 2. View the data and estimate values for the Maximum and Requirement in cells H8 and J8 | S5: Prediction | X5: 1 | Y5: =IF(ISBLANK(B5),"",($J$8-B5)*IF(B5<$J$8,1,0)) -> 0.1955518444 | Z5: =IF(ISBLANK(B5),"",$I$8*IF(B5<$J$8,1,0)) -> -0.127497357 | AA5: =SUMPRODUCT(Y$4:Y$103,X$4:X$103) -> 0.6222073778 | AB5: =SUMPRODUCT(Y$4:Y$103,Y$4:Y$103) -> 0.1287855052 | AC5: =SUMPRODUCT(Y$4:Y$103,Z$4:Z$103) -> -0.07932979619 | AE5: =COUNT(B4:B53) -> 7 | AF5: 3 | AG5: =SQRT(K8/(AE5-AF5)) -> 0.001693123468
A6: 3 | B6: 1.11 | C6: 0.119 | D6: 0.00239961796 | E6: 0.116600382 | F6: 4.938376921e-05 | H6: Regression | S6: Point | T6: Input | U6: Output | X6: 1 | Y6: 0.1155518444 | Z6: -0.127497357 | AA6: =SUMPRODUCT(Z$4:Z$103,X$4:X$103) -> -0.5099894281 | AB6: =SUMPRODUCT(Z$4:Z$103,Y$4:Y$103) -> -0.07932979619 | AC6: =SUMPRODUCT(Z$4:Z$103,Z$4:Z$103) -> 0.06502230421
A7: 4 | B7: 1.19 | C7: 0.125 | D7: -0.001800170603 | E7: 0.1268001706 | F7: 2.555685992e-05 | H7: Max or Min | I7: Rate Constant | J7: Requirement | K7: SSE | S7: 1 | T7: =$S$4+(S7-1)*($T$4-$S$4)/($U$4-1) -> 0 | U7: =IF(T7<$J$8,($H$8+$I$8*($J$8-T7)),$H$8) -> -0.02492168427 | X7: 1 | Y7: 0.03555184444 | Z7: -0.127497357 | AA7: inv(Q0)
A8: 5 | B8: 1.27 | C8: 0.131 | D8: -0.0003329368065 | E8: 0.1313329368 | F8: 8.440146074e-07 | H8: 0.1313329368 | I8: -0.127497357 | J8: 1.225551844 | K8: =SUMPRODUCT(D4:D103,D4:D103) -> 1.146666831e-05 | N8: 3. Guess the Rate Constant values in cell I8 until the predicted line is close to the observed points | S8: 2 | T8: 0.02 | U8: -0.02237173713 | X8: 1 | Y8: 0 | Z8: 0 | AA8: =MINVERSE(AA4:AC6) -> 0.3333333333 | AB8: 1.015061051e-15 | AC8: 2.61443328
A9: 6 | B9: 1.35 | C9: 0.131 | D9: -0.0003329368065 | E9: 0.1313329368 | F9: 8.440146074e-07 | S9: 3 | T9: 0.04 | U9: -0.01982178999 | X9: 1 | Y9: 0 | Z9: 0 | AA9: 0 | AB9: 31.25 | AC9: 38.12624239
A10: 7 | B10: 1.43 | C10: 0.132 | D10: 0.0006670631935 | E10: 0.1313329368 | F10: 3.388131835e-06 | H10: =IF(ISNUMBER(H13),H$8-NORMSINV(0.975)*H$13,"N/A") -> 0.1294170224 | I10: =IF(ISNUMBER(I13),I$8-NORMSINV(0.975)*I$13,"N/A") -> -0.1460481181 | J10: =IF(ISNUMBER(J13),J$8-NORMSINV(0.975)*J$13,"N/A") -> 1.195428579 | K10: Lower 95% Confidence Levels | S10: 4 | T10: 0.06 | U10: -0.01727184285 | X10: 1 | Y10: 0 | Z10: 0 | AA10: 2.61443328 | AB10: 38.12624239 | AC10: 82.4006537
A11: 8 | H11: =IF(ISNUMBER(H14),H$8+NORMSINV(0.975)*H$13,"N/A") -> 0.1332488512 | I11: =IF(ISNUMBER(I14),I$8+NORMSINV(0.975)*I$13,"N/A") -> -0.108946596 | J11: =IF(ISNUMBER(J14),J$8+NORMSINV(0.975)*J$13,"N/A") -> 1.25567511 | K11: Upper 95% Confidence Levels | N11: 4. Press the button below to run solver with current settings | S11: 5 | T11: 0.08 | U11: -0.01472189571
A12: 9 | S12: 6 | T12: 0.1 | U12: -0.01217194857
A13: 10 | H13: =IF(ISNUMBER(AA8),SQRT(AA8)*$AG$5,"N/A") -> 0.0009775252901 | I13: =IF(ISNUMBER(AB9),SQRT(AB9)*$AG$5,"N/A") -> 0.009464847923 | J13: =IF(ISNUMBER(AC10),SQRT(AC10)*$AG$5,"N/A") -> 0.0153692954 | K13: Standard Errors | S13: 7 | T13: 0.12 | U13: -0.009622001427
A14: 11 | H14: =IF(ISNUMBER(H13),H8/H13,"N/A") -> 134.3524696 | I14: =IF(ISNUMBER(I13),I8/I13,"N/A") -> -13.47061866 | J14: =IF(ISNUMBER(J13),J8/J13,"N/A") -> 79.74027515 | K14: t-Statistics | N14: 5. Solver will attempt to minimize SSE (red cell) by changing cells H8:J8 | S14: 8 | T14: 0.14 | U14: -0.007072054286
A15: 12 | H15: =IF(ISNUMBER(H14),2*TDIST(ABS(H14),$AE$5-$AF$5,1),"N/A") -> 1.840806984e-08 | I15: =IF(ISNUMBER(I14),2*TDIST(ABS(I14),$AE$5-$AF$5,1),"N/A") -> 0.000175716057 | J15: =IF(ISNUMBER(J14),2*TDIST(ABS(J14),$AE$5-$AF$5,1),"N/A") -> 1.482467312e-07 | K15: p-values | S15: 9 | T15: 0.16 | U15: -0.004522107146 | X15: =IF(ISBLANK(B15),"",1) -> 
A16: 13 | H16: =1-K8/(SUMPRODUCT(C4:C103,C4:C103)-COUNT(C4:C103)*AVERAGE(C4:C103)^2) -> 0.9904919832 | K16: Goodness of Fit (R2) | S16: 10 | T16: 0.18 | U16: -0.001972160005 | X16: =IF(ISBLANK(B16),"",1) -> 
A17: 14 | S17: 11 | T17: 0.2 | U17: 0.0005777871359 | X17: =IF(ISBLANK(B17),"",1) -> 
A18: 15 | H18: Functional Form | S18: 12 | T18: 0.22 | U18: 0.003127734277 | X18: =IF(ISBLANK(B18),"",1) -> 
A19: 16 | H19: y ={ | I19: Maximum, | L19: if x > Requirement | S19: 13 | T19: 0.24 | U19: 0.005677681417
A20: 17 | I20: Maximum + Rate Constant×(Requirement - x) | L20: if x £ Requirement | S20: 14 | T20: 0.26 | U20: 0.008227628558
A21: 18 | S21: 15 | T21: 0.28 | U21: 0.0107775757
A22: 19 | S22: 16 | T22: 0.3 | U22: 0.01332752284
A23: 20 | S23: 17 | T23: 0.32 | U23: 0.01587746998
A24: 21 | S24: 18 | T24: 0.34 | U24: 0.01842741712
A25: 22 | S25: 19 | T25: 0.36 | U25: 0.02097736426
A26: 23 | S26: 20 | T26: 0.38 | U26: 0.0235273114
A27: 24 | S27: 21 | T27: 0.4 | U27: 0.02607725854
A28: 25 | S28: 22 | T28: 0.42 | U28: 0.02862720568
A29: 26 | S29: 23 | T29: 0.44 | U29: 0.03117715282
A30: 27 | S30: 24 | T30: 0.46 | U30: 0.03372709997
A31: 28 | S31: 25 | T31: 0.48 | U31: 0.03627704711
A32: 29 | S32: 26 | T32: 0.5 | U32: 0.03882699425
A33: 30 | S33: 27 | T33: 0.52 | U33: 0.04137694139
A34: 31 | S34: 28 | T34: 0.54 | U34: 0.04392688853
A35: 32 | S35: 29 | T35: 0.56 | U35: 0.04647683567
A36: 33 | S36: 30 | T36: 0.58 | U36: 0.04902678281 | X36: =IF(ISBLANK(B36),"",1) -> 
A37: =A36+1 -> 34 | S37: 31 | T37: 0.6 | U37: 0.05157672995
A38: 35 | S38: 32 | T38: 0.62 | U38: 0.05412667709
A39: 36 | S39: 33 | T39: =$S$4+(S39-1)*($T$4-$S$4)/($U$4-1) -> 0.64 | U39: =IF(T39<$J$8,($H$8+$I$8*($J$8-T39)),$H$8) -> 0.05667662423
A40: 37 | S40: 34 | T40: 0.66 | U40: 0.05922657137
A41: 38 | S41: 35 | T41: 0.68 | U41: 0.06177651851
A42: 39 | S42: 36 | T42: 0.7 | U42: 0.06432646565
A43: 40 | S43: 37 | T43: 0.72 | U43: 0.0668764128
A44: 41 | S44: 38 | T44: 0.74 | U44: 0.06942635994
A45: 42 | S45: 39 | T45: 0.76 | U45: 0.07197630708
A46: 43 | S46: 40 | T46: 0.78 | U46: 0.07452625422
A47: 44 | S47: 41 | T47: 0.8 | U47: 0.07707620136
A48: 45 | S48: 42 | T48: 0.82 | U48: 0.0796261485
A49: 46 | S49: 43 | T49: 0.84 | U49: 0.08217609564
A50: 47 | S50: 44 | T50: 0.86 | U50: 0.08472604278
A51: 48 | S51: 45 | T51: 0.88 | U51: 0.08727598992
A52: 49 | S52: 46 | T52: 0.9 | U52: 0.08982593706
A53: 50 | S53: 47 | T53: 0.92 | U53: 0.0923758842
A54: 51 | S54: 48 | T54: 0.94 | U54: 0.09492583134 | X54: =IF(ISBLANK(B54),"",1) -> 
A55: 52 | S55: 49 | T55: 0.96 | U55: 0.09747577848
A56: 53 | S56: 50 | T56: 0.98 | U56: 0.1000257256
A57: 54 | S57: 51 | T57: 1 | U57: 0.1025756728
A58: 55 | S58: 52 | T58: 1.02 | U58: 0.1051256199
A59: 56 | S59: 53 | T59: 1.04 | U59: 0.107675567
A60: 57 | S60: 54 | T60: 1.06 | U60: 0.1102255142
A61: 58 | S61: 55 | T61: 1.08 | U61: 0.1127754613
A62: 59 | S62: 56 | T62: 1.1 | U62: 0.1153254085
A63: 60 | S63: 57 | T63: 1.12 | U63: 0.1178753556
A64: 61 | S64: 58 | T64: 1.14 | U64: 0.1204253028
A65: 62 | S65: 59 | T65: 1.16 | U65: 0.1229752499
A66: 63 | S66: 60 | T66: 1.18 | U66: 0.125525197
A67: 64 | S67: 61 | T67: 1.2 | U67: 0.1280751442
A68: 65 | S68: 62 | T68: 1.22 | U68: 0.1306250913
A69: =A68+1 -> 66 | D69: =IF(ISBLANK(B69),"",IF(B69<$J$8,C69-($H$8+$I$8*($J$8-B69)),C69-$H$8)) ->  | E69: =IF(ISBLANK(B69),"",IF(B69<$J$8,($H$8+$I$8*($J$8-B69)),$H$8)) ->  | F69: =IF(ISBLANK(B69),"",D69^2/E69) ->  | S69: 63 | T69: 1.24 | U69: 0.1313329368 | Y69: =IF(ISBLANK(B69),"",($J$8-B69)*IF(B69<$J$8,1,0)) ->  | Z69: =IF(ISBLANK(B69),"",$I$8*IF(B69<$J$8,1,0)) -> 
A70: 67 | S70: 64 | T70: 1.26 | U70: 0.1313329368
A71: 68 | S71: 65 | T71: =$S$4+(S71-1)*($T$4-$S$4)/($U$4-1) -> 1.28 | U71: =IF(T71<$J$8,($H$8+$I$8*($J$8-T71)),$H$8) -> 0.1313329368
A72: 69 | S72: 66 | T72: 1.3 | U72: 0.1313329368
A73: 70 | S73: 67 | T73: 1.32 | U73: 0.1313329368
A74: 71 | S74: 68 | T74: 1.34 | U74: 0.1313329368
A75: 72 | S75: 69 | T75: 1.36 | U75: 0.1313329368
A76: 73 | S76: 70 | T76: 1.38 | U76: 0.1313329368
A77: 74 | S77: 71 | T77: 1.4 | U77: 0.1313329368
A78: 75 | S78: 72 | T78: 1.42 | U78: 0.1313329368
A79: 76 | S79: 73 | T79: 1.44 | U79: 0.1313329368
A80: 77 | S80: 74 | T80: 1.46 | U80: 0.1313329368
A81: 78 | S81: 75 | T81: 1.48 | U81: 0.1313329368
A82: 79 | S82: 76 | T82: 1.5 | U82: 0.1313329368
A83: 80 | S83: 77 | T83: 1.52 | U83: 0.1313329368
A84: 81 | S84: 78 | T84: 1.54 | U84: 0.1313329368
A85: 82 | S85: 79 | T85: 1.56 | U85: 0.1313329368
A86: 83 | S86: 80 | T86: 1.58 | U86: 0.1313329368
A87: 84 | S87: 81 | T87: 1.6 | U87: 0.1313329368
A88: 85 | S88: 82 | T88: 1.62 | U88: 0.1313329368
A89: 86 | S89: 83 | T89: 1.64 | U89: 0.1313329368
A90: 87 | S90: 84 | T90: 1.66 | U90: 0.1313329368
A91: 88 | S91: 85 | T91: 1.68 | U91: 0.1313329368
A92: 89 | S92: 86 | T92: 1.7 | U92: 0.1313329368
A93: 90 | S93: 87 | T93: 1.72 | U93: 0.1313329368
A94: 91 | S94: 88 | T94: 1.74 | U94: 0.1313329368
A95: 92 | S95: 89 | T95: 1.76 | U95: 0.1313329368
A96: 93 | S96: 90 | T96: 1.78 | U96: 0.1313329368
A97: 94 | S97: 91 | T97: 1.8 | U97: 0.1313329368
A98: 95 | S98: 92 | T98: 1.82 | U98: 0.1313329368
A99: 96 | S99: 93 | T99: 1.84 | U99: 0.1313329368
A100: 97 | S100: 94 | T100: 1.86 | U100: 0.1313329368
A101: 98 | S101: 95 | T101: 1.88 | U101: 0.1313329368 | X101: =IF(ISBLANK(B101),"",1) -> 
A102: 99 | S102: 96 | T102: 1.9 | U102: 0.1313329368 | X102: =IF(ISBLANK(B102),"",1) -> 
A103: =A102+1 -> 100 | E103: =IF(ISBLANK(B103),"",IF(B103<$J$8,($H$8+$I$8*($J$8-B103)),$H$8)) ->  | F103: =IF(ISBLANK(B103),"",D103^2/E103) ->  | S103: 97 | T103: =$S$4+(S103-1)*($T$4-$S$4)/($U$4-1) -> 1.92 | U103: =IF(T103<$J$8,($H$8+$I$8*($J$8-T103)),$H$8) -> 0.1313329368 | X103: =IF(ISBLANK(B103),"",1) -> 
D104: =SUM(D4:D103) -> -7.614517708e-07 | E104: 0.8400007615 | F104: =SUM(F4:F103) -> 9.838231725e-05 | S104: 98 | T104: =$S$4+(S104-1)*($T$4-$S$4)/($U$4-1) -> 1.94 | U104: =IF(T104<$J$8,($H$8+$I$8*($J$8-T104)),$H$8) -> 0.1313329368
S105: 99 | T105: =$S$4+(S105-1)*($T$4-$S$4)/($U$4-1) -> 1.96 | U105: =IF(T105<$J$8,($H$8+$I$8*($J$8-T105)),$H$8) -> 0.1313329368
S106: 100 | T106: =$S$4+(S106-1)*($T$4-$S$4)/($U$4-1) -> 1.98 | U106: =IF(T106<$J$8,($H$8+$I$8*($J$8-T106)),$H$8) -> 0.1313329368
S107: 101 | T107: =$S$4+(S107-1)*($T$4-$S$4)/($U$4-1) -> 2 | U107: =IF(T107<$J$8,($H$8+$I$8*($J$8-T107)),$H$8) -> 0.1313329368

Sheet Broken Quadratic
B1: Fitting the Broken-Line (Ascending Quadratic) Model to Nutritional Response Data
B2: Data | H2: Sample Statistics | S2: Plotting Parameters | X2: Error Analysis
A3: Point | B3: Input | C3: Output | D3: Residuals | E3: Expected | F3: Qm | H3: Min Input | I3: =MIN(B4:B103) -> 0.95 | J3: Min Output | K3: =MIN(C4:C103) -> 0.095 | N3: Instructions | S3: Min Input | T3: Max Input | U3: # of Points | X3: Maximum(X0) | Y3: Rate Constant (X1) | Z3: Requirement(X2) | AA3: Q0 | AE3: Number of Observations, T | AF3: Number of Regressors, K | AG3: sigma
A4: 1 | B4: 0.95 | C4: 0.095 | D4: =IF(ISBLANK(B4),"",IF(B4<$J$8,C4-($H$8+$I$8*($J$8-B4)^2),C4-$H$8)) -> 0.0003943264951 | E4: =IF(ISBLANK(B4),"",IF(B4<$J$8,($H$8+$I$8*($J$8-B4)^2),$H$8)) -> 0.0946056735 | F4: =IF(ISBLANK(B4),"",D4^2/E4) -> 1.643594713e-06 | H4: Max Input | I4: =MAX(B4:B103) -> 1.43 | J4: Max Output | K4: =MAX(C4:C103) -> 0.132 | N4: 1. Copy data in cells B4:C103 | S4: =FLOOR(I3,1) -> 0 | T4: =CEILING(I4,1) -> 2 | U4: 101 | X4: =IF(ISBLANK(B4),"",1) -> 1 | Y4: =IF(ISBLANK(B4),"",($J$8-B4)^2*IF(B4<$J$8,1,0)) -> 0.1612725794 | Z4: =IF(ISBLANK(B4),"",2*$I$8*($J$8-B4)*IF(B4<$J$8,1,0)) -> -0.184672232 | AA4: =SUMPRODUCT(X$4:X$103,X$4:X$103) -> 7 | AB4: =SUMPRODUCT(X$4:X$103,Y$4:Y$103) -> 0.3558252993 | AC4: =SUMPRODUCT(X$4:X$103,Z$4:Z$103) -> -0.5562068593
A5: =A4+1 -> 2 | B5: 1.03 | C5: 0.107 | D5: =IF(ISBLANK(B5),"",IF(B5<$J$8,C5-($H$8+$I$8*($J$8-B5)^2),C5-$H$8)) -> -0.0009079146452 | E5: =IF(ISBLANK(B5),"",IF(B5<$J$8,($H$8+$I$8*($J$8-B5)^2),$H$8)) -> 0.1079079146 | F5: =IF(ISBLANK(B5),"",D5^2/E5) -> 7.639004104e-06 | N5: 2. View the data and estimate values for the Maximum and Requirement in cells H8 and J8 | S5: Prediction | X5: 1 | Y5: =IF(ISBLANK(B5),"",($J$8-B5)^2*IF(B5<$J$8,1,0)) -> 0.1034185676 | Z5: =IF(ISBLANK(B5),"",2*$I$8*($J$8-B5)*IF(B5<$J$8,1,0)) -> -0.1478837965 | AA5: =SUMPRODUCT(Y$4:Y$103,X$4:X$103) -> 0.3558252993 | AB5: =SUMPRODUCT(Y$4:Y$103,Y$4:Y$103) -> 0.04083673628 | AC5: =SUMPRODUCT(Y$4:Y$103,Z$4:Z$103) -> -0.05375046811 | AE5: =COUNT(B4:B53) -> 7 | AF5: 3 | AG5: =SQRT(K8/(AE5-AF5)) -> 0.000903415759
A6: 3 | B6: 1.11 | C6: 0.119 | D6: 0.000732919056 | E6: 0.1182670809 | F6: 4.542010663e-06 | H6: Regression | S6: Point | T6: Input | U6: Output | X6: 1 | Y6: 0.05836455578 | Z6: -0.111095361 | AA6: =SUMPRODUCT(Z$4:Z$103,X$4:X$103) -> -0.5562068593 | AB6: =SUMPRODUCT(Z$4:Z$103,Y$4:Y$103) -> -0.05375046811 | AC6: =SUMPRODUCT(Z$4:Z$103,Z$4:Z$103) -> 0.07524531901
A7: 4 | B7: 1.19 | C7: 0.125 | D7: -0.0006831724013 | E7: 0.1256831724 | F7: 3.713500551e-06 | H7: Max or Min | I7: Rate Constant | J7: Requirement | K7: SSE | S7: 1 | T7: =$S$4+(S7-1)*($T$4-$S$4)/($U$4-1) -> 0 | U7: =IF(T7<$J$8,($H$8+$I$8*($J$8-T7)^2),$H$8) -> -0.288342716 | X7: 1 | Y7: 0.02611054398 | Z7: -0.07430692546 | AA7: inv(Q0)
A8: 5 | B8: 1.27 | C8: 0.131 | D8: 0.0008438109828 | E8: 0.130156189 | F8: 5.47048112e-06 | H8: 0.1316867103 | I8: -0.229927722 | J8: 1.351587574 | K8: =SUMPRODUCT(D4:D53,D4:D53) -> 3.264640135e-06 | N8: 3. Guess the Rate Constant values in cell I8 until the predicted line is close to the observed points | S8: 2 | T8: 0.02 | U8: =IF(T8<$J$8,($H$8+$I$8*($J$8-T8)^2),$H$8) -> -0.276003989 | X8: 1 | Y8: 0.006656532187 | Z8: -0.03751848994 | AA8: =MINVERSE(AA4:AC6) -> 0.4580461526 | AB8: 7.786693914 | AC8: 8.948156028
A9: 6 | B9: 1.35 | C9: 0.131 | D9: -0.0006861307916 | E9: 0.1316861308 | F9: 3.574981362e-06 | S9: 3 | T9: 0.04 | U9: -0.2638492042 | X9: 1 | Y9: 2.520390341e-06 | Z9: -0.0007300544214 | AA9: 7.786693914 | AB9: 542.0703064 | AC9: 444.7791002
A10: 7 | B10: 1.43 | C10: 0.132 | D10: 0.0003132897007 | E10: 0.1316867103 | F10: 7.453328918e-07 | H10: =IF(ISNUMBER(H13),H$8-NORMSINV(0.975)*H$13,"N/A") -> 0.1304883418 | I10: =IF(ISNUMBER(I13),I$8-NORMSINV(0.975)*I$13,"N/A") -> -0.2711529971 | J10: =IF(ISNUMBER(J13),J$8-NORMSINV(0.975)*J$13,"N/A") -> 1.316300457 | K10: Lower 95% Confidence Levels | S10: 4 | T10: 0.06 | U10: -0.2518783616 | X10: 1 | Y10: 0 | Z10: 0 | AA10: 8.948156028 | AB10: 444.7791002 | AC10: 397.1557433
A11: 8 | H11: =IF(ISNUMBER(H14),H$8+NORMSINV(0.975)*H$13,"N/A") -> 0.1328850788 | I11: =IF(ISNUMBER(I14),I$8+NORMSINV(0.975)*I$13,"N/A") -> -0.1887024469 | J11: =IF(ISNUMBER(J14),J$8+NORMSINV(0.975)*J$13,"N/A") -> 1.386874691 | K11: Upper 95% Confidence Levels | N11: 4. Press the button below to run solver with current settings | S11: 5 | T11: 0.08 | U11: -0.2400914611
A12: 9 | S12: 6 | T12: 0.1 | U12: -0.2284885028
A13: 10 | H13: =IF(ISNUMBER(AA8),SQRT(AA8)*$AG$5,"N/A") -> 0.0006114237184 | I13: =IF(ISNUMBER(AB9),SQRT(AB9)*$AG$5,"N/A") -> 0.02103369011 | J13: =IF(ISNUMBER(AC10),SQRT(AC10)*$AG$5,"N/A") -> 0.01800396192 | K13: Standard Errors | S13: 7 | T13: 0.12 | U13: -0.2170694867
A14: 11 | H14: =IF(ISNUMBER(H13),H8/H13,"N/A") -> 215.3771703 | I14: =IF(ISNUMBER(I13),I8/I13,"N/A") -> -10.93140199 | J14: =IF(ISNUMBER(J13),J8/J13,"N/A") -> 75.07167476 | K14: t-Statistics | S14: 8 | T14: 0.14 | U14: -0.2058344128
A15: 12 | H15: =IF(ISNUMBER(H14),2*TDIST(ABS(H14),$AE$5-$AF$5,1),"N/A") -> 2.787983316e-09 | I15: =IF(ISNUMBER(I14),2*TDIST(ABS(I14),$AE$5-$AF$5,1),"N/A") -> 0.0003977395607 | J15: =IF(ISNUMBER(J14),2*TDIST(ABS(J14),$AE$5-$AF$5,1),"N/A") -> 1.886832159e-07 | K15: p-values | N15: 5. Solver will attempt to minimize SSE (red cell) by changing cells H8:J8 | S15: 9 | T15: 0.16 | U15: -0.1947832811
A16: 13 | H16: =1-K8/(SUMPRODUCT(C4:C103,C4:C103)-COUNT(C4:C103)*AVERAGE(C4:C103)^2) -> 0.9972930015 | K16: Goodness of Fit (R2) | S16: 10 | T16: 0.18 | U16: -0.1839160915
A17: 14 | S17: 11 | T17: 0.2 | U17: -0.1732328441
A18: 15 | H18: Functional Form | S18: 12 | T18: 0.22 | U18: -0.1627335389
A19: 16 | H19: y ={ | I19: Maximum, | L19: if x > Requirement | S19: 13 | T19: 0.24 | U19: -0.1524181759
A20: 17 | I20: Maximum + Rate Constant×(Requirement - x)2 | L20: if x £ Requirement | S20: 14 | T20: 0.26 | U20: -0.142286755
A21: 18 | S21: 15 | T21: 0.28 | U21: -0.1323392763
A22: 19 | S22: 16 | T22: 0.3 | U22: -0.1225757398
A23: 20 | S23: 17 | T23: 0.32 | U23: -0.1129961455
A24: 21 | S24: 18 | T24: 0.34 | U24: -0.1036004934
A25: 22 | S25: 19 | T25: 0.36 | U25: -0.09438878341
A26: 23 | S26: 20 | T26: 0.38 | U26: -0.08536101562
A27: 24 | S27: 21 | T27: 0.4 | U27: -0.07651719
A28: 25 | S28: 22 | T28: 0.42 | U28: -0.06785730657
A29: 26 | S29: 23 | T29: 0.44 | U29: -0.05938136531
A30: 27 | S30: 24 | T30: 0.46 | U30: -0.05108936623
A31: 28 | S31: 25 | T31: 0.48 | U31: -0.04298130933
A32: 29 | S32: 26 | T32: 0.5 | U32: -0.0350571946
A33: 30 | S33: 27 | T33: 0.52 | U33: -0.02731702206
A34: 31 | S34: 28 | T34: 0.54 | U34: -0.01976079169
A35: 32 | S35: 29 | T35: 0.56 | U35: -0.01238850349
A36: 33 | S36: 30 | T36: 0.58 | U36: -0.00520015748 | X36: =IF(ISBLANK(B36),"",1) -> 
A37: =A36+1 -> 34 | S37: 31 | T37: 0.6 | U37: 0.001804246357
A38: 35 | S38: 32 | T38: 0.62 | U38: 0.008624708016
A39: 36 | S39: 33 | T39: =$S$4+(S39-1)*($T$4-$S$4)/($U$4-1) -> 0.64 | U39: 0.0152612275
A40: 37 | S40: 34 | T40: 0.66 | U40: 0.0217138048
A41: 38 | S41: 35 | T41: 0.68 | U41: 0.02798243993
A42: 39 | S42: 36 | T42: 0.7 | U42: 0.03406713288
A43: 40 | S43: 37 | T43: 0.72 | U43: 0.03996788365
A44: 41 | S44: 38 | T44: 0.74 | U44: 0.04568469224
A45: 42 | S45: 39 | T45: 0.76 | U45: 0.05121755866
A46: 43 | S46: 40 | T46: 0.78 | U46: 0.0565664829
A47: 44 | S47: 41 | T47: 0.8 | U47: 0.06173146496
A48: 45 | S48: 42 | T48: 0.82 | U48: 0.06671250484
A49: 46 | S49: 43 | T49: 0.84 | U49: 0.07150960255
A50: 47 | S50: 44 | T50: 0.86 | U50: 0.07612275808
A51: 48 | S51: 45 | T51: 0.88 | U51: 0.08055197143
A52: 49 | S52: 46 | T52: 0.9 | U52: 0.0847972426
A53: 50 | S53: 47 | T53: 0.92 | U53: 0.08885857159
A54: 51 | S54: 48 | T54: 0.94 | U54: 0.09273595841
A55: 52 | S55: 49 | T55: 0.96 | U55: 0.09642940305
A56: 53 | S56: 50 | T56: 0.98 | U56: 0.09993890552
A57: 54 | S57: 51 | T57: 1 | U57: 0.1032644658
A58: 55 | S58: 52 | T58: 1.02 | U58: 0.1064060839
A59: 56 | S59: 53 | T59: 1.04 | U59: 0.1093637598
A60: 57 | S60: 54 | T60: 1.06 | U60: 0.1121374936
A61: 58 | S61: 55 | T61: 1.08 | U61: 0.1147272852
A62: 59 | S62: 56 | T62: 1.1 | U62: 0.1171331346
A63: 60 | S63: 57 | T63: 1.12 | U63: 0.1193550418
A64: 61 | S64: 58 | T64: 1.14 | U64: 0.1213930068
A65: 62 | S65: 59 | T65: 1.16 | U65: 0.1232470297
A66: 63 | S66: 60 | T66: 1.18 | U66: 0.1249171104
A67: 64 | S67: 61 | T67: 1.2 | U67: 0.1264032489
A68: 65 | S68: 62 | T68: 1.22 | U68: 0.1277054452
A69: =A68+1 -> 66 | D69: =IF(ISBLANK(B69),"",IF(B69<$J$8,C69-($H$8+$I$8*($J$8-B69)^2),C69-$H$8)) ->  | E69: =IF(ISBLANK(B69),"",IF(B69<$J$8,($H$8+$I$8*($J$8-B69)^2),$H$8)) ->  | F69: =IF(ISBLANK(B69),"",D69^2/E69) ->  | S69: 63 | T69: 1.24 | U69: 0.1288236994 | Y69: =IF(ISBLANK(B69),"",($J$8-B69)^2*IF(B69<$J$8,1,0)) ->  | Z69: =IF(ISBLANK(B69),"",2*$I$8*($J$8-B69)*IF(B69<$J$8,1,0)) -> 
A70: 67 | S70: 64 | T70: 1.26 | U70: 0.1297580113
A71: 68 | S71: 65 | T71: =$S$4+(S71-1)*($T$4-$S$4)/($U$4-1) -> 1.28 | U71: 0.1305083811
A72: 69 | S72: 66 | T72: 1.3 | U72: =IF(T72<$J$8,($H$8+$I$8*($J$8-T72)^2),$H$8) -> 0.1310748088
A73: 70 | S73: 67 | T73: 1.32 | U73: 0.1314572942
A74: 71 | S74: 68 | T74: 1.34 | U74: 0.1316558375
A75: 72 | S75: 69 | T75: 1.36 | U75: 0.1316867103
A76: 73 | S76: 70 | T76: 1.38 | U76: 0.1316867103
A77: 74 | S77: 71 | T77: 1.4 | U77: 0.1316867103
A78: 75 | S78: 72 | T78: 1.42 | U78: 0.1316867103
A79: 76 | S79: 73 | T79: 1.44 | U79: 0.1316867103
A80: 77 | S80: 74 | T80: 1.46 | U80: 0.1316867103
A81: 78 | S81: 75 | T81: 1.48 | U81: 0.1316867103
A82: 79 | S82: 76 | T82: 1.5 | U82: 0.1316867103
A83: 80 | S83: 77 | T83: 1.52 | U83: 0.1316867103
A84: 81 | S84: 78 | T84: 1.54 | U84: 0.1316867103
A85: 82 | S85: 79 | T85: 1.56 | U85: 0.1316867103
A86: 83 | S86: 80 | T86: 1.58 | U86: 0.1316867103
A87: 84 | S87: 81 | T87: 1.6 | U87: 0.1316867103
A88: 85 | S88: 82 | T88: 1.62 | U88: 0.1316867103
A89: 86 | S89: 83 | T89: 1.64 | U89: 0.1316867103
A90: 87 | S90: 84 | T90: 1.66 | U90: 0.1316867103
A91: 88 | S91: 85 | T91: 1.68 | U91: 0.1316867103
A92: 89 | S92: 86 | T92: 1.7 | U92: 0.1316867103
A93: 90 | S93: 87 | T93: 1.72 | U93: 0.1316867103
A94: 91 | S94: 88 | T94: 1.74 | U94: 0.1316867103
A95: 92 | S95: 89 | T95: 1.76 | U95: 0.1316867103
A96: 93 | S96: 90 | T96: 1.78 | U96: 0.1316867103
A97: 94 | S97: 91 | T97: 1.8 | U97: 0.1316867103
A98: 95 | S98: 92 | T98: 1.82 | U98: 0.1316867103
A99: 96 | S99: 93 | T99: 1.84 | U99: 0.1316867103
A100: 97 | S100: 94 | T100: 1.86 | U100: 0.1316867103 | X100: =IF(ISBLANK(B100),"",1) -> 
A101: 98 | S101: 95 | T101: 1.88 | U101: 0.1316867103 | X101: =IF(ISBLANK(B101),"",1) ->  | Y101: =IF(ISBLANK(B101),"",($J$8-B101)^2*IF(B101<$J$8,1,0)) ->  | Z101: =IF(ISBLANK(B101),"",2*$I$8*($J$8-B101)*IF(B101<$J$8,1,0)) -> 
A102: 99 | S102: 96 | T102: 1.9 | U102: 0.1316867103 | X102: =IF(ISBLANK(B102),"",1) ->  | Y102: =IF(ISBLANK(B102),"",($J$8-B102)^2*IF(B102<$J$8,1,0)) ->  | Z102: =IF(ISBLANK(B102),"",2*$I$8*($J$8-B102)*IF(B102<$J$8,1,0)) -> 
A103: 100 | S103: 97 | T103: =$S$4+(S103-1)*($T$4-$S$4)/($U$4-1) -> 1.92 | U103: 0.1316867103 | X103: =IF(ISBLANK(B103),"",1) ->  | Y103: =IF(ISBLANK(B103),"",($J$8-B103)^2*IF(B103<$J$8,1,0)) ->  | Z103: =IF(ISBLANK(B103),"",2*$I$8*($J$8-B103)*IF(B103<$J$8,1,0)) -> 
D104: =SUM(D4:D103) -> 7.128396582e-06 | E104: 0.8399928716 | F104: =SUM(F4:F103) -> 2.73289054e-05 | S104: 98 | T104: =$S$4+(S104-1)*($T$4-$S$4)/($U$4-1) -> 1.94 | U104: 0.1316867103
S105: 99 | T105: =$S$4+(S105-1)*($T$4-$S$4)/($U$4-1) -> 1.96 | U105: 0.1316867103
S106: 100 | T106: =$S$4+(S106-1)*($T$4-$S$4)/($U$4-1) -> 1.98 | U106: 0.1316867103
S107: 101 | T107: =$S$4+(S107-1)*($T$4-$S$4)/($U$4-1) -> 2 | U107: 0.1316867103

Sheet Saturation Kinetics
B1: Fitting the Saturation Kinetics Model to Nutritional Response Data
B2: Data | H2: Sample Statistics | S2: Plotting Parameters | X2: Error Analysis
A3: Point | B3: Input | C3: Output | D3: Residuals | E3: Expected | F3: Qm | H3: Min Input | I3: =MIN(B4:B103) -> 0.95 | J3: Min Output | K3: =MIN(C4:C103) -> 0.095 | N3: Instructions | S3: Min Input | T3: Max Input | U3: # of Points | X3: Maximum(X0) | Y3: Rate Constant (X1) | Z3: Intercept(X2) | AA3: Kinetic Order (X3) | AB3: Q0 | AG3: Number of Observations, T | AH3: Number of Regressors, K | AI3: sigma
A4: 1 | B4: 0.95 | C4: 0.095 | D4: =IF(ISBLANK(B4),"",C4-($J$8*$I$8+$H$8*B4^$K$8)/($I$8+B4^$K$8)) -> 5.406372557e-07 | E4: =IF(ISBLANK(B4),"",($J$8*$I$8+$H$8*B4^$K$8)/($I$8+B4^$K$8)) -> 0.09499945936 | F4: =IF(ISBLANK(B4),"",D4^2/E4) -> 3.07674006e-12 | H4: Max Input | I4: =MAX(B4:B103) -> 1.43 | J4: Max Output | K4: =MAX(C4:C103) -> 0.132 | N4: 1. Copy data in cells B4:C103 | S4: =FLOOR(I3,1) -> 0 | T4: =CEILING(I4,1) -> 2 | U4: 101 | X4: =IF(ISBLANK(B4),"",$B4^$K$8/($I$8 + $B4^$K$8)) -> 0.2450017862 | Y4: =IF(ISBLANK(B4),"",$J$8/($I$8 + $B4^$K$8) - ($I$8*$J$8 + $H$8*$B4^$K$8)/($I$8 + $B4^$K$8)^2) -> -0.005921803636 | Z4: =IF(ISBLANK(B4),"",$I$8/($I$8 + $B4^$K$8)) -> 0.7549982138 | AA4: =IF(ISBLANK(B4),"",($H$8* LN($B4)*$B4^$K$8)/($I$8 + $B4^$K$8) -(LN($B4)*$B4^$K$8)*($I$8*$J$8 + $H$8*$B4^$K$8)/($I$8 + $B4^$K$8)^2) -> -0.0004756992902 | AB4: =SUMPRODUCT(X$4:X$103,X$4:X$103) -> 4.3496133 | AC4: =SUMPRODUCT(X$4:X$103,Y$4:Y$103) -> -0.01631058962 | AD4: =SUMPRODUCT(X$4:X$103,Z$4:Z$103) -> 0.8558969478 | AE4: =SUMPRODUCT(X$4:X$103,AA$4:AA$103) -> 0.003022024491
A5: =A4+1 -> 2 | B5: 1.03 | C5: 0.107 | D5: -5.087029951e-05 | E5: =IF(ISBLANK(B5),"",($J$8*$I$8+$H$8*B5^$K$8)/($I$8+B5^$K$8)) -> 0.1070508703 | F5: =IF(ISBLANK(B5),"",D5^2/E5) -> 2.417343609e-08 | N5: 2. View the data and estimate values for the Max and Intercept in cells H8 and J8 | S5: Prediction | X5: 0.4853722825 | Y5: -0.007996629466 | Z5: 0.5146277175 | AA5: 0.0003701789445 | AB5: =SUMPRODUCT(Y$4:Y$103,X$4:X$103) -> -0.01631058962 | AC5: =SUMPRODUCT(Y$4:Y$103,Y$4:Y$103) -> 0.0001599791096 | AD5: =SUMPRODUCT(Y$4:Y$103,Z$4:Z$103) -> -0.01109002504 | AE5: =SUMPRODUCT(Y$4:Y$103,AA$4:AA$103) -> -1.272329802e-05 | AG5: =COUNT(B4:B53) -> 7 | AH5: 4 | AI5: =SQRT(L8/(AG5-AH5)) -> 0.001002305985
A6: 3 | B6: 1.11 | C6: 0.119 | D6: 0.0003470590235 | E6: 0.118652941 | F6: 1.015145219e-06 | H6: Regression | S6: Point | T6: Input | U6: Output | X6: 0.7167804969 | Y6: -0.006499024347 | Z6: 0.2832195031 | AA6: 0.001062185103 | AB6: =SUMPRODUCT(Z$4:Z$103,X$4:X$103) -> 0.8558969478 | AC6: =SUMPRODUCT(Z$4:Z$103,Y$4:Y$103) -> -0.01109002504 | AD6: =SUMPRODUCT(Z$4:Z$103,Z$4:Z$103) -> 0.9385928049 | AE6: =SUMPRODUCT(Z$4:Z$103,AA$4:AA$103) -> 0.0003317244536
A7: 4 | B7: 1.19 | C7: 0.125 | D7: -0.001022154269 | E7: 0.1260221543 | F7: 8.290600622e-06 | H7: Max or Min | I7: Rate Constant | J7: Intercept | K7: Kinetic Order | L7: SSE | N7: 3. Guess the Rate Constant and Kinetic Order values in cells I8 and K8 until the predicted line is close to the observed points | S7: 1 | T7: =$S$4+(S7-1)*($T$4-$S$4)/($U$4-1) -> 0 | U7: =($J$8*$I$8+$H$8*T7^$K$8)/($I$8+T7^$K$8) -> 0.0827158503 | X7: 0.8637625777 | Y7: -0.003767295005 | Z7: 0.1362374223 | AA7: 0.001026313939 | AB7: =SUMPRODUCT(AA$4:AA$103,X$4:X$103) -> 0.003022024491 | AC7: =SUMPRODUCT(AA$4:AA$103,Y$4:Y$103) -> -1.272329802e-05 | AD7: =SUMPRODUCT(AA$4:AA$103,Z$4:Z$103) -> 0.0003317244536 | AE7: =SUMPRODUCT(AA$4:AA$103,AA$4:AA$103) -> 3.278780151e-06
A8: 5 | B8: 1.27 | C8: 0.131 | D8: 0.001288455796 | E8: 0.1297115442 | F8: 1.279853962e-05 | H8: 0.1328526646 | I8: 1.566094296 | J8: 0.0827158503 | K8: 13.1959758 | L8: =SUMPRODUCT(D4:D53,D4:D53) -> 3.013851861e-06 | S8: 2 | T8: 0.02 | U8: =($J$8*$I$8+$H$8*T8^$K$8)/($I$8+T8^$K$8) -> 0.0827158503 | X8: 0.9373490229 | Y8: -0.001880043973 | Z8: 0.06265097713 | AA8: 0.0007037437089
A9: 6 | B9: 1.35 | C9: 0.131 | D9: -0.0003994838577 | E9: 0.1313994839 | F9: 1.214520391e-06 | S9: 3 | T9: 0.04 | U9: 0.0827158503 | X9: 0.9710156943 | Y9: -0.0009010066133 | Z9: 0.02898430571 | AA9: 0.0004234659818 | AB9: inv(Q0)
A10: 7 | B10: 1.43 | C10: 0.132 | D10: -0.0001621997996 | E10: 0.1321621998 | F10: 1.99064294e-07 | H10: =IF(ISNUMBER(H13),H$8-1.96*H$13,"N/A") -> 0.1306600024 | I10: =IF(ISNUMBER(I13),I$8-1.96*I$13,"N/A") -> 0.410614516 | J10: =IF(ISNUMBER(J13),J$8-1.96*J$13,"N/A") -> 0.06921255245 | K10: =IF(ISNUMBER(K13),K$8-1.96*K$13,"N/A") -> 8.475409452 | L10: Lower 95% Confidence Levels | N10: 4. Press the button below to run solver with current settings | S10: 4 | T10: 0.06 | U10: 0.0827158503 | X10: 0.9862283868 | Y10: -0.0004348116194 | Z10: 0.01377161315 | AA10: 0.0002435605579 | AB10: =MINVERSE(AB4:AE7) -> 1.245749359 | AC10: -386.8641471 | AD10: -4.947550988 | AE10: -2148.862973
A11: 8 | H11: =IF(ISNUMBER(H14),H$8+1.96*H$13,"N/A") -> 0.1350453268 | I11: =IF(ISNUMBER(I14),I$8+1.96*I$13,"N/A") -> 2.721574077 | J11: =IF(ISNUMBER(J14),J$8+1.96*J$13,"N/A") -> 0.09621914815 | K11: =IF(ISNUMBER(K14),K$8+1.96*K$13,"N/A") -> 17.91654216 | L11: Upper 95% Confidence Levels | S11: 5 | T11: 0.08 | U11: 0.0827158503 | AB11: -386.8641471 | AC11: 345948.8655 | AD11: 3982.282467 | AE11: 1296123.183
A12: 9 | S12: 6 | T12: 0.1 | U12: 0.0827158503 | AB12: -4.947550988 | AC12: 3982.282467 | AD12: 47.24620224 | AE12: 15233.3075
A13: 10 | H13: =IF(ISNUMBER(AB10),SQRT(AB10)*$AI$5,"N/A") -> 0.001118705208 | I13: =IF(ISNUMBER(AC11),SQRT(AC11)*$AI$5,"N/A") -> 0.5895305002 | J13: =IF(ISNUMBER(AD12),SQRT(AD12)*$AI$5,"N/A") -> 0.006889437678 | K13: =IF(ISNUMBER(AE13),SQRT(AE13)*$AI$5,"N/A") -> 2.40845222 | L13: Standard Errors | S13: 7 | T13: 0.12 | U13: 0.0827158503 | AB13: -2148.862973 | AC13: 1296123.183 | AD13: 15233.3075 | AE13: 5773981.965
A14: 11 | H14: =IF(ISNUMBER(H13),H8/H13,"N/A") -> 118.7557399 | I14: =IF(ISNUMBER(I13),I8/I13,"N/A") -> 2.656511064 | J14: =IF(ISNUMBER(J13),J8/J13,"N/A") -> 12.00618311 | K14: =IF(ISNUMBER(K13),K8/K13,"N/A") -> 5.479027441 | L14: t-Statistics | N14: 5. Solver will attempt to minimize SSE (red cell) by changing cells H8:K8 | S14: 8 | T14: 0.14 | U14: 0.0827158503
A15: 12 | H15: =IF(ISNUMBER(H14),2*TDIST(ABS(H14),$AG$5-$AH$5,1),"N/A") -> 1.316424836e-06 | I15: =IF(ISNUMBER(I14),2*TDIST(ABS(I14),$AG$5-$AH$5,1),"N/A") -> 0.07656646593 | J15: =IF(ISNUMBER(J14),2*TDIST(ABS(J14),$AG$5-$AH$5,1),"N/A") -> 0.00124312465 | K15: =IF(ISNUMBER(K14),2*TDIST(ABS(K14),$AG$5-$AH$5,1),"N/A") -> 0.01195597206 | L15: p-values | S15: 9 | T15: 0.16 | U15: 0.0827158503
A16: 13 | H16: =1-L8/(SUMPRODUCT(C4:C103,C4:C103)-COUNT(C4:C103)*AVERAGE(C4:C103)^2) -> 0.997500952 | L16: Goodness of Fit (R2) | S16: 10 | T16: 0.18 | U16: 0.08271585031
A17: 14 | S17: 11 | T17: 0.2 | U17: 0.08271585032
A18: 15 | H18: Functional Form | S18: 12 | T18: 0.22 | U18: 0.08271585037
A19: 16 | H19: y = | I19: Intercept×Rate Constant + Maximum×XKinetic Order | S19: 13 | T19: 0.24 | U19: 0.08271585051
A20: 17 | I20: Rate Constant + XKinetic Order | S20: 14 | T20: 0.26 | U20: 0.08271585091
A21: 18 | S21: 15 | T21: 0.28 | U21: 0.08271585192
A22: 19 | E22: =IF(ISBLANK(B22),"",($J$8*$I$8+$H$8*B22^$K$8)/($I$8+B22^$K$8)) ->  | F22: =IF(ISBLANK(B22),"",D22^2/E22) ->  | S22: 16 | T22: 0.3 | U22: 0.08271585433
A23: 20 | S23: 17 | T23: 0.32 | U23: 0.08271585975
A24: 21 | S24: 18 | T24: 0.34 | U24: 0.08271587133
A25: 22 | S25: 19 | T25: 0.36 | U25: 0.082715895
A26: 23 | S26: 20 | T26: 0.38 | U26: 0.08271594154
A27: 24 | S27: 21 | T27: 0.4 | U27: 0.08271602983
A28: 25 | S28: 22 | T28: 0.42 | U28: 0.08271619208
A29: 26 | S29: 23 | T29: 0.44 | U29: 0.08271648176
A30: 27 | S30: 24 | T30: 0.46 | U30: 0.08271698555
A31: 28 | S31: 25 | T31: 0.48 | U31: 0.08271784092
A32: 29 | S32: 26 | T32: 0.5 | U32: 0.08271926164
A33: 30 | S33: 27 | T33: 0.52 | U33: 0.08272157399
A34: 31 | S34: 28 | T34: 0.54 | U34: 0.08272526772
A35: 32 | S35: 29 | T35: 0.56 | U35: 0.08273106637
A36: 33 | D36: =IF(ISBLANK(B36),"",C36-($J$8*$I$8+$H$8*B36^$K$8)/($I$8+B36^$K$8)) ->  | S36: 30 | T36: 0.58 | U36: 0.08274002332 | X36: =IF(ISBLANK(B36),"",$B36^$K$8/($I$8 + $B36^$K$8)) ->  | Y36: =IF(ISBLANK(B36),"",$J$8/($I$8 + $B36^$K$8) - ($I$8*$J$8 + $H$8*$B36^$K$8)/($I$8 + $B36^$K$8)^2) ->  | Z36: =IF(ISBLANK(B36),"",$I$8/($I$8 + $B36^$K$8)) ->  | AA36: =IF(ISBLANK(B36),"",($H$8* LN($B36)*$B36^$K$8)/($I$8 + $B36^$K$8) -(LN($B36)*$B36^$K$8)*($I$8*$J$8 + $H$8*$B36^$K$8)/($I$8 + $B36^$K$8)^2) -> 
A37: =A36+1 -> 34 | S37: 31 | T37: 0.6 | U37: 0.08275365106
A38: 35 | S38: 32 | T38: 0.62 | U38: 0.08277409277
A39: 36 | S39: 33 | T39: =$S$4+(S39-1)*($T$4-$S$4)/($U$4-1) -> 0.64 | U39: 0.08280434703
A40: 37 | S40: 34 | T40: 0.66 | U40: 0.08284855733
A41: 38 | S41: 35 | T41: 0.68 | U41: 0.08291237846
A42: 39 | S42: 36 | T42: 0.7 | U42: 0.0830034299
A43: 40 | S43: 37 | T43: 0.72 | U43: 0.08313184087
A44: 41 | S44: 38 | T44: 0.74 | U44: 0.08331088005
A45: 42 | S45: 39 | T45: 0.76 | U45: 0.08355764118
A46: 43 | S46: 40 | T46: 0.78 | U46: 0.08389371968
A47: 44 | S47: 41 | T47: 0.8 | U47: 0.08434575972
A48: 45 | S48: 42 | T48: 0.82 | U48: 0.08494567467
A49: 46 | S49: 43 | T49: 0.84 | U49: 0.08573025053
A50: 47 | S50: 44 | T50: 0.86 | U50: 0.08673975568
A51: 48 | S51: 45 | T51: 0.88 | U51: 0.08801514811
A52: 49 | S52: 46 | T52: 0.9 | U52: 0.0895935742
A53: 50 | S53: 47 | T53: 0.92 | U53: 0.0915021841
A54: 51 | S54: 48 | T54: 0.94 | U54: 0.09375089925
A55: 52 | S55: 49 | T55: 0.96 | U55: 0.09632556226
A56: 53 | S56: 50 | T56: 0.98 | U56: 0.09918355908
A57: 54 | S57: 51 | T57: 1 | U57: 0.1022540311
A58: 55 | S58: 52 | T58: 1.02 | U58: 0.1054438154
A59: 56 | S59: 53 | T59: 1.04 | U59: 0.1086484086
A60: 57 | S60: 54 | T60: 1.06 | U60: 0.1117653584
A61: 58 | S61: 55 | T61: 1.08 | U61: 0.1147065786
A62: 59 | S62: 56 | T62: 1.1 | U62: 0.1174066769
A63: 60 | S63: 57 | T63: 1.12 | U63: 0.1198260545
A64: 61 | S64: 58 | T64: 1.14 | U64: 0.121949323
A65: 62 | S65: 59 | T65: 1.16 | U65: 0.1237806875
A66: 63 | S66: 60 | T66: 1.18 | U66: 0.1253381408
A67: 64 | S67: 61 | T67: 1.2 | U67: 0.1266478968
A68: 65 | D68: =IF(ISBLANK(B68),"",C68-($J$8*$I$8+$H$8*B68^$K$8)/($I$8+B68^$K$8)) ->  | S68: 62 | T68: 1.22 | U68: 0.1277398532 | X68: =IF(ISBLANK(B68),"",$B68^$K$8/($I$8 + $B68^$K$8)) ->  | Y68: =IF(ISBLANK(B68),"",$J$8/($I$8 + $B68^$K$8) - ($I$8*$J$8 + $H$8*$B68^$K$8)/($I$8 + $B68^$K$8)^2) ->  | Z68: =IF(ISBLANK(B68),"",$I$8/($I$8 + $B68^$K$8)) ->  | AA68: =IF(ISBLANK(B68),"",($H$8* LN($B68)*$B68^$K$8)/($I$8 + $B68^$K$8) -(LN($B68)*$B68^$K$8)*($I$8*$J$8 + $H$8*$B68^$K$8)/($I$8 + $B68^$K$8)^2) -> 
A69: =A68+1 -> 66 | S69: 63 | T69: 1.24 | U69: 0.1286443352
A70: 67 | S70: 64 | T70: 1.26 | U70: 0.1293900252
A71: 68 | S71: 65 | T71: =$S$4+(S71-1)*($T$4-$S$4)/($U$4-1) -> 1.28 | U71: 0.1300028321
A72: 69 | S72: 66 | T72: 1.3 | U72: =($J$8*$I$8+$H$8*T72^$K$8)/($I$8+T72^$K$8) -> 0.1305054254
A73: 70 | S73: 67 | T73: 1.32 | U73: 0.1309171949
A74: 71 | S74: 68 | T74: 1.34 | U74: 0.1312544564
A75: 72 | S75: 69 | T75: 1.36 | U75: 0.1315307776
A76: 73 | S76: 70 | T76: 1.38 | U76: 0.1317573457
A77: 74 | S77: 71 | T77: 1.4 | U77: 0.1319433305
A78: 75 | S78: 72 | T78: 1.42 | U78: 0.1320962169
A79: 76 | S79: 73 | T79: 1.44 | U79: 0.132222099
A80: 77 | S80: 74 | T80: 1.46 | U80: 0.1323259304
A81: 78 | S81: 75 | T81: 1.48 | U81: 0.1324117354
A82: 79 | S82: 76 | T82: 1.5 | U82: 0.132482783
A83: 80 | S83: 77 | T83: 1.52 | U83: 0.1325417298
A84: 81 | S84: 78 | T84: 1.54 | U84: 0.1325907372
A85: 82 | S85: 79 | T85: 1.56 | U85: 0.1326315652
A86: 83 | E86: =IF(ISBLANK(B86),"",($J$8*$I$8+$H$8*B86^$K$8)/($I$8+B86^$K$8)) ->  | F86: =IF(ISBLANK(B86),"",D86^2/E86) ->  | S86: 80 | T86: 1.58 | U86: 0.1326656491
A87: 84 | S87: 81 | T87: 1.6 | U87: 0.1326941617
A88: 85 | S88: 82 | T88: 1.62 | U88: 0.1327180624
A89: 86 | S89: 83 | T89: 1.64 | U89: 0.1327381378
A90: 87 | S90: 84 | T90: 1.66 | U90: 0.1327550338
A91: 88 | S91: 85 | T91: 1.68 | U91: 0.1327692819
A92: 89 | S92: 86 | T92: 1.7 | U92: 0.1327813206
A93: 90 | S93: 87 | T93: 1.72 | U93: 0.1327915117
A94: 91 | S94: 88 | T94: 1.74 | U94: 0.1328001552
A95: 92 | S95: 89 | T95: 1.76 | U95: 0.1328074994
A96: 93 | S96: 90 | T96: 1.78 | U96: 0.132813751
A97: 94 | S97: 91 | T97: 1.8 | U97: 0.132819082
A98: 95 | S98: 92 | T98: 1.82 | U98: 0.1328236359
A99: 96 | S99: 93 | T99: 1.84 | U99: 0.1328275326
A100: 97 | D100: =IF(ISBLANK(B100),"",C100-($J$8*$I$8+$H$8*B100^$K$8)/($I$8+B100^$K$8)) ->  | S100: 94 | T100: 1.86 | U100: 0.1328308725
A101: 98 | S101: 95 | T101: 1.88 | U101: 0.1328337399
A102: 99 | S102: 96 | T102: 1.9 | U102: 0.1328362055
A103: =A102+1 -> 100 | S103: 97 | T103: =$S$4+(S103-1)*($T$4-$S$4)/($U$4-1) -> 1.92 | U103: 0.1328383291
D104: =SUM(D4:D103) -> 1.347230118e-06 | E104: 0.8399986528 | F104: =SUM(F4:F103) -> 2.354204666e-05 | S104: 98 | T104: =$S$4+(S104-1)*($T$4-$S$4)/($U$4-1) -> 1.94 | U104: 0.1328401608
S105: 99 | T105: =$S$4+(S105-1)*($T$4-$S$4)/($U$4-1) -> 1.96 | U105: 0.1328417433
S106: 100 | T106: =$S$4+(S106-1)*($T$4-$S$4)/($U$4-1) -> 1.98 | U106: 0.1328431124
S107: 101 | T107: =$S$4+(S107-1)*($T$4-$S$4)/($U$4-1) -> 2 | U107: 0.1328442986

Sheet Logistics, 3 Parameters
B1: Fitting the Three-Parameter Logistics Model to Nutritional Response Data
B2: Data | H2: Sample Statistics | S2: Plotting Parameters | X2: Error Analysis
A3: Point | B3: Input | C3: Output | D3: Residuals | E3: Expected | F3: Qm | H3: Min Input | I3: =MIN(B4:B103) -> 0.95 | J3: Min Output | K3: =MIN(C4:C103) -> 0.095 | N3: Instructions | S3: Min Input | T3: Max Input | U3: # of Points | X3: Maximum(X0) | Y3: Intercept (X1) | Z3: c(X2) | AA3: Q0 | AE3: Number of Observations, T | AF3: Number of Regressors, K | AG3: sigma
A4: 1 | B4: 0.95 | C4: 0.095 | D4: =IF(ISBLANK(B4),"",C4-$H$8/(1+($H$8/$I$8-1)*EXP(-$J$8*B4))) -> 0.002223895941 | E4: =IF(ISBLANK(B4),"",$H$8/(1+($H$8/$I$8-1)*EXP(-$J$8*B4))) -> 0.09277610406 | F4: =IF(ISBLANK(B4),"",D4^2/E4) -> 5.330804959e-05 | H4: Max Input | I4: =MAX(B4:B103) -> 1.43 | J4: Max Output | K4: =MAX(C4:C103) -> 0.132 | N4: 1. Copy data in cells B4:C103 | S4: =FLOOR(I3,1) -> 0 | T4: =CEILING(I4,1) -> 2 | U4: 101 | X4: =IF(ISBLANK($B4),"",$I$8^2*EXP($J$8*$B4)*(EXP($J$8*$B4)-1)/($I$8*(EXP($J$8*$B4)-1)+$H$8)^2) -> 0.4917232417 | Y4: =IF(ISBLANK($B4),"",$H$8^2*EXP($J$8*$B4)/($I$8*(EXP($J$8*$B4)-1)+$H$8)^2) -> 461.3722827 | Z4: =IF(ISBLANK($B4),"",-$I$8*EXP($J$8*$B4)*($I$8-$H$8)*$H$8*$B4/($I$8*(EXP($J$8*$B4)-1)+$H$8)^2) -> 0.02632681545 | AA4: =SUMPRODUCT(X$4:X$103,X$4:X$103) -> 5.0606754 | AB4: =SUMPRODUCT(X$4:X$103,Y$4:Y$103) -> 766.9456096 | AC4: =SUMPRODUCT(X$4:X$103,Z$4:Z$103) -> 0.04939805031
A5: =A4+1 -> 2 | B5: 1.03 | C5: 0.107 | D5: -0.002574695501 | E5: =IF(ISBLANK(B5),"",$H$8/(1+($H$8/$I$8-1)*EXP(-$J$8*B5))) -> 0.1095746955 | F5: =IF(ISBLANK(B5),"",D5^2/E5) -> 6.049806385e-05 | N5: 2. View the data and estimate values for the Maximum in cell H8 | S5: Prediction | X5: =IF(ISBLANK($B5),"",$I$8^2*EXP($J$8*$B5)*(EXP($J$8*$B5)-1)/($I$8*(EXP($J$8*$B5)-1)+$H$8)^2) -> 0.6859811303 | Y5: =IF(ISBLANK($B5),"",$H$8^2*EXP($J$8*$B5)/($I$8*(EXP($J$8*$B5)-1)+$H$8)^2) -> 313.2643454 | Z5: =IF(ISBLANK($B5),"",-$I$8*EXP($J$8*$B5)*($I$8-$H$8)*$H$8*$B5/($I$8*(EXP($J$8*$B5)-1)+$H$8)^2) -> 0.01938078733 | AA5: =SUMPRODUCT(Y$4:Y$103,X$4:X$103) -> 766.9456096 | AB5: =SUMPRODUCT(Y$4:Y$103,Y$4:Y$103) -> 357592.9916 | AC5: =SUMPRODUCT(Y$4:Y$103,Z$4:Z$103) -> 21.40695524 | AE5: =COUNT(B4:B53) -> 7 | AF5: 3 | AG5: =SQRT(K8/(AE5-AF5)) -> 0.002099210901
A6: 3 | B6: 1.11 | C6: 0.119 | D6: -0.001165467059 | E6: =IF(ISBLANK(B6),"",$H$8/(1+($H$8/$I$8-1)*EXP(-$J$8*B6))) -> 0.1201654671 | F6: =IF(ISBLANK(B6),"",D6^2/E6) -> 1.13036923e-05 | H6: Regression | S6: Point | T6: Input | U6: Output | X6: 0.8250342627 | Y6: 183.3837992 | Z6: 0.0122266412 | AA6: =SUMPRODUCT(Z$4:Z$103,X$4:X$103) -> 0.04939805031 | AB6: =SUMPRODUCT(Z$4:Z$103,Y$4:Y$103) -> 21.40695524 | AC6: =SUMPRODUCT(Z$4:Z$103,Z$4:Z$103) -> 0.001287499456
A7: 4 | B7: 1.19 | C7: 0.125 | D7: -0.001097950591 | E7: 0.1260979506 | F7: 9.559992804e-06 | H7: Max or Min | I7: Intercept | J7: Scale | K7: SSE | N7: 3. Guess values of the Intercept and Scale in cells I8 and J8 until the predicted line is close to the observed points | S7: 1 | T7: =$S$4+(S7-1)*($T$4-$S$4)/($U$4-1) -> 0 | U7: =IF(ISBLANK(T7),"",$I$8*EXP(T7*$J$8)*$H$8/($H$8+$I$8*(EXP($J$8*T7)-1))) -> 6.009253744e-05 | X7: 0.9085292339 | Y7: 98.29441669 | Z7: 0.007025852604 | AA7: inv(Q0)
A8: 5 | B8: 1.27 | C8: 0.131 | D8: 0.001797204159 | E8: 0.1292027958 | F8: 2.499901622e-05 | H8: 0.1322920443 | I8: 6.009253744e-05 | J8: 8.999907549 | K8: =SUMPRODUCT(D4:D53,D4:D53) -> 1.762674563e-05 | S8: 2 | T8: 0.02 | U8: =IF(ISBLANK(T8),"",$I$8*EXP(T8*$J$8)*$H$8/($H$8+$I$8*(EXP($J$8*T8)-1))) -> 7.193725181e-05 | X8: 0.9538314734 | Y8: 50.23053473 | Z8: 0.003831728645 | AA8: =MINVERSE(AA4:AC6) -> 0.7202010768 | AB8: 0.02353111114 | AC8: -418.8786019
A9: 6 | B9: 1.35 | C9: 0.131 | D9: 0.0002299062611 | E9: 0.1307700937 | F9: 4.041970712e-07 | S9: 3 | T9: 0.04 | U9: 8.611513262e-05 | X9: 0.977118234 | Y9: 25.04678764 | Z9: 0.0020309958 | AA9: 0.02353111114 | AB9: 0.001369610567 | AC9: -23.67502603
A10: 7 | B10: 1.43 | C10: 0.132 | D10: 0.0004531742613 | E10: 0.1315468257 | F10: 1.561169644e-06 | H10: =IF(ISNUMBER(H13),H$8-NORMSINV(0.975)*H$13,"N/A") -> 0.1288003916 | I10: =IF(ISNUMBER(I13),I$8-1.96*I$13,"N/A") -> -9.217618134e-05 | J10: =IF(ISNUMBER(J13),J$8-1.96*J$13,"N/A") -> 6.3638072 | K10: Lower 95% Confidence Levels | N10: 4. Press the button below to run solver with current settings | S10: 4 | T10: 0.06 | U10: 0.0001030851076 | X10: 0.9887629222 | Y10: 12.33692983 | Z10: 0.001059659547 | AA10: -418.8786019 | AB10: -23.67502603 | AC10: 410487.1706
A11: 8 | H11: =IF(ISNUMBER(H14),H$8+1.96*H$13,"N/A") -> 0.1357837612 | I11: =IF(ISNUMBER(I14),I$8+1.96*I$13,"N/A") -> 0.0002123612562 | J11: =IF(ISNUMBER(J14),J$8+1.96*J$13,"N/A") -> 11.6360079 | K11: Upper 95% Confidence Levels | S11: 5 | T11: 0.08 | U11: 0.0001233960897
A12: 9 | S12: 6 | T12: 0.1 | U12: 0.0001477044972
A13: 10 | H13: =IF(ISNUMBER(AA8),SQRT(AA8)*$AG$5,"N/A") -> 0.001781488225 | I13: =IF(ISNUMBER(AB9),SQRT(AB9)*$AG$5,"N/A") -> 7.768812182e-05 | J13: =IF(ISNUMBER(AC10),SQRT(AC10)*$AG$5,"N/A") -> 1.344949157 | K13: Standard Errors | S13: 7 | T13: 0.12 | U13: 0.0001767951329
A14: 11 | H14: =IF(ISNUMBER(H13),H8/H13,"N/A") -> 74.25928639 | I14: =IF(ISNUMBER(I13),I8/I13,"N/A") -> 0.7735099785 | J14: =IF(ISNUMBER(J13),J8/J13,"N/A") -> 6.69163403 | K14: t-Statistics | N14: 5. Solver will attempt to minimize SSE (red cell) by changing cells H8:J8 | S14: 8 | T14: 0.14 | U14: 0.0002116060409
A15: 12 | H15: =IF(ISNUMBER(H14),2*TDIST(ABS(H14),$AE$5-$AF$5,1),"N/A") -> 1.970712667e-07 | I15: =IF(ISNUMBER(I14),2*TDIST(ABS(I14),$AE$5-$AF$5,1),"N/A") -> 0.4823923533 | J15: =IF(ISNUMBER(J14),2*TDIST(ABS(J14),$AE$5-$AF$5,1),"N/A") -> 0.002594056985 | K15: p-values | S15: 9 | T15: 0.16 | U15: 0.0002532580669
A16: 13 | H16: =1-K8/(SUMPRODUCT(C4:C103,C4:C103)-COUNT(C4:C103)*AVERAGE(C4:C103)^2) -> 0.9853841247 | K16: Goodness of Fit (R2) | S16: 10 | T16: 0.18 | U16: 0.000303089964
A17: 14 | S17: 11 | T17: 0.2 | U17: 0.0003627000167
A18: 15 | I18: Functional Form | S18: 12 | T18: 0.22 | U18: 0.0004339952947
A19: 16 | S19: 13 | T19: 0.24 | U19: 0.0005192497968
A20: 17 | H20: y = | I20: Maximum | L20: = | M20: Maximum×Intercept×eScale×X | S20: 14 | T20: 0.26 | U20: 0.0006211728888
A21: 18 | I21: 1 + (Maximum/Intercept-1)×e–Scale×X | M21: Maximum+Intercept×(eScale×X–1) | S21: 15 | T21: 0.28 | U21: 0.0007429895718
A22: 19 | S22: 16 | T22: 0.3 | U22: 0.0008885342164
A23: 20 | S23: 17 | T23: 0.32 | U23: 0.001062359436
A24: 21 | S24: 18 | T24: 0.34 | U24: 0.001269861708
A25: 22 | S25: 19 | T25: 0.36 | U25: 0.001517425107
A26: 23 | S26: 20 | T26: 0.38 | U26: 0.001812584061
A27: 24 | S27: 21 | T27: 0.4 | U27: 0.002164205154
A28: 25 | S28: 22 | T28: 0.42 | U28: 0.002582686671
A29: 26 | S29: 23 | T29: 0.44 | U29: 0.003080172466
A30: 27 | S30: 24 | T30: 0.46 | U30: 0.003670773733
A31: 28 | S31: 25 | T31: 0.48 | U31: 0.004370787977
A32: 29 | S32: 26 | T32: 0.5 | U32: 0.00519889871
A33: 30 | S33: 27 | T33: 0.52 | U33: 0.006176331939
A34: 31 | S34: 28 | T34: 0.54 | U34: 0.007326936108
A35: 32 | S35: 29 | T35: 0.56 | U35: 0.008677141326
A36: 33 | S36: 30 | T36: 0.58 | U36: 0.0102557419
A37: =A36+1 -> 34 | S37: 31 | T37: 0.6 | U37: 0.01209343536
A38: 35 | S38: 32 | T38: 0.62 | U38: 0.01422204389
A39: 36 | S39: 33 | T39: =$S$4+(S39-1)*($T$4-$S$4)/($U$4-1) -> 0.64 | U39: 0.01667334487
A40: 37 | S40: 34 | T40: 0.66 | U40: 0.01947745172
A41: 38 | S41: 35 | T41: 0.68 | U41: 0.02266072072
A42: 39 | S42: 36 | T42: 0.7 | U42: 0.02624322008
A43: 40 | S43: 37 | T43: 0.72 | U43: 0.03023588521
A44: 41 | S44: 38 | T44: 0.74 | U44: 0.03463759367
A45: 42 | S45: 39 | T45: 0.76 | U45: 0.03943250713
A46: 43 | S46: 40 | T46: 0.78 | U46: 0.04458811623
A47: 44 | S47: 41 | T47: 0.8 | U47: 0.05005444907
A48: 45 | S48: 42 | T48: 0.82 | U48: 0.05576483068
A49: 46 | S49: 43 | T49: 0.84 | U49: 0.06163839253
A50: 47 | S50: 44 | T50: 0.86 | U50: 0.06758424939
A51: 48 | S51: 45 | T51: 0.88 | U51: 0.07350694356
A52: 49 | S52: 46 | T52: 0.9 | U52: 0.07931249129
A53: 50 | S53: 47 | T53: 0.92 | U53: 0.08491423359
A54: 51 | S54: 48 | T54: 0.94 | U54: 0.09023773686
A55: 52 | S55: 49 | T55: 0.96 | U55: 0.0952241945
A56: 53 | S56: 50 | T56: 0.98 | U56: 0.09983208198
A57: 54 | S57: 51 | T57: 1 | U57: 0.1040371275
A58: 55 | S58: 52 | T58: 1.02 | U58: 0.1078309029
A59: 56 | S59: 53 | T59: 1.04 | U59: 0.1112184706
A60: 57 | S60: 54 | T60: 1.06 | U60: 0.1142155466
A61: 58 | S61: 55 | T61: 1.08 | U61: 0.1168455779
A62: 59 | S62: 56 | T62: 1.1 | U62: 0.1191370271
A63: 60 | S63: 57 | T63: 1.12 | U63: 0.121121044
A64: 61 | S64: 58 | T64: 1.14 | U64: 0.1228296009
A65: 62 | S65: 59 | T65: 1.16 | U65: 0.1242940968
A66: 63 | S66: 60 | T66: 1.18 | U66: 0.1255443851
A67: 64 | S67: 61 | T67: 1.2 | U67: 0.1266081586
A68: 65 | S68: 62 | T68: 1.22 | U68: 0.1275106146
A69: =A68+1 -> 66 | D69: =IF(ISBLANK(B69),"",C69-$H$8/(1+($H$8/$I$8-1)*EXP(-$J$8*B69))) ->  | S69: 63 | T69: 1.24 | U69: 0.1282743306 | X69: =IF(ISBLANK($B69),"",$I$8^2*EXP($J$8*$B69)*(EXP($J$8*$B69)-1)/($I$8*(EXP($J$8*$B69)-1)+$H$8)^2) ->  | Y69: =IF(ISBLANK($B69),"",$H$8^2*EXP($J$8*$B69)/($I$8*(EXP($J$8*$B69)-1)+$H$8)^2) ->  | Z69: =IF(ISBLANK($B69),"",-$I$8*EXP($J$8*$B69)*($I$8-$H$8)*$H$8*$B69/($I$8*(EXP($J$8*$B69)-1)+$H$8)^2) -> 
A70: 67 | E70: =IF(ISBLANK(B70),"",$H$8/(1+($H$8/$I$8-1)*EXP(-$J$8*B70))) ->  | F70: =IF(ISBLANK(B70),"",D70^2/E70) ->  | S70: 64 | T70: 1.26 | U70: 0.1289192883
A71: 68 | S71: 65 | T71: =$S$4+(S71-1)*($T$4-$S$4)/($U$4-1) -> 1.28 | U71: 0.1294629953
A72: 69 | S72: 66 | T72: 1.3 | U72: =IF(ISBLANK(T72),"",$I$8*EXP(T72*$J$8)*$H$8/($H$8+$I$8*(EXP($J$8*T72)-1))) -> 0.1299206659
A73: 70 | S73: 67 | T73: 1.32 | U73: 0.1303054328
A74: 71 | S74: 68 | T74: 1.34 | U74: 0.1306285689
A75: 72 | S75: 69 | T75: 1.36 | U75: 0.1308997063
A76: 73 | S76: 70 | T76: 1.38 | U76: 0.1311270439
A77: 74 | S77: 71 | T77: 1.4 | U77: 0.1313175387
A78: 75 | S78: 72 | T78: 1.42 | U78: 0.1314770784
A79: 76 | S79: 73 | T79: 1.44 | U79: 0.1316106348
A80: 77 | S80: 74 | T80: 1.46 | U80: 0.1317223989
A81: 78 | S81: 75 | T81: 1.48 | U81: 0.1318158978
A82: 79 | S82: 76 | T82: 1.5 | U82: 0.1318940967
A83: 80 | S83: 77 | T83: 1.52 | U83: 0.1319594851
A84: 81 | S84: 78 | T84: 1.54 | U84: 0.1320141519
A85: 82 | S85: 79 | T85: 1.56 | U85: 0.1320598483
A86: 83 | S86: 80 | T86: 1.58 | U86: 0.1320980414
A87: 84 | S87: 81 | T87: 1.6 | U87: 0.13212996
A88: 85 | S88: 82 | T88: 1.62 | U88: 0.1321566326
A89: 86 | S89: 83 | T89: 1.64 | U89: 0.1321789196
A90: 87 | S90: 84 | T90: 1.66 | U90: 0.1321975412
A91: 88 | S91: 85 | T91: 1.68 | U91: 0.1322130992
A92: 89 | S92: 86 | T92: 1.7 | U92: 0.1322260972
A93: 90 | S93: 87 | T93: 1.72 | U93: 0.132236956
A94: 91 | S94: 88 | T94: 1.74 | U94: 0.1322460275
A95: 92 | S95: 89 | T95: 1.76 | U95: 0.1322536055
A96: 93 | S96: 90 | T96: 1.78 | U96: 0.132259936
A97: 94 | S97: 91 | T97: 1.8 | U97: 0.132265224
A98: 95 | S98: 92 | T98: 1.82 | U98: 0.1322696414
A99: 96 | S99: 93 | T99: 1.84 | U99: 0.1322733312
A100: 97 | S100: 94 | T100: 1.86 | U100: 0.1322764134
A101: 98 | S101: 95 | T101: 1.88 | U101: 0.132278988
A102: 99 | S102: 96 | T102: 1.9 | U102: 0.1322811386
A103: 100 | S103: 97 | T103: =$S$4+(S103-1)*($T$4-$S$4)/($U$4-1) -> 1.92 | U103: 0.132282935
D104: =SUM(D4:D103) -> -0.000133932529 | E104: 0.8401339325 | F104: =SUM(F4:F103) -> 0.0001616341815 | S104: 98 | T104: =$S$4+(S104-1)*($T$4-$S$4)/($U$4-1) -> 1.94 | U104: 0.1322844354
S105: 99 | T105: =$S$4+(S105-1)*($T$4-$S$4)/($U$4-1) -> 1.96 | U105: 0.1322856888
S106: 100 | T106: =$S$4+(S106-1)*($T$4-$S$4)/($U$4-1) -> 1.98 | U106: 0.1322867357
S107: 101 | T107: =$S$4+(S107-1)*($T$4-$S$4)/($U$4-1) -> 2 | U107: 0.1322876101

Sheet Logistics, 4 Parameters
B1: Fitting the Four-Parameter Logistics Model to Nutritional Response Data
B2: Data | H2: Sample Statistics | S2: Plotting Parameters | X2: Error Analysis
A3: Point | B3: Input | C3: Output | D3: Residuals | E3: Expected | F3: Qm | H3: Min Input | I3: =MIN(B4:B103) -> 0.95 | J3: Min Output | K3: =MIN(C4:C103) -> 0.095 | N3: Instructions | S3: Min Input | T3: Max Input | U3: # of Points | X3: Max(X0) | Y3: Intercept (X1) | Z3: Shape(X2) | AA3: Scale (X3) | AB3: Q0 | AG3: Number of Observations, T | AH3: Number of Regressors, K | AI3: sigma
A4: 1 | B4: 0.95 | C4: 0.095 | D4: =IF(ISBLANK(B4),"",C4-($H$8+($I$8*(1+$J$8)-$H$8)*EXP(-$K$8*B4))/(1+$J$8*EXP(-$K$8*B4))) -> 0.0007987156805 | E4: =IF(ISBLANK(B4),"",($H$8+($I$8*(1+$J$8)-$H$8)*EXP(-$K$8*B4))/(1+$J$8*EXP(-$K$8*B4))) -> 0.09420128432 | F4: =IF(ISBLANK(B4),"",D4^2/E4) -> 6.772166036e-06 | H4: Max Input | I4: =MAX(B4:B103) -> 1.43 | J4: Max Output | K4: =MAX(C4:C103) -> 0.132 | N4: 1. Copy data in cells B4:C103 | S4: 0.05 | T4: =CEILING(I4,1) -> 2 | U4: 101 | X4: =IF(ISBLANK($B4),"",(-1+EXP($K$8*$B4))/($J$8+EXP($K$8*$B4))) -> 0.9929824449 | Y4: =IF(ISBLANK($B4),"",(1+$J$8)/($J$8+EXP($K$8*$B4))) -> 0.007017555066 | Z4: =IF(ISBLANK($B4),"",(-1+EXP($K$8*$B4))*($I$8-$H$8)/($J$8+EXP($K$8*$B4))^2) -> -0.03504835693 | AA4: =IF(ISBLANK($B4),"",-EXP($K$8*$B4)*(1+$J$8)*($I$8-$H$8)*$B4/($J$8+EXP($K$8*$B4))^2) -> 0.03996057588 | AB4: =SUMPRODUCT(X$4:X$103,X$4:X$103) -> 6.962026718 | AC4: =SUMPRODUCT(X$4:X$103,Y$4:Y$103) -> 0.01894418453 | AD4: =SUMPRODUCT(X$4:X$103,Z$4:Z$103) -> -0.09485847532 | AE4: =SUMPRODUCT(X$4:X$103,AA$4:AA$103) -> 0.1215215278
A5: =A4+1 -> 2 | B5: 1.03 | C5: 0.107 | D5: =IF(ISBLANK(B5),"",C5-($H$8+($I$8*(1+$J$8)-$H$8)*EXP(-$K$8*B5))/(1+$J$8*EXP(-$K$8*B5))) -> -0.001973683167 | E5: =IF(ISBLANK(B5),"",($H$8+($I$8*(1+$J$8)-$H$8)*EXP(-$K$8*B5))/(1+$J$8*EXP(-$K$8*B5))) -> 0.1089736832 | F5: =IF(ISBLANK(B5),"",D5^2/E5) -> 3.574647687e-05 | N5: 2. View the data and estimate the value for a in cell H8 | S5: Prediction | X5: =IF(ISBLANK($B5),"",(-1+EXP($K$8*$B5))/($J$8+EXP($K$8*$B5))) -> 0.9954441453 | Y5: =IF(ISBLANK($B5),"",(1+$J$8)/($J$8+EXP($K$8*$B5))) -> 0.004555854709 | Z5: =IF(ISBLANK($B5),"",(-1+EXP($K$8*$B5))*($I$8-$H$8)/($J$8+EXP($K$8*$B5))^2) -> -0.0228100914 | AA5: =IF(ISBLANK($B5),"",-EXP($K$8*$B5)*(1+$J$8)*($I$8-$H$8)*$B5/($J$8+EXP($K$8*$B5))^2) -> 0.02813860642 | AB5: =SUMPRODUCT(Y$4:Y$103,X$4:X$103) -> 0.01894418453 | AC5: =SUMPRODUCT(Y$4:Y$103,Y$4:Y$103) -> 8.491260684e-05 | AD5: =SUMPRODUCT(Y$4:Y$103,Z$4:Z$103) -> -0.0004246905889 | AE5: =SUMPRODUCT(Y$4:Y$103,AA$4:AA$103) -> 0.0005126306167 | AG5: =COUNT(B4:B53) -> 7 | AH5: 4 | AI5: =SQRT(L8/(AG5-AH5)) -> 0.001915671729
A6: 3 | B6: 1.11 | C6: 0.119 | D6: 0.0004334704386 | E6: =IF(ISBLANK(B6),"",($H$8+($I$8*(1+$J$8)-$H$8)*EXP(-$K$8*B6))/(1+$J$8*EXP(-$K$8*B6))) -> 0.1185665296 | F6: =IF(ISBLANK(B6),"",D6^2/E6) -> 1.584735776e-06 | H6: Regression | S6: Point | T6: Input | U6: Output | X6: 0.9970427153 | Y6: 0.002957284725 | Z6: -0.01483020547 | AA6: 0.0196890174 | AB6: =SUMPRODUCT(Z$4:Z$103,X$4:X$103) -> -0.09485847532 | AC6: =SUMPRODUCT(Z$4:Z$103,Y$4:Y$103) -> -0.0004246905889 | AD6: =SUMPRODUCT(Z$4:Z$103,Z$4:Z$103) -> 0.002124098097 | AE6: =SUMPRODUCT(Z$4:Z$103,AA$4:AA$103) -> -0.002564310125
A7: 4 | B7: 1.19 | C7: 0.125 | D7: 0.0002055401705 | E7: 0.1247944598 | F7: 3.385307468e-07 | H7: Max or Min | I7: Intercept | J7: Shape | K7: Scale | L7: SSE | N7: 3. Guess values of b, c, and d in cells I8, J8, and K8 until the predicted line is close to the observed points | S7: 1 | T7: =$S$4+(S7-1)*($T$4-$S$4)/($U$4-1) -> 0.05 | U7: =($H$8+($I$8*(1+$J$8)-$H$8)*EXP(-$K$8*$T7))/(1+$J$8*EXP(-$K$8*$T7)) -> -4.626023517 | X7: 0.9980805493 | Y7: 0.001919450699 | Z7: -0.009635689951 | AA7: 0.01370265816 | AB7: =SUMPRODUCT(AA$4:AA$103,X$4:X$103) -> 0.1215215278 | AC7: =SUMPRODUCT(AA$4:AA$103,Y$4:Y$103) -> 0.0005126306167 | AD7: =SUMPRODUCT(AA$4:AA$103,Z$4:Z$103) -> -0.002564310125 | AE7: =SUMPRODUCT(AA$4:AA$103,AA$4:AA$103) -> 0.003117308937
A8: 5 | B8: 1.27 | C8: 0.131 | D8: 0.002162808399 | E8: 0.1288371916 | F8: 46.37212723 | G8: 0 | H8: 0.1363128769 | I8: -5.864579476 | J8: 0.1930965035 | K8: 5.405006351 | L8: =SUMPRODUCT(D4:D53,D4:D53) -> 1.100939452e-05 | S8: 2 | T8: 0.0695 | U8: =($H$8+($I$8*(1+$J$8)-$H$8)*EXP(-$K$8*$T8))/(1+$J$8*EXP(-$K$8*$T8)) -> -4.205414964 | X8: 0.9987542377 | Y8: 0.001245762265 | Z8: -0.006257978548 | AA8: 0.009492206062
A9: 6 | B9: 1.35 | C9: 0.131 | D9: -0.0004611918842 | E9: =IF(ISBLANK(B9),"",IF(B9<$J$8,($H$8+$I$8*($J$8-B9)^2),$H$8)) -> 0.1363128769 | F9: =IF(ISBLANK(B9),"",D9^2/E9) -> 1.560365821e-06 | S9: 3 | T9: 0.089 | U9: -3.817409527 | X9: 0.9991915061 | Y9: 0.0008084939177 | Z9: -0.004063177116 | AA9: 0.006548917665 | AB9: inv(Q0)
A10: 7 | B10: 1.43 | C10: 0.132 | D10: -0.001164234096 | E10: 0.1363128769 | F10: 9.943602266e-06 | H10: =IF(ISNUMBER(H13),H$8-1.96*H$13,"N/A") -> 0.1233686975 | I10: =IF(ISNUMBER(I13),I$8-1.96*I$13,"N/A") -> -1861.740761 | J10: =IF(ISNUMBER(J13),J$8-1.96*J$13,"N/A") -> -382.7950369 | K10: =IF(ISNUMBER(K13),K$8-1.96*K$13,"N/A") -> -5.090480935 | L10: Lower 95% Confidence Levels | N10: 4. Press the button below to run solver with current settings | S10: 4 | T10: 0.1085 | U10: -3.460269271 | X10: 0.9994753042 | Y10: 0.000524695757 | Z10: -0.002637666498 | AA10: 0.004502176787 | AB10: =MINVERSE(AB4:AE7) -> 11.88487774 | AC10: -1536424.181 | AD10: -317831.8972 | AE10: -9253.412349
A11: 8 | H11: =IF(ISNUMBER(H14),H$8+1.96*H$13,"N/A") -> 0.1492570562 | I11: =IF(ISNUMBER(I14),I$8+1.96*I$13,"N/A") -> 1850.011602 | J11: =IF(ISNUMBER(J14),J$8+1.96*J$13,"N/A") -> 383.1812299 | K11: =IF(ISNUMBER(K14),K$8+1.96*K$13,"N/A") -> 15.90049364 | L11: Upper 95% Confidence Levels | S11: 5 | T11: 0.128 | U11: -3.132206257 | AB11: -1536424.181 | AC11: 2.443113667e+11 | AD11: 5.041653171e+10 | AE11: 1356569031
A12: 9 | S12: 6 | T12: 0.1475 | U12: -2.831415151 | AB12: -317831.8972 | AC12: 5.041653171e+10 | AD12: 1.040438257e+10 | AE12: 280251094.6
A13: 10 | H13: =IF(ISNUMBER(AB10),SQRT(AB10)*$AI$5,"N/A") -> 0.006604173122 | I13: =IF(ISNUMBER(AC11),SQRT(AC11)*$AI$5,"N/A") -> 946.8756028 | J13: =IF(ISNUMBER(AD12),SQRT(AD12)*$AI$5,"N/A") -> 195.4021089 | K13: =IF(ISNUMBER(AE13),SQRT(AE13)*$AI$5,"N/A") -> 5.354840452 | L13: Standard Errors | S13: 7 | T13: 0.167 | U13: -2.55610051 | AB13: -9253.412349 | AC13: 1356569031 | AD13: 280251094.6 | AE13: 7813594.894
A14: 11 | H14: =IF(ISNUMBER(H13),H8/H13,"N/A") -> 20.64041544 | I14: =IF(ISNUMBER(I13),I8/I13,"N/A") -> -0.006193611345 | J14: =IF(ISNUMBER(J13),J8/J13,"N/A") -> 0.0009882007142 | K14: =IF(ISNUMBER(K13),K8/K13,"N/A") -> 1.009368328 | L14: t-Statistics | N14: 5. Solver will attempt to minimize SSE (red cell) by changing cells H8:K8 | S14: 8 | T14: 0.1865 | U14: -2.304499064
A15: 12 | H15: =IF(ISNUMBER(H14),2*TDIST(ABS(H14),$AG$5-$AH$5,1),"N/A") -> 0.0002486896477 | I15: =IF(ISNUMBER(I14),2*TDIST(ABS(I14),$AG$5-$AH$5,1),"N/A") -> 0.9954470829 | J15: =IF(ISNUMBER(J14),2*TDIST(ABS(J14),$AG$5-$AH$5,1),"N/A") -> 0.9992735687 | K15: =IF(ISNUMBER(K14),2*TDIST(ABS(K14),$AG$5-$AH$5,1),"N/A") -> 0.3871465636 | L15: p-values | S15: 9 | T15: 0.206 | U15: -2.074897394
A16: 13 | H16: =1-L8/(SUMPRODUCT(C4:C103,C4:C103)-COUNT(C4:C103)*AVERAGE(C4:C103)^2) -> 0.9908711488 | L16: Goodness of Fit (R2) | S16: 10 | T16: 0.2255 | U16: -1.865645511
A17: 14 | N17: Note: The four-parameter logistics model reduces to the three-parameter version on the previous worksheet by restricting Shape = Maximum/Intercept – 1 | S17: 11 | T17: 0.245 | U17: -1.675166815
A18: 15 | H18: Functional Form | S18: 12 | T18: 0.2645 | U18: -1.501964965
A19: 16 | S19: 13 | T19: 0.284 | U19: -1.344628126
A20: 17 | H20: y = | I20: Maximum + [Intercept×(1 + Shape) – Maximum]e–Scale×X | S20: 14 | T20: 0.3035 | U20: -1.201831055
A21: 18 | I21: 1 + Shape×e–Scale×X | S21: 15 | T21: 0.323 | U21: -1.07233543
A22: 19 | S22: 16 | T22: 0.3425 | U22: -0.9549887822
A23: 20 | S23: 17 | T23: 0.362 | U23: -0.8487223479
A24: 21 | S24: 18 | T24: 0.3815 | U24: -0.7525481119
A25: 22 | S25: 19 | T25: 0.401 | U25: -0.665555264
A26: 23 | S26: 20 | T26: 0.4205 | U26: -0.5869062613
A27: 24 | S27: 21 | T27: 0.44 | U27: -0.5158326493
A28: 25 | S28: 22 | T28: 0.4595 | U28: -0.4516307642
A29: 26 | S29: 23 | T29: 0.479 | U29: -0.3936574147
A30: 27 | S30: 24 | T30: 0.4985 | U30: -0.3413256205
A31: 28 | S31: 25 | T31: 0.518 | U31: -0.2941004615
A32: 29 | S32: 26 | T32: 0.5375 | U32: -0.2514950829
A33: 30 | S33: 27 | T33: 0.557 | U33: -0.2130668817
A34: 31 | S34: 28 | T34: 0.5765 | U34: -0.178413898
A35: 32 | S35: 29 | T35: 0.596 | U35: -0.1471714178
A36: 33 | S36: 30 | T36: 0.6155 | U36: -0.119008795
A37: =A36+1 -> 34 | S37: 31 | T37: 0.635 | U37: -0.09362649137
A38: 35 | S38: 32 | T38: 0.6545 | U38: -0.07075333019
A39: 36 | S39: 33 | T39: =$S$4+(S39-1)*($T$4-$S$4)/($U$4-1) -> 0.674 | U39: -0.05014395764
A40: 37 | S40: 34 | T40: 0.6935 | U40: -0.03157650295
A41: 38 | S41: 35 | T41: 0.713 | U41: -0.01485042759
A42: 39 | S42: 36 | T42: 0.7325 | U42: 0.0002154472162
A43: 40 | S43: 37 | T43: 0.752 | U43: 0.01378474562
A44: 41 | S44: 38 | T44: 0.7715 | U44: 0.02600518634
A45: 42 | S45: 39 | T45: 0.791 | U45: 0.03701008674
A46: 43 | S46: 40 | T46: 0.8105 | U46: 0.0469197328
A47: 44 | S47: 41 | T47: 0.83 | U47: 0.05584262523
A48: 45 | S48: 42 | T48: 0.8495 | U48: 0.0638766118
A49: 46 | S49: 43 | T49: 0.869 | U49: 0.07110991503
A50: 47 | S50: 44 | T50: 0.8885 | U50: 0.07762206437
A51: 48 | S51: 45 | T51: 0.908 | U51: 0.08348474075
A52: 49 | S52: 46 | T52: 0.9275 | U52: 0.0887625415
A53: 50 | S53: 47 | T53: 0.947 | U53: 0.09351367249
A54: 51 | S54: 48 | T54: 0.9665 | U54: 0.09779057417
A55: 52 | S55: 49 | T55: 0.986 | U55: 0.1016404875
A56: 53 | S56: 50 | T56: 1.0055 | U56: 0.1051059652
A57: 54 | S57: 51 | T57: 1.025 | U57: 0.1082253337
A58: 55 | S58: 52 | T58: 1.0445 | U58: 0.1110331104
A59: 56 | S59: 53 | T59: 1.064 | U59: 0.1135603796
A60: 57 | S60: 54 | T60: 1.0835 | U60: 0.1158351321
A61: 58 | S61: 55 | T61: 1.103 | U61: 0.1178825723
A62: 59 | S62: 56 | T62: 1.1225 | U62: 0.1197253935
A63: 60 | S63: 57 | T63: 1.142 | U63: 0.1213840277
A64: 61 | S64: 58 | T64: 1.1615 | U64: 0.12287687
A65: 62 | S65: 59 | T65: 1.181 | U65: 0.1242204811
A66: 63 | S66: 60 | T66: 1.2005 | U66: 0.1254297694
A67: 64 | S67: 61 | T67: 1.22 | U67: 0.1265181561
A68: 65 | S68: 62 | T68: 1.2395 | U68: 0.1274977223
A69: =A68+1 -> 66 | D69: =IF(ISBLANK(B69),"",C69-($H$8+($I$8*(1+$J$8)-$H$8)*EXP(-$K$8*B69))/(1+$J$8*EXP(-$K$8*B69))) ->  | E69: =IF(ISBLANK(B69),"",IF(B69<$J$8,($H$8+$I$8*($J$8-B69)^2),$H$8)) ->  | F69: =IF(ISBLANK(B69),"",D69^2/E69) ->  | S69: 63 | T69: 1.259 | U69: 0.1283793435 | X69: =IF(ISBLANK($B69),"",(-1+EXP($K$8*$B69))/($J$8+EXP($K$8*$B69))) ->  | Y69: =IF(ISBLANK($B69),"",(1+$J$8)/($J$8+EXP($K$8*$B69))) ->  | Z69: =IF(ISBLANK($B69),"",(-1+EXP($K$8*$B69))*($I$8-$H$8)/($J$8+EXP($K$8*$B69))^2) ->  | AA69: =IF(ISBLANK($B69),"",-EXP($K$8*$B69)*(1+$J$8)*($I$8-$H$8)*$B69/($J$8+EXP($K$8*$B69))^2) -> 
A70: 67 | S70: 64 | T70: 1.2785 | U70: 0.1291728089
A71: 68 | S71: 65 | T71: =$S$4+(S71-1)*($T$4-$S$4)/($U$4-1) -> 1.298 | U71: 0.1298869304
A72: 69 | S72: 66 | T72: 1.3175 | U72: =($H$8+($I$8*(1+$J$8)-$H$8)*EXP(-$K$8*$T72))/(1+$J$8*EXP(-$K$8*$T72)) -> 0.1305296394
A73: 70 | S73: 67 | T73: 1.337 | U73: 0.1311080751
A74: 71 | S74: 68 | T74: 1.3565 | U74: 0.1316286633
A75: 72 | S75: 69 | T75: 1.376 | U75: 0.1320971878
A76: 73 | S76: 70 | T76: 1.3955 | U76: 0.1325188544
A77: 74 | S77: 71 | T77: 1.415 | U77: 0.1328983484
A78: 75 | S78: 72 | T78: 1.4345 | U78: 0.1332398869
A79: 76 | S79: 73 | T79: 1.454 | U79: 0.1335472656
A80: 77 | S80: 74 | T80: 1.4735 | U80: 0.1338239005
A81: 78 | S81: 75 | T81: 1.493 | U81: 0.1340728663
A82: 79 | S82: 76 | T82: 1.5125 | U82: 0.1342969299
A83: 80 | S83: 77 | T83: 1.532 | U83: 0.1344985821
A84: 81 | S84: 78 | T84: 1.5515 | U84: 0.1346800642
A85: 82 | S85: 79 | T85: 1.571 | U85: 0.1348433935
A86: 83 | S86: 80 | T86: 1.5905 | U86: 0.1349903857
A87: 84 | S87: 81 | T87: 1.61 | U87: 0.1351226747
A88: 85 | S88: 82 | T88: 1.6295 | U88: 0.1352417312
A89: 86 | S89: 83 | T89: 1.649 | U89: 0.1353488788
A90: 87 | S90: 84 | T90: 1.6685 | U90: 0.1354453085
A91: 88 | S91: 85 | T91: 1.688 | U91: 0.1355320925
A92: 89 | S92: 86 | T92: 1.7075 | U92: 0.1356101955
A93: 90 | S93: 87 | T93: 1.727 | U93: 0.1356804859
A94: 91 | S94: 88 | T94: 1.7465 | U94: 0.1357437452
A95: 92 | S95: 89 | T95: 1.766 | U95: 0.1358006766
A96: 93 | S96: 90 | T96: 1.7855 | U96: 0.1358519131
A97: 94 | S97: 91 | T97: 1.805 | U97: 0.1358980243
A98: 95 | S98: 92 | T98: 1.8245 | U98: 0.135939523
A99: 96 | S99: 93 | T99: 1.844 | U99: 0.1359768705
A100: 97 | S100: 94 | T100: 1.8635 | U100: 0.1360104821
A101: 98 | S101: 95 | T101: 1.883 | U101: 0.1360407315
A102: 99 | S102: 96 | T102: 1.9025 | U102: 0.1360679549
A103: 100 | S103: 97 | T103: =$S$4+(S103-1)*($T$4-$S$4)/($U$4-1) -> 1.922 | U103: 0.1360924551
E104: =SUM(E4:E103) -> 0.8479989022 | F104: =SUM(F4:F103) -> 46.37218317 | S104: 98 | T104: =$S$4+(S104-1)*($T$4-$S$4)/($U$4-1) -> 1.9415 | U104: 0.1361145045
S105: 99 | T105: =$S$4+(S105-1)*($T$4-$S$4)/($U$4-1) -> 1.961 | U105: 0.1361343483
S106: 100 | T106: =$S$4+(S106-1)*($T$4-$S$4)/($U$4-1) -> 1.9805 | U106: 0.136152207
S107: 101 | T107: =$S$4+(S107-1)*($T$4-$S$4)/($U$4-1) -> 2 | U107: 0.1361682793

Sheet RNB, Model 1
B1: Fitting the RNB Model 1 to Nutritional Response Data
B2: Data | H2: Sample Statistics | S2: Plotting Parameters | X2: Error Analysis
A3: Point | B3: Input | C3: Output | D3: Residuals | E3: Expected | F3: Qm | H3: Min Input | I3: =MIN(B4:B103) -> 0.95 | J3: Min Output | K3: =MIN(C4:C103) -> 0.095 | N3: Instructions | S3: Min Input | T3: Max Input | U3: # of Points | X3: Lower Asymptote(X0) | Y3: Range(X1) | Z3: r(X2) | AA3: s(X3) | AB3: Q0 | AG3: Number of Observations, T | AH3: Number of Regressors, K | AI3: sigma
A4: 1 | B4: 0.95 | C4: 0.095 | D4: =IF(ISBLANK(B4),"",C4-($H$8+$I$8/(1+EXP($J$8+$K$8*B4)))) -> 0.0006285171218 | E4: =IF(ISBLANK(B4),"",($H$8+$I$8/(1+EXP($J$8+$K$8*B4)))) -> 0.09437148288 | F4: =IF(ISBLANK(B4),"",D4^2/E4) -> 4.185944316e-06 | H4: Max Input | I4: =MAX(B4:B103) -> 1.43 | J4: Max Output | K4: =MAX(C4:C103) -> 0.132 | N4: 1. Copy data in cells B4:C103 | S4: 0.1 | T4: =CEILING(I4,1) -> 2 | U4: 101 | X4: =IF(ISBLANK(B4),"",1) -> 1 | Y4: =IF(ISBLANK($B4),"",1/(1+EXP($J$8+$K$8*$B4))) -> 0.9825173011 | Z4: =IF(ISBLANK($B4),"",-$I$8*EXP($J$8+$K$8*$B4)/(1+EXP($J$8+$K$8*$B4))^2) -> -0.04140095168 | AA4: =IF(ISBLANK($B4),"",-$I$8*B4*EXP($J$8+$K$8*$B4)/(1+EXP($J$8+$K$8*$B4))^2) -> -0.0393309041 | AB4: =SUMPRODUCT(X$4:X$103,X$4:X$103) -> 7 | AC4: =SUMPRODUCT(X$4:X$103,Y$4:Y$103) -> 6.952035677 | AD4: =SUMPRODUCT(X$4:X$103,Z$4:Z$103) -> -0.1143201647 | AE4: =SUMPRODUCT(X$4:X$103,AA$4:AA$103) -> -0.122502216
A5: =A4+1 -> 2 | B5: 1.03 | C5: 0.107 | D5: =IF(ISBLANK(B5),"",C5-($H$8+$I$8/(1+EXP($J$8+$K$8*B5)))) -> -0.001891601981 | E5: =IF(ISBLANK(B5),"",($H$8+$I$8/(1+EXP($J$8+$K$8*B5)))) -> 0.108891602 | F5: =IF(ISBLANK(B5),"",D5^2/E5) -> 3.285981645e-05 | N5: 2. View the data and estimate values for the lower asymptote and the range in cells H8 and I8 | S5: Prediction | X5: =IF(ISBLANK(B5),"",1) -> 1 | Y5: =IF(ISBLANK($B5),"",1/(1+EXP($J$8+$K$8*$B5))) -> 0.9885416281 | Z5: =IF(ISBLANK($B5),"",-$I$8*EXP($J$8+$K$8*$B5)/(1+EXP($J$8+$K$8*$B5))^2) -> -0.02730106037 | AA5: =IF(ISBLANK($B5),"",-$I$8*B5*EXP($J$8+$K$8*$B5)/(1+EXP($J$8+$K$8*$B5))^2) -> -0.02812009219 | AB5: =SUMPRODUCT(Y$4:Y$103,X$4:X$103) -> 6.952035677 | AC5: =SUMPRODUCT(Y$4:Y$103,Y$4:Y$103) -> 6.904604795 | AD5: =SUMPRODUCT(Y$4:Y$103,Z$4:Z$103) -> -0.1130523492 | AE5: =SUMPRODUCT(Y$4:Y$103,AA$4:AA$103) -> -0.1212233325 | AG5: =COUNT(B4:B53) -> 7 | AH5: 4 | AI5: =SQRT(L8/(AG5-AH5)) -> 0.001908038899
A6: 3 | B6: 1.11 | C6: 0.119 | D6: 0.0005535729743 | E6: 0.118446427 | F6: 2.587186846e-06 | H6: Regression | S6: Point | T6: Input | U6: Output | X6: 1 | Y6: 0.9925058787 | Z6: -0.01792732309 | AA6: -0.01989932863 | AB6: =SUMPRODUCT(Z$4:Z$103,X$4:X$103) -> -0.1143201647 | AC6: =SUMPRODUCT(Z$4:Z$103,Y$4:Y$103) -> -0.1130523492 | AD6: =SUMPRODUCT(Z$4:Z$103,Z$4:Z$103) -> 0.003013250386 | AE6: =SUMPRODUCT(Z$4:Z$103,AA$4:AA$103) -> 0.003040721504
A7: 4 | B7: 1.19 | C7: 0.125 | D7: 0.000288061307 | E7: 0.1247119387 | F7: 6.653678668e-07 | H7: Lower Asymptote | I7: Range | J7: r | K7: s | L7: SSE | S7: 1 | T7: =$S$4+(S7-1)*($T$4-$S$4)/($U$4-1) -> 0.1 | U7: =$H$8+$I$8/(1+EXP($J$8+$K$8*T7)) -> -1.377894335 | X7: 1 | Y7: 0.9951054091 | Z7: -0.01173943304 | AA7: -0.01396992532 | AB7: =SUMPRODUCT(AA$4:AA$103,X$4:X$103) -> -0.122502216 | AC7: =SUMPRODUCT(AA$4:AA$103,Y$4:Y$103) -> -0.1212233325 | AD7: =SUMPRODUCT(AA$4:AA$103,Z$4:Z$103) -> 0.003040721504 | AE7: =SUMPRODUCT(AA$4:AA$103,AA$4:AA$103) -> 0.003091354312
A8: 5 | B8: 1.27 | C8: 0.131 | D8: 0.002188911095 | E8: 0.1288110889 | F8: 3.719657852e-05 | H8: -2.273738382 | I8: 2.410247496 | J8: 1.060765445 | K8: -5.357549096 | L8: =SUMPRODUCT(D4:D53,D4:D53) -> 1.092183732e-05 | N8: 3. Guess r and s values in cells G8 and I8 until the predicted line is close to the observed points | S8: 2 | T8: 0.119 | U8: =$H$8+$I$8/(1+EXP($J$8+$K$8*T8)) -> -1.319889726 | X8: 1 | Y8: 0.9968061267 | Z8: -0.007673438657 | AA8: -0.009745267095
A9: 6 | B9: 1.35 | C9: 0.131 | D9: -0.0004888936406 | E9: 0.1314888936 | F9: 1.817773237e-06 | S9: 3 | T9: 0.138 | U9: -1.260641877 | X9: 1 | Y9: 0.9979171349 | Z9: -0.005009763996 | AA9: -0.006763181395 | AB9: inv(Q0)
A10: 7 | B10: 1.43 | C10: 0.132 | D10: -0.001236476593 | E10: 0.1332364766 | F10: 1.14748934e-05 | H10: =IF(ISNUMBER(H13),H$8-1.96*H$13,"N/A") -> -306.4479244 | I10: =IF(ISNUMBER(I13),I$8-1.96*I$13,"N/A") -> -301.7759573 | J10: =IF(ISNUMBER(J13),J$8-1.96*J$13,"N/A") -> -136.8295455 | K10: =IF(ISNUMBER(K13),K$8-1.96*K$13,"N/A") -> -15.79325489 | L10: Lower 95% Confidence Levels | N10: 4. Press the button below to run solver with current settings | S10: 4 | T10: 0.157 | U10: -1.200426013 | X10: 1 | Y10: 0.9986421986 | Z10: -0.003268193894 | AA10: -0.004673517268 | AB10: =MINVERSE(AB4:AE7) -> 6615430598 | AC10: -6615691991 | AD10: 2998709319 | AE10: -223061297.6
A11: 8 | H11: =IF(ISNUMBER(H14),H$8+1.96*H$13,"N/A") -> 301.9004477 | I11: =IF(ISNUMBER(I14),I$8+1.96*I$13,"N/A") -> 306.5964523 | J11: =IF(ISNUMBER(J14),J$8+1.96*J$13,"N/A") -> 138.9510764 | K11: =IF(ISNUMBER(K14),K$8+1.96*K$13,"N/A") -> 5.078156698 | L11: Upper 95% Confidence Levels | S11: 5 | T11: 0.176 | U11: -1.139536552 | AB11: -6615691991 | AC11: 6615953395 | AD11: -2998828438 | AE11: 223070823.2
A12: 9 | S12: 6 | T12: 0.195 | U12: -1.07828155 | AB12: 2998709319 | AC12: -2998828438 | AD12: 1359505317 | AE12: -101352703
A13: 10 | H13: =IF(ISNUMBER(AB10),SQRT(AB10)*$AI$5,"N/A") -> 155.1909113 | I13: =IF(ISNUMBER(AC11),SQRT(AC11)*$AI$5,"N/A") -> 155.1970433 | J13: =IF(ISNUMBER(AD12),SQRT(AD12)*$AI$5,"N/A") -> 70.35219946 | K13: =IF(ISNUMBER(AE13),SQRT(AE13)*$AI$5,"N/A") -> 5.324339691 | L13: Standard Errors | S13: 7 | T13: 0.214 | U13: -1.016976553 | AB13: -223061297.7 | AC13: 223070823.3 | AD13: -101352703 | AE13: 7786764.893
A14: 11 | H14: =IF(ISNUMBER(H13),H8/H13,"N/A") -> -0.01465123417 | I14: =IF(ISNUMBER(I13),I8/I13,"N/A") -> 0.01553024107 | J14: =IF(ISNUMBER(J13),J8/J13,"N/A") -> 0.01507792866 | K14: =IF(ISNUMBER(K13),K8/K13,"N/A") -> -1.006237281 | L14: t-Statistics | N14: 5. Solver will attempt to minimize SSE (red cell) by changing cells H8:K8 | S14: 8 | T14: 0.233 | U14: -0.9559381408
A15: 12 | H15: =IF(ISNUMBER(H14),2*TDIST(ABS(H14),$AG$5-$AH$5,1),"N/A") -> 0.9892303154 | I15: =IF(ISNUMBER(I14),2*TDIST(ABS(I14),$AG$5-$AH$5,1),"N/A") -> 0.988584251 | J15: =IF(ISNUMBER(J14),2*TDIST(ABS(J14),$AG$5-$AH$5,1),"N/A") -> 0.9889166963 | K15: =IF(ISNUMBER(K14),2*TDIST(ABS(K14),$AG$5-$AH$5,1),"N/A") -> 0.3884311587 | L15: p-values | S15: 9 | T15: 0.252 | U15: -0.8954774115
A16: 13 | H16: =1-L8/(SUMPRODUCT(C4:C103,C4:C103)-COUNT(C4:C103)*AVERAGE(C4:C103)^2) -> 0.9909437501 | L16: Goodness of Fit (R2) | S16: 10 | T16: 0.271 | U16: -0.8358937149
A17: 14 | S17: 11 | T17: 0.29 | U17: -0.7774688815
A18: 15 | H18: Functional Form | S18: 12 | T18: 0.309 | U18: -0.7204621853
A19: 16 | H19: y =Lower Asymptote + | J19: Range | S19: 13 | T19: 0.328 | U19: -0.6651062144
A20: 17 | J20: 1 + er + s×X | S20: 14 | T20: 0.347 | U20: -0.6116037665
A21: 18 | S21: 15 | T21: 0.366 | U21: -0.5601258199
A22: 19 | S22: 16 | T22: 0.385 | U22: -0.5108105716
A23: 20 | S23: 17 | T23: 0.404 | U23: -0.4637634765
A24: 21 | S24: 18 | T24: 0.423 | U24: -0.4190581783
A25: 22 | S25: 19 | T25: 0.442 | U25: -0.3767381949
A26: 23 | S26: 20 | T26: 0.461 | U26: -0.3368191973
A27: 24 | S27: 21 | T27: 0.48 | U27: -0.2992917232
A28: 25 | S28: 22 | T28: 0.499 | U28: -0.2641241662
A29: 26 | S29: 23 | T29: 0.518 | U29: -0.231265897
A30: 27 | S30: 24 | T30: 0.537 | U30: -0.2006503941
A31: 28 | S31: 25 | T31: 0.556 | U31: -0.1721982801
A32: 29 | S32: 26 | T32: 0.575 | U32: -0.1458201865
A33: 30 | S33: 27 | T33: 0.594 | U33: -0.1214193881
A34: 31 | S34: 28 | T34: 0.613 | U34: -0.09889417368
A35: 32 | S35: 29 | T35: 0.632 | U35: -0.07813993125
A36: 33 | S36: 30 | T36: 0.651 | U36: -0.05905094571
A37: =A36+1 -> 34 | S37: 31 | T37: 0.67 | U37: -0.04152191448
A38: 35 | S38: 32 | T38: 0.689 | U38: -0.02544919673
A39: 36 | S39: 33 | T39: =$S$4+(S39-1)*($T$4-$S$4)/($U$4-1) -> 0.708 | U39: -0.01073181691
A40: 37 | S40: 34 | T40: 0.727 | U40: 0.002727753374
A41: 38 | S41: 35 | T41: 0.746 | U41: 0.01502300931
A42: 39 | S42: 36 | T42: 0.765 | U42: 0.02624299681
A43: 40 | S43: 37 | T43: 0.784 | U43: 0.03647204129
A44: 41 | S44: 38 | T44: 0.803 | U44: 0.04578959783
A45: 42 | S45: 39 | T45: 0.822 | U45: 0.05427020113
A46: 43 | S46: 40 | T46: 0.841 | U46: 0.06198349602
A47: 44 | S47: 41 | T47: 0.86 | U47: 0.06899433147
A48: 45 | S48: 42 | T48: 0.879 | U48: 0.07536290345
A49: 46 | S49: 43 | T49: 0.898 | U49: 0.08114493406
A50: 47 | S50: 44 | T50: 0.917 | U50: 0.08639187639
A51: 48 | S51: 45 | T51: 0.936 | U51: 0.09115113636
A52: 49 | S52: 46 | T52: 0.955 | U52: 0.0954663044
A53: 50 | S53: 47 | T53: 0.974 | U53: 0.0993773912
A54: 51 | S54: 48 | T54: 0.993 | U54: 0.1029210631
A55: 52 | S55: 49 | T55: 1.012 | U55: 0.1061308732
A56: 53 | S56: 50 | T56: 1.031 | U56: 0.1090374866
A57: 54 | S57: 51 | T57: 1.05 | U57: 0.1116688957
A58: 55 | S58: 52 | T58: 1.069 | U58: 0.1140506272
A59: 56 | S59: 53 | T59: 1.088 | U59: 0.1162059371
A60: 57 | S60: 54 | T60: 1.107 | U60: 0.1181559947
A61: 58 | S61: 55 | T61: 1.126 | U61: 0.1199200554
A62: 59 | S62: 56 | T62: 1.145 | U62: 0.1215156213
A63: 60 | S63: 57 | T63: 1.164 | U63: 0.1229585916
A64: 61 | S64: 58 | T64: 1.183 | U64: 0.1242634008
A65: 62 | S65: 59 | T65: 1.202 | U65: 0.1254431471
A66: 63 | S66: 60 | T66: 1.221 | U66: 0.1265097112
A67: 64 | S67: 61 | T67: 1.24 | U67: 0.1274738644
A68: 65 | S68: 62 | T68: 1.259 | U68: 0.1283453691
A69: =A68+1 -> 66 | D69: =IF(ISBLANK(B69),"",C69-($H$8+$I$8/(1+EXP($J$8+$K$8*B69)))) ->  | E69: =IF(ISBLANK(B69),"",($H$8+$I$8/(1+EXP($J$8+$K$8*B69)))) ->  | F69: =IF(ISBLANK(B69),"",D69^2/E69) ->  | S69: 63 | T69: 1.278 | U69: 0.1291330702 | X69: =IF(ISBLANK(B69),"",1) ->  | Y69: =IF(ISBLANK($B69),"",1/(1+EXP($J$8+$K$8*$B69))) ->  | Z69: =IF(ISBLANK($B69),"",-$I$8*EXP($J$8+$K$8*$B69)/(1+EXP($J$8+$K$8*$B69))^2) ->  | AA69: =IF(ISBLANK($B69),"",-$I$8*B69*EXP($J$8+$K$8*$B69)/(1+EXP($J$8+$K$8*$B69))^2) -> 
A70: 67 | S70: 64 | T70: 1.297 | U70: 0.1298449786
A71: 68 | S71: 65 | T71: =$S$4+(S71-1)*($T$4-$S$4)/($U$4-1) -> 1.316 | U71: 0.1304883484
A72: 69 | S72: 66 | T72: 1.335 | U72: =$H$8+$I$8/(1+EXP($J$8+$K$8*T72)) -> 0.1310697465
A73: 70 | S73: 67 | T73: 1.354 | U73: 0.1315951164
A74: 71 | S74: 68 | T74: 1.373 | U74: 0.1320698362
A75: 72 | S75: 69 | T75: 1.392 | U75: 0.1324987719
A76: 73 | S76: 70 | T76: 1.411 | U76: 0.1328863251
A77: 74 | S77: 71 | T77: 1.43 | U77: 0.1332364766
A78: 75 | S78: 72 | T78: 1.449 | U78: 0.1335528267
A79: 76 | S79: 73 | T79: 1.468 | U79: 0.1338386307
A80: 77 | S80: 74 | T80: 1.487 | U80: 0.1340968318
A81: 78 | S81: 75 | T81: 1.506 | U81: 0.1343300908
A82: 79 | S82: 76 | T82: 1.525 | U82: 0.1345408129
A83: 80 | S83: 77 | T83: 1.544 | U83: 0.1347311722
A84: 81 | S84: 78 | T84: 1.563 | U84: 0.1349031337
A85: 82 | S85: 79 | T85: 1.582 | U85: 0.1350584732
A86: 83 | S86: 80 | T86: 1.601 | U86: 0.1351987955
A87: 84 | S87: 81 | T87: 1.62 | U87: 0.135325551
A88: 85 | S88: 82 | T88: 1.639 | U88: 0.13544005
A89: 86 | S89: 83 | T89: 1.658 | U89: 0.1355434768
A90: 87 | S90: 84 | T90: 1.677 | U90: 0.1356369011
A91: 88 | S91: 85 | T91: 1.696 | U91: 0.1357212897
A92: 89 | S92: 86 | T92: 1.715 | U92: 0.1357975159
A93: 90 | S93: 87 | T93: 1.734 | U93: 0.1358663687
A94: 91 | S94: 88 | T94: 1.753 | U94: 0.1359285611
A95: 92 | S95: 89 | T95: 1.772 | U95: 0.1359847371
A96: 93 | S96: 90 | T96: 1.791 | U96: 0.1360354784
A97: 94 | S97: 91 | T97: 1.81 | U97: 0.1360813105
A98: 95 | S98: 92 | T98: 1.829 | U98: 0.1361227084
A99: 96 | S99: 93 | T99: 1.848 | U99: 0.1361601008
A100: 97 | S100: 94 | T100: 1.867 | U100: 0.1361938753
A101: 98 | S101: 95 | T101: 1.886 | U101: 0.1362243817
A102: 99 | S102: 96 | T102: 1.905 | U102: 0.1362519363
A103: 100 | S103: 97 | T103: =$S$4+(S103-1)*($T$4-$S$4)/($U$4-1) -> 1.924 | U103: 0.1362768245
E104: =SUM(E4:E103) -> 0.8399579097 | F104: =SUM(F4:F103) -> 9.078756064e-05 | S104: 98 | T104: =$S$4+(S104-1)*($T$4-$S$4)/($U$4-1) -> 1.943 | U104: 0.1362993045
S105: 99 | T105: =$S$4+(S105-1)*($T$4-$S$4)/($U$4-1) -> 1.962 | U105: 0.1363196091
S106: 100 | T106: =$S$4+(S106-1)*($T$4-$S$4)/($U$4-1) -> 1.981 | U106: 0.1363379488
S107: 101 | T107: =$S$4+(S107-1)*($T$4-$S$4)/($U$4-1) -> 2 | U107: 0.1363545138

Sheet RNB, Model 2
B1: Fitting the RNB Model 2 to Nutritional Response Data
B2: Data | H2: Sample Statistics | S2: Plotting Parameters | X2: Error Analysis
A3: Point | B3: Input | C3: Output | D3: Residuals | E3: Expected | F3: Qm | H3: Min Input | I3: =MIN(B4:B103) -> 0.95 | J3: Min Output | K3: =MIN(C4:C103) -> 0.095 | N3: Instructions | S3: Min Input | T3: Max Input | U3: # of Points | X3: Intercept(X0) | Y3: Maximum(X1) | Z3: c(X2) | AA3: Q0 | AE3: Number of Observations, T | AF3: Number of Regressors, K | AG3: sigma
A4: 1 | B4: 0.95 | C4: 0.095 | D4: =IF(ISBLANK(B4),"",C4-($H$8+$I$8*(1-EXP(B4*$J$8)))) -> 0.0004756663006 | E4: =IF(ISBLANK(B4),"",($H$8+$I$8*(1-EXP(B4*$J$8)))) -> 0.0945243337 | F4: =IF(ISBLANK(B4),"",D4^2/E4) -> 2.393652731e-06 | H4: Max Input | I4: =MAX(B4:B103) -> 1.43 | J4: Max Output | K4: =MAX(C4:C103) -> 0.132 | N4: 1. Copy data in cells B4:C103 | S4: 0.05 | T4: =CEILING(I4,1) -> 2 | U4: 101 | X4: =IF(ISBLANK($B4),"",1) -> 1 | Y4: =IF(ISBLANK($B4),"",(1-EXP($J$8*$B4))) -> 0.9923806818 | Z4: =IF(ISBLANK($B4),"",-B4*$I$8*EXP($J$8*$B4)) -> -0.04043839629 | AA4: =SUMPRODUCT(X$4:X$103,X$4:X$103) -> 7 | AB4: =SUMPRODUCT(X$4:X$103,Y$4:Y$103) -> 6.978654646 | AC4: =SUMPRODUCT(X$4:X$103,Z$4:Z$103) -> -0.1280783261
A5: =A4+1 -> 2 | B5: 1.03 | C5: 0.107 | D5: =IF(ISBLANK(B5),"",C5-($H$8+$I$8*(1-EXP(B5*$J$8)))) -> -0.001861425354 | E5: =IF(ISBLANK(B5),"",($H$8+$I$8*(1-EXP(B5*$J$8)))) -> 0.1088614254 | F5: =IF(ISBLANK(B5),"",D5^2/E5) -> 3.182857781e-05 | N5: 2. View the data and estimate values for the Intercept in cell H8 | S5: Prediction | X5: =IF(ISBLANK($B5),"",1) -> 1 | Y5: =IF(ISBLANK($B5),"",(1-EXP($J$8*$B5))) -> 0.9949469784 | Z5: =IF(ISBLANK($B5),"",-B5*$I$8*EXP($J$8*$B5)) -> -0.02907653052 | AA5: =SUMPRODUCT(Y$4:Y$103,X$4:X$103) -> 6.978654646 | AB5: =SUMPRODUCT(Y$4:Y$103,Y$4:Y$103) -> 6.957412595 | AC5: =SUMPRODUCT(Y$4:Y$103,Z$4:Z$103) -> -0.1274948398 | AE5: =COUNT(B4:B53) -> 7 | AF5: 3 | AG5: =SQRT(K8/(AE5-AF5)) -> 0.001683999738
A6: 3 | B6: 1.11 | C6: 0.119 | D6: 0.0006304229391 | E6: 0.1183695771 | F6: 3.357561056e-06 | H6: Regression | S6: Point | T6: Input | U6: Output | X6: 1 | Y6: 0.9966489092 | Z6: -0.02078085343 | AA6: =SUMPRODUCT(Z$4:Z$103,X$4:X$103) -> -0.1280783261 | AB6: =SUMPRODUCT(Z$4:Z$103,Y$4:Y$103) -> -0.1274948398 | AC6: =SUMPRODUCT(Z$4:Z$103,Z$4:Z$103) -> 0.003321363619
A7: 4 | B7: 1.19 | C7: 0.125 | D7: 0.0003247543235 | E7: 0.1246752457 | F7: 8.459206961e-07 | H7: Intercept | I7: Range | J7: c | K7: SSE | N7: 3. Guess values of Maximum and c in cells I8 and J8 until the predicted line is close to the observed points | S7: 1 | T7: =$S$4+(S7-1)*($T$4-$S$4)/($U$4-1) -> 0.05 | U7: =$H$8+$I$8*(1-EXP(T7*$J$8)) -> -4.184822815 | X7: 1 | Y7: 0.9977776051 | Z7: -0.01477482694 | AA7: inv(Q0)
A8: 5 | B8: 1.27 | C8: 0.131 | D8: 0.00214292615 | E8: 0.1288570739 | F8: 3.563741086e-05 | H8: -5.449594236 | I8: 5.586685303 | J8: -5.1337562 | K8: =SUMPRODUCT(D4:D53,D4:D53) -> 1.134342046e-05 | S8: 2 | T8: 0.0695 | U8: =$H$8+$I$8*(1-EXP(T8*$J$8)) -> -3.773115044 | X8: 1 | Y8: 0.9985261399 | Z8: -0.01045717084 | AA8: =MINVERSE(AA4:AC6) -> 6608935.01 | AB8: -6605232.897 | AC8: 1303146.525
A9: 6 | B9: 1.35 | C9: 0.131 | D9: -0.0006304017784 | E9: 0.1316304018 | F9: 3.019108024e-06 | S9: 3 | T9: 0.089 | U9: -3.40062677 | X9: 1 | Y9: 0.9990225573 | Z9: -0.007371897558 | AA9: -6605232.897 | AB9: 6601533.343 | AC9: -1302397.941
A10: 7 | B10: 1.43 | C10: 0.132 | D10: -0.001469632726 | E10: 0.1334696327 | F10: 1.618211053e-05 | H10: =IF(ISNUMBER(H13),H$8-1.96*H$13,"N/A") -> -13.93482839 | I10: =IF(ISNUMBER(I13),I$8-1.96*I$13,"N/A") -> -2.893796008 | J10: =IF(ISNUMBER(J13),J$8-1.96*J$13,"N/A") -> -6.810172398 | K10: Lower 95% Confidence Levels | N10: 4. Press the button below to run solver with current settings | S10: 4 | T10: 0.1085 | U10: -3.063621924 | X10: 1 | Y10: 0.9993517741 | Z10: -0.005178650492 | AA10: 1303146.525 | AB10: -1302397.941 | AC10: 257968.9969
A11: 8 | H11: =IF(ISNUMBER(H14),H$8+1.96*H$13,"N/A") -> 3.035639919 | I11: =IF(ISNUMBER(I14),I$8+1.96*I$13,"N/A") -> 14.06716661 | J11: =IF(ISNUMBER(J14),J$8+1.96*J$13,"N/A") -> -3.457340002 | K11: Upper 95% Confidence Levels | S11: 5 | T11: 0.128 | U11: -2.758720335
A12: 9 | S12: 6 | T12: 0.1475 | U12: -2.48286383
A13: 10 | H13: =IF(ISNUMBER(AA8),SQRT(AA8)*$AG$5,"N/A") -> 4.3292011 | I13: =IF(ISNUMBER(AB9),SQRT(AB9)*$AG$5,"N/A") -> 4.326776179 | J13: =IF(ISNUMBER(AC10),SQRT(AC10)*$AG$5,"N/A") -> 0.8553143865 | K13: Standard Errors | S13: 7 | T13: 0.167 | U13: -2.23328556
A14: 11 | H14: =IF(ISNUMBER(H13),H8/H13,"N/A") -> -1.258799051 | I14: =IF(ISNUMBER(I13),I8/I13,"N/A") -> 1.291188883 | J14: =IF(ISNUMBER(J13),J8/J13,"N/A") -> -6.002186191 | K14: t-Statistics | N14: 5. Solver will attempt to minimize SSE (red cell) by changing cells H8:J8 | S14: 8 | T14: 0.1865 | U14: -2.007482246
A15: 12 | H15: =IF(ISNUMBER(H14),2*TDIST(ABS(H14),$AE$5-$AF$5,1),"N/A") -> 0.2765600925 | I15: =IF(ISNUMBER(I14),2*TDIST(ABS(I14),$AE$5-$AF$5,1),"N/A") -> 0.2662035875 | J15: =IF(ISNUMBER(J14),2*TDIST(ABS(J14),$AE$5-$AF$5,1),"N/A") -> 0.003877356287 | K15: p-values | S15: 9 | T15: 0.206 | U15: -1.803189074
A16: 13 | H16: =1-K8/(SUMPRODUCT(C4:C103,C4:C103)-COUNT(C4:C103)*AVERAGE(C4:C103)^2) -> 0.9905941787 | K16: Goodness of Fit (R2) | S16: 10 | T16: 0.2255 | U16: -1.618356976
A17: 14 | S17: 11 | T17: 0.245 | U17: -1.45113208
A18: 15 | H18: Functional Form | S18: 12 | T18: 0.2645 | U18: -1.299837114
A19: 16 | H19: y = a + b×(1 – ec×X) | S19: 13 | T19: 0.284 | U19: -1.162954586
A20: 17 | S20: 14 | T20: 0.3035 | U20: -1.039111559
A21: 18 | S21: 15 | T21: 0.323 | U21: -0.9270658836
A22: 19 | S22: 16 | T22: 0.3425 | U22: -0.8256937374
A23: 20 | S23: 17 | T23: 0.362 | U23: -0.7339783548
A24: 21 | S24: 18 | T24: 0.3815 | U24: -0.6509998274
A25: 22 | S25: 19 | T25: 0.401 | U25: -0.5759258777
A26: 23 | S26: 20 | T26: 0.4205 | U26: -0.5080035117
A27: 24 | S27: 21 | T27: 0.44 | U27: -0.4465514657
A28: 25 | S28: 22 | T28: 0.4595 | U28: -0.3909533736
A29: 26 | S29: 23 | T29: 0.479 | U29: -0.3406515848
A30: 27 | S30: 24 | T30: 0.4985 | U30: -0.2951415706
A31: 28 | S31: 25 | T31: 0.518 | U31: -0.2539668642
A32: 29 | S32: 26 | T32: 0.5375 | U32: -0.2167144817
A33: 30 | S33: 27 | T33: 0.557 | U33: -0.1830107806
A34: 31 | S34: 28 | T34: 0.5765 | U34: -0.1525177117
A35: 32 | S35: 29 | T35: 0.596 | U35: -0.1249294284
A36: 33 | S36: 30 | T36: 0.6155 | U36: -0.09996921937
A37: =A36+1 -> 34 | S37: 31 | T37: 0.635 | U37: -0.07738673288
A38: 35 | S38: 32 | T38: 0.6545 | U38: -0.05695546582
A39: 36 | S39: 33 | T39: =$S$4+(S39-1)*($T$4-$S$4)/($U$4-1) -> 0.674 | U39: -0.03847049192
A40: 37 | S40: 34 | T40: 0.6935 | U40: -0.02174640628
A41: 38 | S41: 35 | T41: 0.713 | U41: -0.006615465762
A42: 39 | S42: 36 | T42: 0.7325 | U42: 0.007074093473
A43: 40 | S43: 37 | T43: 0.752 | U43: 0.01945957815
A44: 41 | S44: 38 | T44: 0.7715 | U44: 0.0306652151
A45: 42 | S45: 39 | T45: 0.791 | U45: 0.04080339723
A46: 43 | S46: 40 | T46: 0.8105 | U46: 0.04997581084
A47: 44 | S47: 41 | T47: 0.83 | U47: 0.05827445555
A48: 45 | S48: 42 | T48: 0.8495 | U48: 0.06578256703
A49: 46 | S49: 43 | T49: 0.869 | U49: 0.0725754519
A50: 47 | S50: 44 | T50: 0.8885 | U50: 0.07872124301
A51: 48 | S51: 45 | T51: 0.908 | U51: 0.08428158286
A52: 49 | S52: 46 | T52: 0.9275 | U52: 0.08931224183
A53: 50 | S53: 47 | T53: 0.947 | U53: 0.0938636776
A54: 51 | S54: 48 | T54: 0.9665 | U54: 0.09798154123
A55: 52 | S55: 49 | T55: 0.986 | U55: 0.101707135
A56: 53 | S56: 50 | T56: 1.0055 | U56: 0.1050778268
A57: 54 | S57: 51 | T57: 1.025 | U57: 0.1081274247
A58: 55 | S58: 52 | T58: 1.0445 | U58: 0.1108865164
A59: 56 | S59: 53 | T59: 1.064 | U59: 0.1133827755
A60: 57 | S60: 54 | T60: 1.0835 | U60: 0.1156412397
A61: 58 | S61: 55 | T61: 1.103 | U61: 0.1176845614
A62: 59 | S62: 56 | T62: 1.1225 | U62: 0.1195332352
A63: 60 | S63: 57 | T63: 1.142 | U63: 0.1212058034
A64: 61 | S64: 58 | T64: 1.1615 | U64: 0.1227190418
A65: 62 | S65: 59 | T65: 1.181 | U65: 0.1240881284
A66: 63 | S66: 60 | T66: 1.2005 | U66: 0.1253267951
A67: 64 | S67: 61 | T67: 1.22 | U67: 0.1264474657
A68: 65 | S68: 62 | T68: 1.2395 | U68: 0.1274613807
A69: =A68+1 -> 66 | D69: =IF(ISBLANK(B69),"",C69-($H$8+$I$8*(1-EXP(B69*$J$8)))) ->  | E69: =IF(ISBLANK(B69),"",($H$8+$I$8*(1-EXP(B69*$J$8)))) ->  | F69: =IF(ISBLANK(B69),"",D69^2/E69) ->  | S69: 63 | T69: 1.259 | U69: 0.1283787096 | X69: =IF(ISBLANK($B69),"",1) ->  | Y69: =IF(ISBLANK($B69),"",(1-EXP($J$8*$B69))) ->  | Z69: =IF(ISBLANK($B69),"",-B69*$I$8*EXP($J$8*$B69)) -> 
A70: 67 | S70: 64 | T70: 1.2785 | U70: 0.1292086533
A71: 68 | S71: 65 | T71: =$S$4+(S71-1)*($T$4-$S$4)/($U$4-1) -> 1.298 | U71: 0.1299595361
A72: 69 | S72: 66 | T72: 1.3175 | U72: =$H$8+$I$8*(1-EXP(T72*$J$8)) -> 0.1306388894
A73: 70 | S73: 67 | T73: 1.337 | U73: 0.1312535272
A74: 71 | S74: 68 | T74: 1.3565 | U74: 0.1318096142
A75: 72 | S75: 69 | T75: 1.376 | U75: 0.1323127281
A76: 73 | S76: 70 | T76: 1.3955 | U76: 0.1327679152
A77: 74 | S77: 71 | T77: 1.415 | U77: 0.1331797408
A78: 75 | S78: 72 | T78: 1.4345 | U78: 0.1335523358
A79: 76 | S79: 73 | T79: 1.454 | U79: 0.1338894371
A80: 77 | S80: 74 | T80: 1.4735 | U80: 0.134194426
A81: 78 | S81: 75 | T81: 1.493 | U81: 0.1344703615
A82: 79 | S82: 76 | T82: 1.5125 | U82: 0.1347200112
A83: 80 | S83: 77 | T83: 1.532 | U83: 0.1349458792
A84: 81 | S84: 78 | T84: 1.5515 | U84: 0.1351502309
A85: 82 | S85: 79 | T85: 1.571 | U85: 0.1353351159
A86: 83 | S86: 80 | T86: 1.5905 | U86: 0.1355023887
A87: 84 | S87: 81 | T87: 1.61 | U87: 0.135653727
A88: 85 | S88: 82 | T88: 1.6295 | U88: 0.1357906487
A89: 86 | S89: 83 | T89: 1.649 | U89: 0.1359145272
A90: 87 | S90: 84 | T90: 1.6685 | U90: 0.136026605
A91: 88 | S91: 85 | T91: 1.688 | U91: 0.1361280061
A92: 89 | S92: 86 | T92: 1.7075 | U92: 0.1362197478
A93: 90 | S93: 87 | T93: 1.727 | U93: 0.1363027501
A94: 91 | S94: 88 | T94: 1.7465 | U94: 0.1363778455
A95: 92 | S95: 89 | T95: 1.766 | U95: 0.1364457873
A96: 93 | S96: 90 | T96: 1.7855 | U96: 0.136507257
A97: 94 | S97: 91 | T97: 1.805 | U97: 0.136562871
A98: 95 | S98: 92 | T98: 1.8245 | U98: 0.1366131872
A99: 96 | S99: 93 | T99: 1.844 | U99: 0.1366587102
A100: 97 | S100: 94 | T100: 1.8635 | U100: 0.1366998967
A101: 98 | S101: 95 | T101: 1.883 | U101: 0.1367371598
A102: 99 | S102: 96 | T102: 1.9025 | U102: 0.1367708731
A103: 100 | S103: 97 | T103: =$S$4+(S103-1)*($T$4-$S$4)/($U$4-1) -> 1.922 | U103: 0.1368013749
E104: =SUM(E4:E103) -> 0.8403876901 | F104: =SUM(F4:F103) -> 9.326434171e-05 | S104: 98 | T104: =$S$4+(S104-1)*($T$4-$S$4)/($U$4-1) -> 1.9415 | U104: 0.1368289711
S105: 99 | T105: =$S$4+(S105-1)*($T$4-$S$4)/($U$4-1) -> 1.961 | U105: 0.1368539385
S106: 100 | T106: =$S$4+(S106-1)*($T$4-$S$4)/($U$4-1) -> 1.9805 | U106: 0.1368765274
S107: 101 | T107: =$S$4+(S107-1)*($T$4-$S$4)/($U$4-1) -> 2 | U107: 0.1368969645

Sheet Multiple Range Tests
C2: Multiple
F3: Range | L3: Instructions: If there are ordered pairs of data, and the values of x are continuous, then some form of regression best describes the data. And all points are assumed to have different "y values" (responses) as long as the slope is not equal to zero.
H4: Tests
D5: Should NEVER be Used
F7: To Determine Nutritional Requirements:
E9: (The Devil Made Me Do It!)

Sheet Test Data Generator
C1: Random Data Generator
A2: This spreadsheet generates 100 random inputs points in the selected range and then generates outputs by adding random noise around each model. Model parameters can be adjsuted to produce required data. Data can be copied to other spreadsheets for testing the goodness of fit
E3: Instructions | L3: Model | M3: Parameters
B4: Min | C4: Max | E4: 1. Adjust values in cells B4 and C4 for a desired range of inputs | L4: Broken Line | M4: Max | N4: Rate Constant | O4: Requirement
A5: Range | B5: 0 | C5: 1.25 | E5: 2. Adjust model parameter in the Table K3:017 to generate corrresponding outputs | M5: 250 | N5: -175 | O5: 0.75
L6: Broken Line Quadratic | M6: Max | N6: Rate Constant | O6: Requirement
E7: 3. Generated data are ploted on separate graphs for each model | M7: 250 | N7: -250 | O7: 0.75
E8: Note: Data are regenerated every time the spreadsheet changes, e.g. due to saving, changing cells, etc. To force data regeneration, Press F9 | L8: Saturation Kinetics | M8: Max | N8: Rate Constant | O8: Intercept | P8: Kinetic Order
M9: 250 | N9: 0.05 | O9: 75 | P9: 8
L10: Logistics, 3 parameters | M10: Max | N10: Intercept | O10: Scale
A11: Observation | B11: Input | C11: Broken Line | D11: Broken Line Quadratic | E11: Saturation Kinetics | F11: Logistics, 3 Parameters | G11: Logistics, 4 Parameters | H11: Compartmental Model | I11: RNB, Model 1 | J11: RNB, Model 2 | M11: 250 | N11: 20 | O11: 5
L12: Logistics, 4 parameters | M12: Max | N12: Intercept | O12: Shape | P12: Scale
A13: 1 | B13: =$B$5+($C$5-$B$5)*RAND() -> 0.3926317186 | C13: =IF($B13<$O$5,$M$5+$N$5*($O$5-$B13),$M$5)+(RAND()-0.5)*0.1*$M$5 -> 192.2760242 | D13: =IF($B13<$O$7,$M$7+$N$7*($O$7-$B13)^2,$M$7)+(RAND()-0.5)*0.1*$M$7 -> 215.2725683 | E13: =($O$9*$N$9+$M$9*$B13^$P$9)/($N$9+$B13^$P$9)+(RAND()-0.5)*0.1*$M$9 -> 72.01331028 | F13: =$M$11*$N$11*EXP($O$11*B13)/($M$11+$N$11*(EXP($O$11*B13)-1))+(RAND()-0.5)*0.1*$M$11 -> 100.3375648 | G13: =($M$13+($N$13*(1+$O$13)-$M$13)*EXP(-$P$13*$B13))/(1+$O$13*EXP(-$P$13*$B13))+(RAND()-0.5)*0.1*$M$13 -> 222.8007339 | H13: =$M$15*EXP(-$N$15*B13)*(1-EXP(-$O$15*(B13-$P$15)))+(RAND()-0.5)*0.1*$M$15 -> 10.88252596 | I13: =$M$17+$N$17/(1+EXP($O$17+$P$17*B13))+(RAND()-0.5)*0.05*($M$17+$N$17) -> 181.3467206 | J13: =$M$19+$N$19*(1-EXP($O$19*B13))+(RAND()-0.5)*0.1*($M$19+$N$19) -> 208.5186849 | M13: 250 | N13: 20 | O13: 7 | P13: 12
A14: 2 | B14: =$B$5+($C$5-$B$5)*RAND() -> 1.197444974 | C14: =IF($B14<$O$5,$M$5+$N$5*($O$5-$B14),$M$5)+(RAND()-0.5)*0.1*$M$5 -> 254.583834 | D14: =IF($B14<$O$7,$M$7+$N$7*($O$7-$B14)^2,$M$7)+(RAND()-0.5)*0.1*$M$7 -> 243.7588978 | E14: =($O$9*$N$9+$M$9*$B14^$P$9)/($N$9+$B14^$P$9)+(RAND()-0.5)*0.1*$M$9 -> 240.6281607 | F14: =$M$11*$N$11*EXP($O$11*B14)/($M$11+$N$11*(EXP($O$11*B14)-1))+(RAND()-0.5)*0.1*$M$11 -> 237.5938738 | G14: =($M$13+($N$13*(1+$O$13)-$M$13)*EXP(-$P$13*$B14))/(1+$O$13*EXP(-$P$13*$B14))+(RAND()-0.5)*0.1*$M$13 -> 250.118639 | H14: =$M$15*EXP(-$N$15*B14)*(1-EXP(-$O$15*(B14-$P$15)))+(RAND()-0.5)*0.1*$M$15 -> 62.6463753 | I14: =$M$17+$N$17/(1+EXP($O$17+$P$17*B14))+(RAND()-0.5)*0.05*($M$17+$N$17) -> 250.6840759 | J14: =$M$19+$N$19*(1-EXP($O$19*B14))+(RAND()-0.5)*0.1*($M$19+$N$19) -> 244.161254 | L14: Compartmental Model | M14: a | N14: b | O14: c | P14: d
A15: 3 | B15: 0.35411786 | C15: 181.7838926 | D15: 207.1941634 | E15: 85.04233616 | F15: 86.49804891 | G15: 226.6088942 | H15: 17.61554821 | I15: 169.1538982 | J15: 195.5899321 | M15: 250 | N15: 0.5 | O15: 0.7 | P15: 0.25
A16: 4 | B16: 1.168093474 | C16: 254.1297836 | D16: 253.0193714 | E16: 240.2339741 | F16: 236.5720879 | G16: 256.4258643 | H16: 72.26208294 | I16: 251.1942374 | J16: 240.6774984 | L16: RND, Model 1 | M16: Lower Asymptote | N16: Range | O16: r | P16: s
A17: 5 | B17: 0.1613078959 | C17: 147.2250163 | D17: 158.9002674 | E17: 76.17305664 | F17: 44.86265914 | G17: 120.8255707 | H17: -4.728748603 | I17: 147.8128226 | J17: 139.4079694 | M17: 150 | N17: 100 | O17: 5 | P17: -11.07070558
A18: 6 | B18: 1.11810824 | C18: 255.6254237 | D18: 256.0891515 | E18: 241.9464958 | F18: 243.7352265 | G18: 237.5625453 | H18: 56.32744086 | I18: 253.6445003 | J18: 238.3043719 | L18: RND, Model 2 | M18: Intercept | N18: Range | O18: c
A19: 7 | B19: 1.063989088 | C19: 247.8145383 | D19: 239.4399612 | E19: 246.6643967 | F19: 240.6075012 | G19: 257.261575 | H19: 65.42981992 | I19: 247.8946904 | J19: 245.8520351 | M19: 80 | N19: 170 | O19: -3
A20: 8 | B20: 0.3981404087 | C20: 192.9356674 | D20: 216.5600371 | E20: 71.31735344 | F20: 106.7073541 | G20: 236.1487181 | H20: 18.1061378 | I20: 190.0026007 | J20: 193.0384348
A21: 9 | B21: 0.5561895676 | C21: 225.1346253 | D21: 233.9133376 | E21: 108.0660669 | F21: 156.1646741 | G21: 249.6412673 | H21: 32.9660477 | I21: 231.6618604 | J21: 213.2700757
A22: 10 | B22: 0.5146594567 | C22: 196.674598 | D22: 238.70186 | E22: 83.28926708 | F22: 145.4169337 | G22: 258.7207373 | H22: 24.83577268 | I22: 221.9655797 | J22: 207.9216677
A23: 11 | B23: 0.922269522 | C23: 257.6091362 | D23: 246.9973921 | E23: 226.2997199 | F23: 218.6544407 | G23: 246.3553347 | H23: 61.51059426 | I23: 248.4684048 | J23: 249.6796865
A24: 12 | B24: 1.025450554 | C24: 255.2588838 | D24: 248.7828832 | E24: 254.0159451 | F24: 226.2287299 | G24: 245.4460317 | H24: 74.81732196 | I24: 244.2375349 | J24: 236.8177276
A25: 13 | B25: 0.03778698487 | C25: 117.8111575 | D25: 125.4683932 | E25: 82.74598595 | F25: 11.77796582 | G25: 26.46080336 | H25: -26.89928032 | I25: 151.0248917 | J25: 104.501755
A26: 14 | B26: 0.3008963485 | C26: 169.8958817 | D26: 200.4279633 | E26: 76.80523354 | F26: 65.90031087 | G26: 207.2415499 | H26: 16.23369109 | I26: 161.9909835 | J26: 191.0903249
A27: 15 | B27: 0.4931888169 | C27: 212.2196825 | D27: 236.043052 | E27: 83.56298467 | F27: 128.1689062 | G27: 233.9217878 | H27: 22.72734096 | I27: 209.2941168 | J27: 198.8513805
A28: 16 | B28: 0.4881307933 | C28: 197.755509 | D28: 235.1383029 | E28: 87.92748502 | F28: 119.2021677 | G28: 238.2318494 | H28: 29.70798409 | I28: 213.2369479 | J28: 221.6326381
A29: 17 | B29: 0.03220953104 | C29: 114.3427714 | D29: 122.5526826 | E29: 72.12524432 | F29: 21.32575479 | G29: 26.26843002 | H29: -28.90411103 | I29: 154.0827727 | J29: 88.578104
A30: 18 | B30: 0.1459146224 | C30: 155.6826648 | D30: 150.0987212 | E30: 80.24398202 | F30: 34.77684969 | G30: 112.1038588 | H30: -28.20285203 | I30: 157.1062104 | J30: 133.6458687
A31: 19 | B31: 0.3438835797 | C31: 180.1667424 | D31: 196.4721128 | E31: 73.56791481 | F31: 77.63640809 | G31: 222.2520221 | H31: 2.179022546 | I31: 170.5839596 | J31: 193.0315704
A32: 20 | B32: 0.8564204235 | C32: 241.0207069 | D32: 261.926803 | E32: 214.5650461 | F32: 221.6663919 | G32: 246.0581641 | H32: 52.13485506 | I32: 252.427811 | J32: 235.7950492
A33: 21 | B33: 0.4512279074 | C33: 188.3287757 | D33: 231.9358433 | E33: 75.04757945 | F33: 122.908595 | G33: 244.4476305 | H33: 29.08019325 | I33: 195.5947055 | J33: 216.5018359
A34: 22 | B34: 0.2956537289 | C34: 166.5380615 | D34: 198.654252 | E34: 66.79609072 | F34: 75.99756442 | G34: 196.1906362 | H34: 13.86151131 | I34: 159.58287 | J34: 168.3509486
A35: 23 | B35: 0.9409908966 | C35: 240.8926109 | D35: 240.9770445 | E35: 245.7692649 | F35: 225.0884292 | G35: 259.2622701 | H35: 57.12533808 | I35: 252.7800145 | J35: 244.3939706
A36: 24 | B36: 0.4398561319 | C36: 204.6315801 | D36: 230.063431 | E36: 77.30865685 | F36: 106.9581449 | G36: 241.5516474 | H36: 23.72754713 | I36: 192.8216236 | J36: 210.5949801
A37: 25 | B37: 1.198270835 | C37: 251.4127076 | D37: 245.3207641 | E37: 242.5078683 | F37: 235.9031098 | G37: 246.735848 | H37: 67.53722875 | I37: 253.670576 | J37: 252.2553599
A38: 26 | B38: 0.4962332106 | C38: 208.5165736 | D38: 228.8439756 | E38: 86.25500219 | F38: 123.6973213 | G38: 255.2701256 | H38: 41.37879356 | I38: 209.5647339 | J38: 216.0575904
A39: 27 | B39: 1.245019895 | C39: 238.4671721 | D39: 248.7627416 | E39: 256.5251667 | F39: 241.6793463 | G39: 247.0867544 | H39: 67.07130183 | I39: 245.0151879 | J39: 245.4452927
A40: 28 | B40: 0.5368821459 | C40: 206.0906541 | D40: 240.7987958 | E40: 91.25679602 | F40: 132.3783133 | G40: 254.9342451 | H40: 37.81808411 | I40: 228.1981936 | J40: 214.1512963
A41: 29 | B41: 0.610525243 | C41: 216.7569911 | D41: 234.4623758 | E41: 124.6964806 | F41: 172.7108598 | G41: 240.8094082 | H41: 36.39883387 | I41: 229.5480395 | J41: 217.7581801
A42: 30 | B42: 0.300124835 | C42: 178.1301915 | D42: 186.9430087 | E42: 82.5224494 | F42: 68.52514032 | G42: 201.1512337 | H42: 6.957241088 | I42: 170.8856199 | J42: 191.7038768
A43: 31 | B43: 0.3903574599 | C43: 189.5392635 | D43: 216.5831368 | E43: 66.19016471 | F43: 86.13143051 | G43: 237.5020156 | H43: 23.84612351 | I43: 180.0991219 | J43: 196.8622916
A44: 32 | B44: 0.03903114251 | C44: 137.8859028 | D44: 117.2336462 | E44: 63.5629504 | F44: 15.56042427 | G44: 40.80500665 | H44: -27.82864673 | I44: 155.5781477 | J44: 88.94652469
A45: 33 | B45: 1.207906798 | C45: 253.0906078 | D45: 247.7016091 | E45: 237.993597 | F45: 251.6382563 | G45: 254.6358731 | H45: 56.63210733 | I45: 252.2992356 | J45: 235.2298211
A46: 34 | B46: 1.020230773 | C46: 244.3459654 | D46: 253.0315964 | E46: 245.8679328 | F46: 228.7820004 | G46: 255.3491095 | H46: 64.80804057 | I46: 246.1915005 | J46: 244.4631771
A47: 35 | B47: 0.6485791978 | C47: 225.8416418 | D47: 243.0115475 | E47: 135.6346095 | F47: 183.3296826 | G47: 243.2176504 | H47: 34.80104483 | I47: 243.8863889 | J47: 238.0505467
A48: 36 | B48: 0.7255294481 | C48: 238.4169814 | D48: 242.9971262 | E48: 179.5355653 | F48: 187.3698759 | G48: 261.6524026 | H48: 53.88393665 | I48: 246.5446777 | J48: 221.3753007
A49: 37 | B49: 0.03507040428 | C49: 114.3353021 | D49: 120.9431166 | E49: 79.71417585 | F49: 28.86448081 | G49: 38.13320301 | H49: -40.46213314 | I49: 153.3039138 | J49: 90.66927177
A50: 38 | B50: 0.6899636709 | C50: 236.7036284 | D50: 252.6546194 | E50: 157.086293 | F50: 190.9692293 | G50: 248.6935019 | H50: 39.07032831 | I50: 237.1880728 | J50: 222.6176638
A51: 39 | B51: 0.2203108176 | C51: 163.3225063 | D51: 187.0570122 | E51: 72.67700593 | F51: 44.37242657 | G51: 161.6798499 | H51: -0.3807836091 | I51: 157.1133737 | J51: 168.7523399
A52: 40 | B52: 0.04381151585 | C52: 122.185997 | D52: 119.1126264 | E52: 67.46559478 | F52: 26.72983008 | G52: 46.53529699 | H52: -47.31686598 | I52: 155.5398628 | J52: 111.7794412
A53: 41 | B53: 1.039868353 | C53: 243.6480291 | D53: 245.1602681 | E53: 231.3843165 | F53: 244.3360693 | G53: 257.5941552 | H53: 65.87307214 | I53: 244.2389562 | J53: 230.0285516
A54: 42 | B54: 1.24964714 | C54: 254.0331275 | D54: 240.2745753 | E54: 260.8204685 | F54: 239.9052266 | G54: 242.433317 | H54: 67.78473707 | I54: 251.4166002 | J54: 254.5218052
A55: 43 | B55: 0.8637171524 | C55: 258.9004503 | D55: 242.7211834 | E55: 231.9000604 | F55: 207.9430057 | G55: 251.206246 | H55: 67.60184826 | I55: 250.7978745 | J55: 239.808806
A56: 44 | B56: 0.1201198436 | C56: 148.7560973 | D56: 145.2621112 | E56: 82.69990173 | F56: 41.39946891 | G56: 96.78468483 | H56: -33.62386913 | I56: 152.5598333 | J56: 142.3083247
A57: 45 | B57: 0.4956708908 | C57: 215.4796252 | D57: 240.0768664 | E57: 79.00113628 | F57: 118.3056803 | G57: 252.3786303 | H57: 33.15527732 | I57: 208.2675708 | J57: 216.3311798
A58: 46 | B58: 0.6908601585 | C58: 245.6461809 | D58: 255.4825662 | E58: 173.2400315 | F58: 172.314675 | G58: 259.1525811 | H58: 49.06960633 | I58: 241.8447001 | J58: 235.7899585
A59: 47 | B59: 1.048892117 | C59: 242.3302045 | D59: 254.4913858 | E59: 245.29177 | F59: 234.1973082 | G59: 245.325005 | H59: 60.16741117 | I59: 254.4260353 | J59: 254.5085409
A60: 48 | B60: 0.9289120457 | C60: 249.3086112 | D60: 248.4650594 | E60: 246.1018441 | F60: 220.9787593 | G60: 252.8527472 | H60: 52.74576347 | I60: 254.6265125 | J60: 240.2929056
A61: 49 | B61: 0.1633418433 | C61: 151.7791959 | D61: 169.6841885 | E61: 63.676462 | F61: 34.0554845 | G61: 122.9617313 | H61: -18.96029948 | I61: 151.9202468 | J61: 137.6679768
A62: 50 | B62: 1.188937679 | C62: 261.7657353 | D62: 260.0348531 | E62: 244.7240661 | F62: 243.7586791 | G62: 260.0932014 | H62: 59.13140257 | I62: 252.3881677 | J62: 239.3134893
A63: 51 | B63: 1.145704351 | C63: 258.4411466 | D63: 257.2477963 | E63: 244.8354609 | F63: 238.9763361 | G63: 245.4843993 | H63: 61.0249442 | I63: 254.3983942 | J63: 242.2622555
A64: 52 | B64: 0.6129516863 | C64: 224.4226101 | D64: 251.810243 | E64: 132.7604969 | F64: 171.9121294 | G64: 243.3743452 | H64: 36.41980096 | I64: 238.3366498 | J64: 231.3466809
A65: 53 | B65: 0.7443296685 | C65: 245.8833111 | D65: 252.4901048 | E65: 190.0992848 | F65: 183.3676687 | G65: 246.6954227 | H65: 54.41076724 | I65: 251.1867265 | J65: 228.3505878
A66: 54 | B66: 0.9121237018 | C66: 254.4815932 | D66: 241.424551 | E66: 241.1383552 | F66: 226.920973 | G66: 247.5796736 | H66: 56.68177062 | I66: 254.307834 | J66: 244.2110622
A67: 55 | B67: 0.465405325 | C67: 197.0410773 | D67: 238.9072858 | E67: 85.69170352 | F67: 116.5092505 | G67: 248.5829029 | H67: 40.0649037 | I67: 204.0522391 | J67: 197.0053108
A68: 56 | B68: 0.09165032094 | C68: 146.5552482 | D68: 139.4886677 | E68: 77.60309387 | F68: 37.96573211 | G68: 59.39556494 | H68: -31.9981057 | I68: 151.1662003 | J68: 126.4044204
A69: 57 | B69: 1.160202664 | C69: 261.7968331 | D69: 251.032122 | E69: 246.9555412 | F69: 250.5313595 | G69: 239.2060504 | H69: 60.48226205 | I69: 253.8272833 | J69: 248.1659382
A70: 58 | B70: 1.013518 | C70: 259.04973 | D70: 250.4926858 | E70: 231.315525 | F70: 227.353845 | G70: 251.117935 | H70: 72.56807216 | I70: 248.9142073 | J70: 244.4477631
A71: 59 | B71: 0.6077136811 | C71: 213.4598251 | D71: 243.0949929 | E71: 115.7053076 | F71: 152.661046 | G71: 257.1407325 | H71: 49.92111737 | I71: 230.3875007 | J71: 227.8349607
A72: 60 | B72: 0.5521354323 | C72: 223.7135942 | D72: 228.6886598 | E72: 93.17251259 | F72: 151.3878731 | G72: 245.0323821 | H72: 24.90725169 | I72: 228.1005556 | J72: 221.7834509
A73: 61 | B73: 0.08753729993 | C73: 138.8317267 | D73: 141.9791102 | E73: 76.19496724 | F73: 24.76628712 | G73: 53.28390625 | H73: -35.13007906 | I73: 152.9073093 | J73: 130.8342347
A74: 62 | B74: 1.126092114 | C74: 260.4190818 | D74: 255.6890431 | E74: 251.8192646 | F74: 234.1717348 | G74: 262.0326191 | H74: 75.25558155 | I74: 246.4268745 | J74: 255.1072736
A75: 63 | B75: 0.7904640335 | C75: 244.2258666 | D75: 261.5247475 | E75: 219.036513 | F75: 207.2662436 | G75: 238.648189 | H75: 44.4401646 | I75: 244.8433326 | J75: 225.3025761
A76: 64 | B76: 0.4599996894 | C76: 192.5243244 | D76: 236.2863304 | E76: 91.69999837 | F76: 114.6677803 | G76: 232.2257901 | H76: 28.74864917 | I76: 196.4103444 | J76: 209.1184266
A77: 65 | B77: 1.043963697 | C77: 242.1913214 | D77: 250.0208533 | E77: 236.8782007 | F77: 238.3528977 | G77: 250.9172783 | H77: 65.39151936 | I77: 252.4986902 | J77: 242.0140521
A78: 66 | B78: =$B$5+($C$5-$B$5)*RAND() -> 0.3878690038 | C78: =IF($B78<$O$5,$M$5+$N$5*($O$5-$B78),$M$5)+(RAND()-0.5)*0.1*$M$5 -> 188.3160909 | D78: =IF($B78<$O$7,$M$7+$N$7*($O$7-$B78)^2,$M$7)+(RAND()-0.5)*0.1*$M$7 -> 224.9257971 | E78: =($O$9*$N$9+$M$9*$B78^$P$9)/($N$9+$B78^$P$9)+(RAND()-0.5)*0.1*$M$9 -> 83.58563771 | F78: =$M$11*$N$11*EXP($O$11*B78)/($M$11+$N$11*(EXP($O$11*B78)-1))+(RAND()-0.5)*0.1*$M$11 -> 99.30291983 | G78: =($M$13+($N$13*(1+$O$13)-$M$13)*EXP(-$P$13*$B78))/(1+$O$13*EXP(-$P$13*$B78))+(RAND()-0.5)*0.1*$M$13 -> 236.7956883 | H78: =$M$15*EXP(-$N$15*B78)*(1-EXP(-$O$15*(B78-$P$15)))+(RAND()-0.5)*0.1*$M$15 -> 11.80039802 | I78: =$M$17+$N$17/(1+EXP($O$17+$P$17*B78))+(RAND()-0.5)*0.05*($M$17+$N$17) -> 182.3980155 | J78: =$M$19+$N$19*(1-EXP($O$19*B78))+(RAND()-0.5)*0.1*($M$19+$N$19) -> 207.6347175
A79: 67 | B79: 0.9292627615 | C79: 239.1946042 | D79: 258.0684862 | E79: 229.9042394 | F79: 214.0685757 | G79: 257.9273796 | H79: 69.67095131 | I79: 244.5594234 | J79: 236.1708261
A80: 68 | B80: 0.7768258125 | C80: 254.3388448 | D80: 250.0868671 | E80: 211.3445816 | F80: 196.1006254 | G80: 254.010516 | H80: 53.93368961 | I80: 242.1010585 | J80: 229.826447
A81: 69 | B81: 0.3033225374 | C81: 169.8315788 | D81: 194.44273 | E81: 70.32361244 | F81: 69.42831893 | G81: 214.9191645 | H81: 10.73679945 | I81: 163.8430733 | J81: 173.9507096
A82: 70 | B82: 0.9671458932 | C82: 246.3746536 | D82: 239.4258671 | E82: 249.2409913 | F82: 228.9692435 | G82: 242.8942699 | H82: 58.55426472 | I82: 252.743237 | J82: 251.8668233
A83: 71 | B83: 0.08939625827 | C83: 133.8850669 | D83: 153.1656179 | E83: 69.26553691 | F83: 20.55051638 | G83: 63.54164853 | H83: -31.19919472 | I83: 153.9748495 | J83: 124.4783057
A84: 72 | B84: 0.5072872559 | C84: 210.5150706 | D84: 227.5419351 | E84: 90.97731777 | F84: 135.6233948 | G84: 252.4815906 | H84: 41.86435607 | I84: 219.0147901 | J84: 214.9322078
A85: 73 | B85: 0.969834639 | C85: 258.4844057 | D85: 252.1000672 | E85: 232.4101633 | F85: 238.8702964 | G85: 240.2207303 | H85: 68.88900025 | I85: 252.5129356 | J85: 250.6840414
A86: 74 | B86: 0.9421881188 | C86: 259.513076 | D86: 254.927021 | E86: 242.7148503 | F86: 229.3974319 | G86: 250.1111263 | H86: 58.75537803 | I86: 249.1771685 | J86: 241.8205446
A87: 75 | B87: 0.4864752861 | C87: 213.6371809 | D87: 235.1709334 | E87: 89.92581111 | F87: 133.2185711 | G87: 236.3734706 | H87: 31.61064113 | I87: 214.6115625 | J87: 208.14535
A88: 76 | B88: 1.160889019 | C88: 242.558353 | D88: 241.308749 | E88: 249.0994359 | F88: 248.5016645 | G88: 246.2044215 | H88: 62.47856592 | I88: 250.601372 | J88: 246.6564437
A89: 77 | B89: 0.2659447356 | C89: 172.49169 | D89: 194.3508621 | E89: 86.43893164 | F89: 53.91507746 | G89: 183.2758631 | H89: 10.1147753 | I89: 159.7694317 | J89: 162.887036
A90: 78 | B90: 0.4638894536 | C90: 208.3911131 | D90: 232.7343533 | E90: 94.36107164 | F90: 119.0177043 | G90: 243.3872297 | H90: 16.16305676 | I90: 207.9090173 | J90: 203.2051985
A91: 79 | B91: 0.0336109861 | C91: 126.4582447 | D91: 127.7737148 | E91: 74.68844606 | F91: 35.08709969 | G91: 21.36213003 | H91: -44.4295236 | I91: 153.1930923 | J91: 90.34376449
A92: 80 | B92: 1.089501746 | C92: 259.3745244 | D92: 250.7931996 | E92: 236.4349721 | F92: 248.0679212 | G92: 255.0003832 | H92: 60.32710353 | I92: 248.7383493 | J92: 239.5293875
A93: 81 | B93: 1.208586552 | C93: 240.1354835 | D93: 257.6137173 | E93: 250.2570321 | F93: 240.8440211 | G93: 252.3296261 | H93: 66.14039424 | I93: 254.4117602 | J93: 255.4574751
A94: 82 | B94: 0.3427210943 | C94: 171.60165 | D94: 198.1028629 | E94: 75.21583937 | F94: 88.67504441 | G94: 221.3929747 | H94: 4.390670299 | I94: 167.0816018 | J94: 195.5613903
A95: 83 | B95: 0.7191501252 | C95: 241.5043111 | D95: 252.5323119 | E95: 171.216625 | F95: 200.1765609 | G95: 244.35363 | H95: 38.10858931 | I95: 250.9643144 | J95: 223.872555
A96: 84 | B96: 0.7171236616 | C96: 238.6286199 | D96: 242.1300608 | E96: 176.637357 | F96: 198.8928349 | G96: 244.1775224 | H96: 45.4124897 | I96: 245.1733561 | J96: 221.062505
A97: 85 | B97: 0.6945235387 | C97: 250.2288656 | D97: 253.6723154 | E97: 154.819399 | F97: 190.7770533 | G97: 238.4425412 | H97: 47.01107899 | I97: 244.4558215 | J97: 240.4810354
A98: 86 | B98: 1.149522117 | C98: 255.0387467 | D98: 240.8200258 | E98: 252.8895766 | F98: 248.2886085 | G98: 255.5860128 | H98: 75.47567643 | I98: 256.0037257 | J98: 233.6668272
A99: 87 | B99: 0.356746571 | C99: 173.7092923 | D99: 216.431035 | E99: 74.75870492 | F99: 84.97774545 | G99: 235.421872 | H99: 18.04335707 | I99: 179.4061263 | J99: 189.9845891
A100: 88 | B100: 1.014380192 | C100: 257.9271022 | D100: 244.328987 | E100: 230.4251093 | F100: 221.1868695 | G100: 242.6070632 | H100: 73.05906124 | I100: 248.3165208 | J100: 233.9032255
A101: 89 | B101: 0.917047555 | C101: 258.6569359 | D101: 251.0331381 | E101: 230.8417509 | F101: 230.2422412 | G101: 254.863924 | H101: 51.34115316 | I101: 255.3313843 | J101: 247.6559748
A102: 90 | B102: 0.4617809743 | C102: 194.2108165 | D102: 227.7495752 | E102: 81.08144506 | F102: 117.2755441 | G102: 231.2558255 | H102: 22.52301163 | I102: 204.6007706 | J102: 195.5653966
A103: 91 | B103: 0.9909448338 | C103: 242.0301633 | D103: 247.7562235 | E103: 246.494508 | F103: 218.9225038 | G103: 261.6957775 | H103: 53.90936628 | I103: 250.10959 | J103: 238.799679
A104: 92 | B104: 0.7404408527 | C104: 238.7450445 | D104: 240.3276877 | E104: 182.5722584 | F104: 196.811243 | G104: 250.1246709 | H104: 59.86344229 | I104: 247.5183108 | J104: 241.5918184
A105: 93 | B105: 0.4634177372 | C105: 201.4272138 | D105: 226.1580505 | E105: 90.41585169 | F105: 111.3092092 | G105: 247.2440839 | H105: 24.36261496 | I105: 201.8312268 | J105: 200.5253164
A106: 94 | B106: 0.9934855496 | C106: 253.9536948 | D106: 241.0903015 | E106: 235.5453127 | F106: 225.503262 | G106: 255.2316408 | H106: 54.47788352 | I106: 245.5690577 | J106: 237.0657687
A107: 95 | B107: 0.233630722 | C107: 157.5493441 | D107: 191.3062796 | E107: 79.23207197 | F107: 64.93251367 | G107: 173.1314471 | H107: 3.228590393 | I107: 163.1766691 | J107: 165.6808584
A108: 96 | B108: 0.185557218 | C108: 148.6098258 | D108: 163.1129158 | E108: 75.92203254 | F108: 55.02936524 | G108: 130.3619512 | H108: -9.279540678 | I108: 160.0439424 | J108: 163.033655
A109: 97 | B109: 0.2767472063 | C109: 174.1005165 | D109: 185.7035719 | E109: 87.29525376 | F109: 74.9194889 | G109: 202.9007046 | H109: 11.38975196 | I109: 157.4423715 | J109: 171.902083
A110: 98 | B110: 0.8048330306 | C110: 245.7220621 | D110: 251.5922101 | E110: 204.7305726 | F110: 196.8335146 | G110: 247.9654628 | H110: 55.3270892 | I110: 250.9179386 | J110: 242.1313453
A111: 99 | B111: 0.725199266 | C111: 243.4765866 | D111: 243.9162906 | E111: 174.7262231 | F111: 183.0018139 | G111: 261.6899304 | H111: 58.72976469 | I111: 245.2937912 | J111: 233.1289072
A112: 100 | B112: =$B$5+($C$5-$B$5)*RAND() -> 0.8662448261 | C112: 245.0972927 | D112: 248.8743433 | E112: 234.6555221 | F112: 210.4880596 | G112: 255.9625256 | H112: 59.07507906 | I112: 254.6592338 | J112: 239.2324983

Sheet Sheet1
B2: 1.27 | C2: 84.79532164
B3: 1.35 | C3: 89.47368421
B4: 1.43 | C4: 100
B5: 1.51 | C5: 95.90643275
B6: 1.59 | C6: 96.49122807
B7: 1.67 | C7: 83.04093567
B8: 1.35 | C8: 88.93709328
B9: 1.46 | C9: 91.32321041
B10: 1.56 | C10: 100
B11: 1.65 | C11: 96.96312364
B12: 1.75 | C12: 95.66160521
B13: 1.36 | C13: 85.12195122
B14: 1.47 | C14: 94.14634146
B15: 1.56 | C15: 96.82926829
B16: 1.65 | C16: 99.75609756
B17: 1.75 | C17: 100
B18: 1.35 | C18: 98.08153477
B19: 1.46 | C19: 102.3980815
B20: 1.56 | C20: 102.3980815
B21: 1.65 | C21: 101.1990408
B22: 1.75 | C22: 98.08153477
B23: 1.18 | C23: 87.48964374
B24: 1.26 | C24: 88.4009942
B25: 1.33 | C25: 92.95774648
B26: 1.4 | C26: 94.86329743
B27: 1.47 | C27: 99.91714996
B28: 1.54 | C28: 100
B29: 1.19 | C29: 89.92094862
B30: 1.28 | C30: 89.13043478
B31: 1.37 | C31: 94.46640316
B32: 1.46 | C32: 100
B33: 1.55 | C33: 97.23320158
B34: 1.19 | C34: 85.06616257
B35: 1.28 | C35: 91.30434783
B36: 1.37 | C36: 94.51795841
B37: 1.46 | C37: 94.70699433
B38: 1.55 | C38: 98.29867675
B39: 1.64 | C39: 100
B40: 1.19 | C40: 90.8438061
B41: 1.28 | C41: 94.07540395
B42: 1.37 | C42: 98.02513465
B43: 1.46 | C43: 100
B44: 1.55 | C44: 99.46140036
B45: 1.64 | C45: 98.7432675
